{"text_format":"1","workbook":"xlsx","n_sheets":19,"sheets":["Instructions","Customer Information","Terms & Conditions","Payment Assignment","Assessment Information","Assessment Tables","Project Information","Project Summary","Data Form (EEM 1)","Data Form (EEM 2)","Data Form (EEM 3)","Data Form (EEM 4)","Data Form (EEM 5)","Data Form (EEM 6)","Supporting Documentation","Project Report","F.A.Q.","CI Table","Ref"],"not_rendered":{"charts":0,"images":11,"macros":1,"external_links":1,"defined_names":220,"comments":2,"pivot_tables":0},"unopened":[],"bounds":{"document_bytes":16777216,"sheet_cells":100000,"rows_first":2000,"rows_last":500,"rows_between":2000,"halvings":0,"cell_chars":16384,"cell_head_chars":4096},"cells_cut":0,"cells_raw":0,"read":"whole","date_system":"1900"}

{"sheet":"Instructions","index":0,"n_rows":87,"n_cols":10,"rows_kept":87,"cut":false,"hidden":false,"merged":[[7,9,7,10],[1,9,1,10],[27,2,27,7],[15,2,15,5],[67,6,68,7],[64,2,64,5],[5,2,5,7],[6,2,6,7],[32,2,32,7],[10,2,10,7],[11,2,11,5],[11,6,12,7],[12,2,12,5],[13,2,13,5],[14,2,14,5],[16,2,16,5],[16,6,17,7],[23,2,23,5],[26,2,26,5],[26,6,26,7],[22,6,22,7],[19,2,19,5],[19,6,19,7],[20,2,20,7],[25,2,25,5],[25,6,25,7],[28,2,28,5],[29,2,29,5],[75,2,75,7],[45,2,45,5],[45,6,45,7],[42,6,43,7],[43,2,43,5],[57,6,57,7],[58,2,58,5],[58,6,58,7],[73,2,73,5],[73,6,73,7],[62,2,62,5],[63,2,63,5],[65,2,65,5],[65,6,66,7],[66,2,66,5],[71,2,71,5],[71,6,71,7],[69,2,69,5],[29,6,29,7],[48,6,48,7],[67,2,67,5],[54,2,54,5],[37,2,37,5],[52,2,52,5],[7,2,7,7],[59,2,59,7],[60,2,60,5],[60,6,61,7],[61,2,61,5],[17,2,17,5],[21,2,21,5],[21,6,21,7],[8,2,8,7],[22,2,22,5],[18,2,18,5],[18,6,18,7],[53,2,53,5],[55,2,55,5],[55,6,56,7],[56,2,56,5],[24,2,24,5],[24,6,24,7],[49,2,49,7],[46,2,46,7],[31,2,31,5],[30,6,30,7],[38,2,38,5],[39,2,39,5],[42,2,42,5],[50,2,50,5],[50,6,51,7],[51,2,51,5],[44,2,44,5],[33,2,33,5],[36,2,36,5],[31,6,31,7],[47,2,47,5],[47,6,47,7],[48,2,48,5],[0,0,0,11],[23,6,23,7],[82,2,83,7],[33,6,34,7],[38,6,39,7],[40,6,41,7],[79,2,79,7],[80,2,80,7],[76,2,76,7],[77,2,77,7],[78,2,78,7],[41,2,41,5],[44,6,44,7],[34,2,34,5],[40,2,40,5],[35,2,35,5],[57,2,57,5],[70,2,70,5],[72,2,72,5],[72,6,72,7],[68,2,68,5],[69,6,70,7],[30,2,30,5],[28,6,28,7]]}
["Note: If you are seeing a red \"Blocked Content\" message, please follow the instructions in \"F.A.Q.\" to enable macros."]
[null,{"$f":"'Customer Information'!$AY$5 & \" - \" & 'Customer Information'!$AY$6","v":"FY27.1.0 - Version 20260501"},null,null,null,null,null,null,null,"HIDE"]
[]
[null,null,{"$f":"'Customer Information'!$AB$3","v":"FY27 SRP Business Solutions Custom Program"},null,null,null,null,{"$f":"IF(Project_Type=\"\",\"Rebate Application\",Project_Type)","v":"Rebate Application - Preliminary"}]
[]
[null,null,{"$f":"CONCATENATE(ProjectType,\" Instructions\")","v":"Rebate Application Instructions"}]
[null,null,{"$f":"VLOOKUP(IF('Customer Information'!$AC$5=\"Preliminary Assessment\",\"PA\",IF('Customer Information'!$AC$5=\"Technical Assessment\",\"TA\",\"RA\")),Ref!$A$6:$K$8,2,FALSE)","v":"The Rebate Application (RA) is a required submission for any non-prescriptive energy efficiency improvement opportunities to fully evaluate any eligible equipment and apply for an energy efficiency incentive. Please follow the following steps to apply:"}]
[null,null,{"$f":"SUBSTITUTE(J8,\"XX\",MID(Version_ID,3,2))","v":"Note: New Construction projects under the FY27 program year will no longer require pre-approval. The customer may decide to install any qualifying custom energy efficiency measures without securing pre-approval from SRP; however, they would do so at their own risk as there is no guarantee of rebates under this specific post-purchase scenario. To secure a confirmed rebate reservation for a New Construction Project, the customer is advised to follow the formal pre-approval process by submitting a Preliminary Rebate Application (“Rebate Application – Preliminary”) to SRP. A new construction project under the program is limited to the following cases: "},null,null,null,null,null,null,"Note: New Construction projects under the FYXX program year will no longer require pre-approval. The customer may decide to install any qualifying custom energy efficiency measures without securing pre-approval from SRP; however, they would do so at their own risk as there is no guarantee of rebates under this specific post-purchase scenario. To secure a confirmed rebate reservation for a New Construction Project, the customer is advised to follow the formal pre-approval process by submitting a Preliminary Rebate Application (“Rebate Application – Preliminary”) to SRP. A new construction project under the program is limited to the following cases: "]
[null,null,"1. Installations of energy-efficient equipment for new facility or new manufacturing process line, and\n2. Replacements of existing end-of-useful life equipment or equipment that has failed.\n"]
[]
[null,null,"Before Beginning an Assessment"]
[null,null,"Step 1: Complete the Customer Information section",null,null,null,{"$f":"IF('Customer Information'!$BL$4=\"Complete\",\"Completed\",'Customer Information'!$BL$4)","v":"MI: Project Information"}]
[null,null,"(Go to Customer Information)"]
[null,null,"Step 2: Read and sign the Terms & Conditions and submit with a W-9 tax form"]
[null,null,"(Go to Terms & Conditions)"]
[null,null,"(Go to the IRS Website to Access and Download the W-9)"]
[null,null,"Step 3: Complete the Assessment Information section",null,null,null,{"$f":"IF(OR(ProjectType=\"Preliminary Assessment\",ProjectType=\"Technical Assessment\"),IF('Assessment Information'!$L$5=\"Complete\",\"Completed\",'Assessment Information'!$L$5),IF('Project Information'!$M$4=\"Complete\",\"Completed\",'Project Information'!$M$4))","v":"MI: Project Information"}]
[null,null,"(Go to Assessment Information)"]
[null,null,"Step 4: Review this document for any missing information and, once completed, submit the  Application. Please ensure that any supporting documentation is submitted."]
[null,null,"Step 5: Comply with any additional requests and await project approval before beginning the assessment."]
[null,null,"After Receiving Assessment Approval"]
[null,null,"Step 1: Review the approved SRP assessment scope of work."]
[null,null,"Step 2: Read and sign the Preliminary Assessment approval form"]
[]
[null,null,"Step 2: Read and sign the Technical Assessment approval form"]
[]
[null,null,"Step 3: Coordinate with your Quality Service Provider (QSP) once an approved QSP contacts you to complete the assessment."]
[null,null,"After Completing an Assessment"]
[null,null,"Step 1: Review the Preliminary Assessment Report with your SRP/RI representative."]
[null,null,"Step 2: Submit a Technical Assessment (optional) or Rebate Application."]
[null,null,"Step 1: Review the Technical Assessment Report with your SRP/RI representative."]
[null,null,"Step 2: Submit a Rebate Application."]
[null,null,"Before Purchase and Installation"]
[null,null,"Step 1: Complete the Customer Information section",null,null,null,{"$f":"IF('Customer Information'!$BL$4=\"Complete\",\"Completed\",'Customer Information'!$BL$4)","v":"MI: Project Information"}]
[null,null,"(Go to Customer Information)"]
[null,null,"Step 2: Read and sign the Terms & Conditions and submit with a W-9 tax form"]
[null,null,"(Go to Terms & Conditions)"]
[null,null,"(Go to the IRS Website to Access and Download the W-9)"]
[null,null,"Step 3: Complete the Project Information section",null,null,null,{"$f":"IF(OR(ProjectType=\"Preliminary Assessment\",ProjectType=\"Technical Assessment\"),IF('Assessment Information'!$L$5=\"Complete\",\"Completed\",'Assessment Information'!$L$5),IF('Project Information'!$M$4=\"Complete\",\"Completed\",'Project Information'!$M$4))","v":"MI: Project Information"}]
[null,null,"(Go to Project Information)"]
[null,null,"Step 4: Complete the Supporting Documentation section",null,null,null,{"$f":"IF('Supporting Documentation'!$H$5=\"Complete\",\"Completed\",'Supporting Documentation'!$H$5)","v":"MI: Supporting Information"}]
[null,null,"(Go to Supporting Documentation)"]
[null,null,"Step 5: Complete the Data Collection Form(s)",null,null,null,{"$f":"IF('Supporting Documentation'!$H$13=\"Complete\",\"Completed\",'Supporting Documentation'!$H$13)","v":""}]
[]
[null,null,"Step 6: Review this document for any missing information and, once completed, submit the  Application. Please ensure that any supporting documentation is submitted."]
[null,null,"Step 7: Comply with any additional requests and await project approval before ordering or purchasing any equipment."]
[null,null,"After Purchase and Installation"]
[null,null,"Step 1: Review approved Rebate Application and report any changes to the Project Information, Supporting Information, or Data Collection Form sections."]
[null,null,"Step 2: Submit the Rebate Application with all post-verification documentation, as documented in the approval letter."]
[null,null,"After Project Installation"]
[null,null,"Step 1: Verify the Customer Information section is correct and up-to-date",null,null,null,{"$f":"IF('Customer Information'!$BL$4=\"Complete\",\"Completed\",'Customer Information'!$BL$4)","v":"MI: Project Information"}]
[null,null,"(Go to Customer Information)"]
[null,null,"Step 2: Read, sign, and submit the Installation Notice section"]
[null,null,"(Go to Terms & Conditions)"]
[null,null,"(Go to the IRS Website to Access and Download the W-9)"]
[null,null,"Step 3: Update the Project Information section if there has been a reduction in the scope of work",null,null,null,{"$f":"IF(OR(ProjectType=\"Preliminary Assessment\",ProjectType=\"Technical Assessment\"),IF('Assessment Information'!$L$5=\"Complete\",\"Completed\",'Assessment Information'!$L$5),IF('Project Information'!$M$4=\"Complete\",\"Completed\",'Project Information'!$M$4))","v":"MI: Project Information"}]
[null,null,"(Go to Project Information)"]
[null,null,"Step 4: Provide the required commissioning information, equipment specifications, and any other required documentation outlined out in the approval letter."]
[null,null,"Step 5: Provide project invoice(s)."]
[null,null,"After Purchase and Project Installation (New Construction)"]
[null,null,"Step 1: Complete the Customer Information section",null,null,null,{"$f":"IF('Customer Information'!$BL$4=\"Complete\",\"Completed\",'Customer Information'!$BL$4)","v":"MI: Project Information"}]
[null,null,"(Go to Customer Information)"]
[null,null,"Step 2: Read and sign the Terms & Conditions and submit with a W-9 tax form"]
[null,null,"(Go to Terms & Conditions)"]
[null,null,"(Go to the IRS Website to Access and Download the W-9)"]
[null,null,"Step 3: Complete the Project Information section",null,null,null,{"$f":"IF(OR(ProjectType=\"Preliminary Assessment\",ProjectType=\"Technical Assessment\"),IF('Assessment Information'!$L$5=\"Complete\",\"Completed\",'Assessment Information'!$L$5),IF('Project Information'!$M$4=\"Complete\",\"Completed\",'Project Information'!$M$4))","v":"MI: Project Information"}]
[null,null,"(Go to Project Information)"]
[null,null,"Step 4: Complete the Supporting Documentation section",null,null,null,{"$f":"IF('Supporting Documentation'!$H$5=\"Complete\",\"Completed\",'Supporting Documentation'!$H$5)","v":"MI: Supporting Information"}]
[null,null,"(Go to Supporting Documentation)"]
[null,null,"Step 5: Complete the Data Collection Form(s)",null,null,null,{"$f":"IF('Supporting Documentation'!$H$13=\"Complete\",\"Completed\",'Supporting Documentation'!$H$13)","v":""}]
[]
[null,null,"Step 6: Review this document for any missing information and, once completed, submit the Application. Please ensure that any supporting documentation is submitted."]
[null,null,"Step 7: Comply with any additional requests and await for SRP/the Program Administrator to provide details about the required commissioning information, documentation, and associated M&V data."]
[null,null,"Step 8: Provide project invoice(s) and the required commissioning information and/or await the completion of any M&V data collection by SRP/the Program Administrator."]
[]
[null,null,"Completed Application may also be sent to:"]
[null,null,"SRP Business Solutions Custom Program"]
[null,null,"3100 W Ray Rd, Suite 230"]
[null,null,"Chandler, AZ 85226"]
[null,null,"Fax: (480) 345-7601"]
[null,null,"Email: savewithsrpbiz@srpnet.com "]
[]
[null,null,"For More Information about the SRP Business Solutions Custom Program, measure eligibility, rebates, or other SRP programs please contact us:"]
[]
[null,null,"Online at:","www.savewithsrpbiz.com"]
[null,null,"By phone:","(602) 236 – 3054 "]
[null,null,"Email: ","savewithsrpbiz@srpnet.com"]

{"sheet":"Customer Information","index":1,"n_rows":39,"n_cols":67,"rows_kept":39,"cut":false,"hidden":false,"merged":[[38,2,39,29],[30,57,30,59],[31,44,31,48],[31,49,31,52],[31,53,31,56],[31,57,31,59],[32,57,32,59],[32,44,32,56],[0,61,0,63],[2,27,3,59],[4,28,4,49],[4,50,4,59],[5,50,5,59],[7,2,7,29],[7,32,7,51],[7,61,7,62],[8,2,8,9],[8,10,8,29],[8,44,8,53],[8,61,8,62],[9,2,9,9],[10,44,10,53],[9,61,9,62],[10,2,10,9],[10,10,10,29],[11,44,11,53],[10,61,10,62],[9,44,9,53],[9,10,9,23],[9,24,9,29],[11,2,11,9],[11,10,11,29],[17,2,17,9],[17,10,17,29],[18,2,18,9],[18,10,18,18],[12,44,12,53],[11,61,11,62],[12,2,12,9],[12,10,12,18],[12,19,12,22],[12,23,12,29],[18,19,18,22],[18,23,18,29],[18,32,18,59],[15,2,15,29],[16,2,16,9],[16,10,16,29],[13,44,13,53],[12,61,12,62],[13,2,13,9],[13,10,13,29],[13,61,13,62],[16,61,16,62],[15,61,15,62],[14,44,14,53],[15,44,16,53],[21,2,21,9],[21,10,21,29],[21,32,21,37],[21,38,21,41],[21,42,21,53],[21,54,21,59],[19,54,19,59],[20,2,20,9],[20,10,20,17],[20,18,20,29],[20,32,20,37],[20,38,20,41],[20,42,20,53],[20,54,20,59],[19,2,19,9],[19,10,19,21],[19,22,19,29],[19,32,19,37],[19,38,19,47],[19,48,19,53],[34,2,34,9],[34,10,34,21],[34,22,34,29],[23,2,23,29],[31,2,31,29],[24,2,24,17],[24,18,24,29],[32,2,32,17],[32,18,32,29],[25,10,25,29],[33,2,33,17],[33,18,33,29],[26,2,26,9],[23,32,23,59],[25,33,25,42],[26,10,26,29],[26,33,26,42],[24,44,24,48],[24,49,24,52],[24,53,24,56],[24,57,24,59],[25,44,25,48],[25,49,25,52],[25,53,25,56],[25,57,25,59],[26,44,26,48],[26,49,26,52],[26,53,26,56],[26,57,26,59],[27,57,27,59],[28,44,28,48],[28,49,28,52],[28,53,28,56],[28,57,28,59],[29,44,29,48],[29,49,29,52],[29,53,29,56],[29,57,29,59],[31,38,31,41],[31,42,31,43],[27,44,27,48],[27,49,27,52],[27,53,27,56],[29,33,29,42],[30,32,30,35],[30,36,30,37],[30,38,30,41],[30,42,30,43],[30,44,30,48],[30,49,30,52],[30,53,30,56],[37,19,37,22],[37,23,37,29],[3,61,3,62],[28,2,28,9],[28,10,28,21],[28,22,28,29],[36,2,36,9],[36,10,36,29],[29,2,29,9],[29,10,29,17],[29,18,29,29],[37,2,37,9],[37,10,37,18],[27,2,27,9],[27,10,27,18],[27,19,27,22],[27,23,27,29],[35,2,35,9],[35,10,35,29],[25,2,25,9],[27,33,27,42],[28,33,28,42],[31,32,31,35],[31,36,31,37],[8,32,8,43],[9,32,9,43],[10,32,10,43],[11,32,11,43],[12,32,12,43],[13,32,13,43],[14,32,14,43],[15,32,16,43],[2,66,2,67],[3,66,3,67],[4,66,4,67],[5,66,5,67]]}
[null,{"$f":"'Customer Information'!$AY$5 & \" - \" & 'Customer Information'!$AY$6","v":"FY27.1.0 - Version 20260501"},null,null,null,null,null,null,null,null,null,null,null,null,null,null,null,null,null,null,null,null,null,null,null,null,null,null,null,null,null,null,null,null,null,null,null,null,null,null,null,null,null,null,null,null,null,null,null,null,null,null,null,null,null,null,null,null,null,null,null,"HIDE"]
[]
[null,null,null,null,null,null,null,null,null,null,null,null,null,null,null,null,null,null,null,null,null,null,null,null,null,null,null,{"$f":"CONCATENATE(LEFT(Version_ID,4),\" SRP Business Solutions Custom Program\")","v":"FY27 SRP Business Solutions Custom Program"},null,null,null,null,null,null,null,null,null,null,null,null,null,null,null,null,null,null,null,null,null,null,null,null,null,null,null,null,null,null,null,null,null,null,null,null,null,null,"Legend"]
[null,null,null,null,null,null,null,null,null,null,null,null,null,null,null,null,null,null,null,null,null,null,null,null,null,null,null,null,null,null,null,null,null,null,null,null,null,null,null,null,null,null,null,null,null,null,null,null,null,null,null,null,null,null,null,null,null,null,null,null,null,"Complete?",null,{"$f":"IF(AND($BL$8:$BL$14),\"Complete\",\"MI: \" & INDIRECT(\"'Customer Information'!BJ\" & MATCH(FALSE,$BL$8:$BL$14,0) + 7))","v":"MI: Project Information"},null,null,"Required"]
[null,null,null,null,null,null,null,null,null,null,null,null,null,null,null,null,null,null,null,null,null,null,null,null,null,null,null,null,{"$f":"IF(ProjectType=\"\",\"Rebate Application\",ProjectType)","v":"Rebate Application"},null,null,null,null,null,null,null,null,null,null,null,null,null,null,null,null,null,null,null,null,null,{"$f":"Version_ID","v":"FY27.1.0"},null,null,null,null,null,null,null,null,null,null,null,null,null,null,null,"Optional"]
[null,null,null,null,null,null,null,null,null,null,null,null,null,null,null,null,null,null,null,null,null,null,null,null,null,null,null,null,null,null,null,null,null,null,null,null,null,null,null,null,null,null,null,null,null,null,null,null,null,null,{"$f":"Date_ID","v":"Version 20260501"},null,null,null,null,null,null,null,null,null,null,null,null,null,null,null,"Not fillable"]
[]
[null,null,"Project Information",null,null,null,null,null,null,null,null,null,null,null,null,null,null,null,null,null,null,null,null,null,null,null,null,null,null,null,null,null,"Processing Information",null,null,null,null,null,null,null,null,null,null,null,null,null,null,null,null,null,null,null,null,null,null,null,null,null,null,null,null,"Project Information",null,{"$f":"COUNTA($K$9:$AD$14)=8","v":false}]
[null,null,"Project Name",null,null,null,null,null,null,null,null,null,null,null,null,null,null,null,null,null,null,null,null,null,null,null,null,null,null,null,null,null,"SRP Project ID",null,null,null,null,null,null,null,null,null,null,null,null,null,null,null,null,null,null,null,null,null,null,null,null,null,null,null,null,"Participant Information",null,{"$f":"COUNTA($K$17:$AD$22)=10","v":false}]
[null,null,"Project Type",null,null,null,null,null,null,null,"Rebate Application",null,null,null,null,null,null,null,null,null,null,null,null,null,"Preliminary",null,null,null,null,null,null,null,"Project Creation Date",null,null,null,null,null,null,null,null,null,null,null,null,null,null,null,null,null,null,null,null,null,null,null,null,null,null,null,null,"Installer Information",null,{"$f":"IF(ProjectType=\"Rebate Application\",IF($S$25=\"Yes\",COUNTA($K$26:$AD$30)=1,COUNTA($K$26:$AD$30)=9),TRUE)","v":false}]
[null,null,"Business Name",null,null,null,null,null,null,null,null,null,null,null,null,null,null,null,null,null,null,null,null,null,null,null,null,null,null,null,null,null,"Application Prepared by",null,null,null,null,null,null,null,null,null,null,null,null,null,null,null,null,null,null,null,null,null,null,null,null,null,null,null,null,"Payee Information",null,{"$f":"IF(OR(ISNUMBER(SEARCH(\"Final\",Project_Type,1)),ISNUMBER(SEARCH(\"New Construction\",Project_Type,1))),AND(RebateAddressedTo<>\"\",CheckMemo<>\"\",OR(RebateAddressedTo<>\"Other: Please Specify\",COUNTA($K$35:$AD$38)=7)),TRUE)","v":true}]
[null,null,"Installation Address",null,null,null,null,null,null,null,null,null,null,null,null,null,null,null,null,null,null,null,null,null,null,null,null,null,null,null,null,null,{"$f":"IF(ProjectType=\"Rebate Application - Final\",\"Installation Date\",\"Estimated Installation Date\")","v":"Estimated Installation Date"},null,null,null,null,null,null,null,null,null,null,null,null,null,null,null,null,null,null,null,null,null,null,null,null,null,null,null,null,"Processing Information",null,{"$f":"IF(OR(AND(ProjectType=\"Rebate Application\",ProjectStage=\"Final\"),ProjectStage=\"New Construction\"),COUNTA($AS$11:$BB$17)>=6,IF(ISNUMBER(FIND(\"Assessment\",ProjectType,1)),COUNTA($AS$11:$BB$17)>=4,COUNTA($AS$11:$BB$17)>=5))","v":false}]
[null,null,"City, State, Zip",null,null,null,null,null,null,null,null,null,null,null,null,null,null,null,null,"AZ",null,null,null,null,null,null,null,null,null,null,null,null,"Invoice Date",null,null,null,null,null,null,null,null,null,null,null,null,null,null,null,null,null,null,null,null,null,null,null,null,null,null,null,null,"Facility Information",null,{"$f":"COUNTA($AG$20:$BH$22)=12","v":false}]
[null,null,"SRP Account Number",null,null,null,null,null,null,null,null,null,null,null,null,null,null,null,null,null,null,null,null,null,null,null,null,null,null,null,null,null,"How did you hear about us?",null,null,null,null,null,null,null,null,null,null,null,null,null,null,null,null,null,null,null,null,null,null,null,null,null,null,null,null,"Operating Schedule",null,{"$f":"COUNTA($AG$25:$BH$33)=31","v":false}]
[null,null,null,null,null,null,null,null,null,null,null,null,null,null,null,null,null,null,null,null,null,null,null,null,null,null,null,null,null,null,null,null,"Do you have a Sustainability Plan?"]
[null,null,"Participant Information",null,null,null,null,null,null,null,null,null,null,null,null,null,null,null,null,null,null,null,null,null,null,null,null,null,null,null,null,null,"Did this project help you with part of your Plan?",null,null,null,null,null,null,null,null,null,null,null,null,null,null,null,null,null,null,null,null,null,null,null,null,null,null,null,null,"Project Type",null,{"$f":"IF(ProjectType=\"\",\"\",IF(ProjectType=\"Rebate Application\",ProjectType&\" - \"&IF(ProjectStage=\"Installed\",\"Final\",ProjectStage),ProjectType))","v":"Rebate Application - Preliminary"}]
[null,null,"Business Name",null,null,null,null,null,null,null,null,null,null,null,null,null,null,null,null,null,null,null,null,null,null,null,null,null,null,null,null,null,null,null,null,null,null,null,null,null,null,null,null,null,null,null,null,null,null,null,null,null,null,null,null,null,null,null,null,null,null,"ASHRAE Facility Type",null,{"$f":"IFERROR(IF(FacilityType=\"Office\",IF(Facility_SF>=75000,\"Office, Large\", \"Office, Small\"),VLOOKUP(FacilityType,BuildingTypeTable,2,FALSE)),\"Office, Large\")","v":"Office, Large"}]
[null,null,"Address"]
[null,null,"City, State, Zip",null,null,null,null,null,null,null,null,null,null,null,null,null,null,null,null,null,null,null,null,null,null,null,null,null,null,null,null,null,"Facility Information"]
[null,null,"Contact, Title",null,null,null,null,null,null,null,null,null,null,null,null,null,null,null,null,null,null,null,null,null,null,null,null,null,null,null,null,null,"Facility Type",null,null,null,null,null,null,null,null,null,null,null,null,null,null,null,"Facility Sq. Ft."]
[null,null,"Phone, Email",null,null,null,null,null,null,null,null,null,null,null,null,null,null,null,null,null,null,null,null,null,null,null,null,null,null,null,null,null,"# of Floors",null,null,null,null,null,null,null,null,null,"Percent Conditioned"]
[null,null,"Participant Is",null,null,null,null,null,null,null,null,null,null,null,null,null,null,null,null,null,null,null,null,null,null,null,null,null,null,null,null,null,"Year Built",null,null,null,null,null,null,null,null,null,"SRP Billing Rate"]
[]
[null,null,"Installer/Trade Ally Information",null,null,null,null,null,null,null,null,null,null,null,null,null,null,null,null,null,null,null,null,null,null,null,null,null,null,null,null,null,"Operating Schedule"]
[null,null,"Self-Installed (No Trade Ally)?",null,null,null,null,null,null,null,null,null,null,null,null,null,null,null,null,null,null,null,null,null,null,null,null,null,null,null,null,null,null,null,null,null,null,null,null,null,null,null,null,null,"Day of Week",null,null,null,null,"Start",null,null,null,"Stop",null,null,null,"Op Hrs"]
[null,null,"Business Name",null,null,null,null,null,null,null,null,null,null,null,null,null,null,null,null,null,null,null,null,null,null,null,null,null,null,null,null,null,null,"Weeks Per Year",null,null,null,null,null,null,null,null,null,null,"Monday",null,null,null,null,null,null,null,null,null,null,null,null,{"$f":"IF(BB26>=AX26,BB26-AX26,(24-AX26)+BB26)","v":0}]
[null,null,"Address",null,null,null,null,null,null,null,null,null,null,null,null,null,null,null,null,null,null,null,null,null,null,null,null,null,null,null,null,null,null,null,null,null,null,null,null,null,null,null,null,null,"Tuesday",null,null,null,null,null,null,null,null,null,null,null,null,{"$f":"IF(BB27>=AX27,BB27-AX27,(24-AX27)+BB27)","v":0}]
[null,null,"City, State, Zip",null,null,null,null,null,null,null,null,null,null,null,null,null,null,null,null,null,null,null,null,null,null,null,null,null,null,null,null,null,null,"Number of Holidays",null,null,null,null,null,null,null,null,null,null,"Wednesday",null,null,null,null,null,null,null,null,null,null,null,null,0]
[null,null,"Contact, Title",null,null,null,null,null,null,null,null,null,null,null,null,null,null,null,null,null,null,null,null,null,null,null,null,null,null,null,null,null,null,null,null,null,null,null,null,null,null,null,null,null,"Thursday",null,null,null,null,null,null,null,null,null,null,null,null,0]
[null,null,"Phone, Email",null,null,null,null,null,null,null,null,null,null,null,null,null,null,null,null,null,null,null,null,null,null,null,null,null,null,null,null,null,null,"Temperature Setpoints",null,null,null,null,null,null,null,null,null,null,"Friday",null,null,null,null,null,null,null,null,null,null,null,null,0]
[null,null,null,null,null,null,null,null,null,null,null,null,null,null,null,null,null,null,null,null,null,null,null,null,null,null,null,null,null,null,null,null,"Occ Clg",null,null,null,null,null,"Unocc Clg",null,null,null,null,null,"Saturday",null,null,null,null,null,null,null,null,null,null,null,null,0]
[null,null,"Rebate Payee Information",null,null,null,null,null,null,null,null,null,null,null,null,null,null,null,null,null,null,null,null,null,null,null,null,null,null,null,null,null,"Occ Htg",null,null,null,null,null,"Unocc Htg",null,null,null,null,null,"Sunday",null,null,null,null,null,null,null,null,null,null,null,null,0]
[null,null,"Rebate Should be Addressed To",null,null,null,null,null,null,null,null,null,null,null,null,null,null,null,null,null,null,null,null,null,null,null,null,null,null,null,null,null,null,null,null,null,null,null,null,null,null,null,null,null,"Total",null,null,null,null,null,null,null,null,null,null,null,null,{"$f":"ROUND(SUM($BF$26:$BH$32)/7*$AH27/52*365-$AH$29*SUM($BF$26:$BH$30)/5,0)","v":0}]
[null,null,"Rebate Check Memo (30 characters or less)"]
[null,null,"Attention, Phone"]
[null,null,"Business Name"]
[null,null,"Address"]
[null,null,"City, State, Zip"]
[null,null," Payment of rebates is subject to Customer's continued compliance with the current fiscal year's Program Terms and Conditions signed by the customer. Customer may request a copy of its signed Terms and Conditions by submitting a request to the SRP Business Solutions Program Administrators (Resource Innovations)."]

{"sheet":"Terms & Conditions","index":2,"n_rows":221,"n_cols":20,"rows_kept":221,"cut":false,"hidden":false,"merged":[[0,1,0,18],[146,3,155,17],[156,3,162,17],[163,3,168,17],[169,3,171,17],[75,4,76,17],[77,4,77,17],[78,3,78,17],[79,3,86,17],[113,3,120,17],[79,19,86,22],[87,3,93,17],[39,19,42,22],[43,5,43,17],[44,5,44,17],[45,5,48,17],[49,4,51,17],[52,4,53,17],[54,5,57,17],[58,5,59,17],[60,4,61,17],[62,3,65,17],[39,5,42,17],[66,3,68,17],[69,4,72,17],[73,4,74,17],[26,19,26,22],[1,19,1,22],[5,2,5,17],[6,2,6,17],[38,4,38,17],[36,3,37,17],[7,2,12,17],[13,3,16,17],[17,3,24,17],[25,3,25,17],[26,3,26,17],[27,3,29,17],[30,3,30,5],[30,6,30,17],[30,19,30,22],[31,3,35,17],[206,9,206,14],[206,16,206,17],[94,3,98,17],[99,3,107,17],[108,3,112,17],[192,3,193,17],[194,3,194,17],[172,3,174,17],[175,3,182,17],[183,3,187,17],[189,2,189,17],[191,2,191,17],[200,2,200,10],[121,3,129,17],[130,3,139,17],[140,3,145,17],[217,4,217,15],[218,4,218,15],[219,4,219,15],[220,4,220,15],[200,12,200,17],[205,16,205,17],[205,9,205,14],[205,2,205,7],[201,12,201,17],[201,2,201,10],[208,2,209,17],[215,4,215,15],[216,4,216,15],[212,2,213,17],[211,2,211,17],[206,2,206,7]]}
[null,"This document is also available to sign through DocuSign. Reach out to a program representative to start the process."]
[null,{"$f":"'Customer Information'!$AY$5 & \" - \" & 'Customer Information'!$AY$6","v":"FY27.1.0 - Version 20260501"},null,null,null,null,null,null,null,null,null,null,null,null,null,null,null,null,null,"HIDE"]
[]
[null,null,{"$f":"LEFT('Customer Information'!AY5,4) & \" SRP Business Solutions Standard and Custom Program\"","v":"FY27 SRP Business Solutions Standard and Custom Program"},null,null,null,null,null,null,null,null,null,null,null,null,null,null,"Terms and Conditions"]
[]
[null,null,"TERMS AND CONDITIONS"]
[]
[null,null,"Salt River Project (“SRP”) offers the SRP Business Solutions Standard Program (“Standard Program”) and SRP Business Solutions Custom Program (“Custom Program”) (each generally referred to as “Program”) to provide customers with rebates to facilitate the installation of qualifying energy efficient equipment. These Terms and Conditions set forth terms governing a customer’s participation in the Program selected by customer. By signing below, the customer named in the Customer Signature section (“Customer”) is agreeing to comply with and be bound by these Terms and Conditions for the Program selected by Customer."]
[]
[]
[]
[]
[]
[null,null,"1.","Program Administrator: SRP has contracted Resource Innovations, Inc. (“RI”) to act as the Program Administrator and authorizes RI to administer the SRP Business Solutions programs including, but not limited to, such activities: review, processing, and approval of customer applications; pre and post inspections of customer facilities and project information requests from customer; measurement and verification activities; and issuing rebate checks."]
[]
[]
[]
[null,null,"2.","Alliance Participants: As a convenience to customers, SRP provides a list of contractors, engineers, architects, distributors, manufacturers, and other organizations that may assist customers with SRP programs (“EEA Member”).  In addition, some EEA Members have been approved to assist customers under certain SRP programs (“Qualified Service Provider” or “QSP”) (EEA Members and QSPs collectively referred to as “Alliance Participants”). Customer acknowledges that Alliance Participants are independent contractors with respect to the SRP programs and are not authorized to make representations or incur obligations on behalf of SRP. Participation as an Alliance Participant does not constitute an endorsement by SRP, nor does it certify or guarantee the quality of work performed. SRP is not responsible if an Alliance Participant or other contractor, retailer, vendor or other party provides you with inaccurate information about the amount or conditions of an SRP program."]
[]
[]
[]
[]
[]
[]
[]
[null,null,"3.","Program Term: Funds are limited and applications to the Program are accepted on a first-come, first-served basis. "]
[null,null,null,{"$f":"SUBSTITUTE(SUBSTITUTE(SUBSTITUTE($T27,\"XX\",MID(Ref!$B$1,3,2),1),\"YYYY\",2000+MID(Ref!$B$1,3,2)-1,1),\"ZZZZ\",2000+MID(Ref!$B$1,3,2),1)","v":"The FY27 Program is effective from May 1, 2026 through April 30, 2027 (“Program Term”)."},null,null,null,null,null,null,null,null,null,null,null,null,null,null,null,"The FYXX Program is effective from May 1, YYYY through April 30, ZZZZ (“Program Term”)."]
[null,null,"4.","Customer Eligibility: To be eligible for the Program, Customer must be a current SRP non-residential retail electric customer and meet the customer eligibility requirements outlined in the SRP Business Solutions Standard Program Manual and SRP Business Solutions Custom Program Manual."]
[]
[]
[null,null,"5.","Program Manual:",null,null,{"$f":"SUBSTITUTE(SUBSTITUTE($T31,\"XX\",MID(Ref!$B$1,3,2),1),\"XX\",MID(Ref!$B$1,3,2),1)","v":"The FY27 SRP Business Solutions Standard Program Manual and FY27 SRP Business"},null,null,null,null,null,null,null,null,null,null,null,null,"The FYXX SRP Business Solutions Standard Program Manual and FYXX SRP Business"]
[null,null,null,"Solutions Custom Program Manual (each respectively, “Program Manual”) describe in detail the customer and equipment eligibility requirements, rebate information, and program participation process for customers participating in the Program. Customer must read and comply with the Program Manual for the Program applied to available at https://www.savewithsrpbiz.com/contractortools/rebateapplicationsanddocuments.aspx and incorporated herein by reference."]
[]
[]
[]
[]
[null,null,"6.","Program Participation Process: To be considered for participation in the Program and to qualify for rebates through the Program, Customer must complete the following:"]
[]
[null,null,null,"a.","Customer must"]
[null,null,null,null,"1.",{"$f":"SUBSTITUTE($T40,\"XX\",MID(Ref!$B$1,3,2),1)","v":"Submit a completed FY27 SRP Business Solutions Application (“Rebate Application”) for each installation address. All information provided by Customer in the Rebate Application, including, but not limited to, attachments, must be accurate and complete, and Customer shall notify SRP and RI immediately of any changes to the information."},null,null,null,null,null,null,null,null,null,null,null,null,null,"Submit a completed FYXX SRP Business Solutions Application (“Rebate Application”) for each installation address. All information provided by Customer in the Rebate Application, including, but not limited to, attachments, must be accurate and complete, and Customer shall notify SRP and RI immediately of any changes to the information."]
[]
[]
[]
[null,null,null,null,"2.","Sign and submit these Program Terms and Conditions,"]
[null,null,null,null,"3.","Provide all requested supplemental documentation,"]
[null,null,null,null,"4.","Provide a valid and signed W-9 form. Customers receiving the benefit of Business Solutions incentives, in an amount of $600 or more per calendar year, whether paid directly to the customer or assigned by the customer to a third party, will be issued a Form 1099 unless the customer is a corporation or otherwise exempt under the IRS regulations."]
[]
[]
[]
[null,null,null,"b.","For the Custom Program: Eligible customers approved by SRP to receive preliminary and technical assessments will be notified by SRP and must secure pre-authorizations for these assessments before engaging a Program approved QSP to perform the assessments to be reimbursed by the program."]
[]
[]
[null,null,null,"c.","For the Custom Program and the Standard Program (but only as to Lighting portion): To be considered for equipment rebates, Customer must"]
[]
[null,null,null,null,"1.","Obtain SRP’s pre-approval in writing prior to purchasing or installing energy efficiency equipment. Customers who purchase, install, or sign a purchase order agreeing to purchase or install equipment prior to receiving pre-approval in writing of their Rebate Application from SRP will not be eligible for rebates under the Program."]
[]
[]
[]
[null,null,null,null,"2.","Once Customer has received pre-approval in writing from SRP, Customer may purchase, install and commission qualifying equipment as specified in the Program Manual and/or as instructed by SRP."]
[]
[null,null,null,"d.","Failure to provide or complete any of the requested information or Program steps may result in denial of the application, even if work has commenced."]
[]
[null,null,"7.","Rebate Application: Customer understands that submission of an application, even if correct and complete, does not guarantee that Customer will receive a rebate. Failure to complete or provide any of the required information, including, but not limited to, signatures, forms, or other requested documentation, may result in the return of the Rebate Application."]
[]
[]
[]
[null,null,"8.","Program Rebates: The Program offers service and equipment rebates as outlined in the Program Manual. Payment of any rebate is subject to Customer’s satisfactory completion of all Program requirements and compliance with these Terms and Conditions."]
[]
[]
[null,null,null,"a.","Final approved equipment rebates may exceed the amount reserved in the Rebate Application approval letter only when funds remain in the program budget and no projects have been placed on a waitlist for Program participation.  In no instance will the rebate amount issued exceed the rebate amount reserved by more than 150% for the Custom Program and 120% for the Standard Program."]
[]
[]
[]
[null,null,null,"b.","Qualifying equipment as defined in the Program Manual receiving rebates under the Program may not receive purchase and installation rebates or credits under any other SRP programs."]
[]
[null,null,null,"c.","One rebate check will be issued per approved Rebate Application to the Customer specified on the application or the authorized third-party assignee specified by Customer, as applicable."]
[]
[null,null,null,"d.","For the Custom Program only: All service rebates will be paid directly to the QSPs."]
[null,null,"9.","Rebate Caps: Equipment rebates under the Custom Program are capped at 75% of the customer’s eligible project"]
[null,null,null,{"$f":"SUBSTITUTE($T80,\"XX\",MID(Ref!$B$1,3,2),1)","v":"incremental cost. Equipment rebates under the Standard Program are capped at 100% of the customer’s invoiced cost. SRP allows customers to participate in multiple programs subject to an annual rebate cap, which is the maximum rebate amount a customer is eligible to be paid for the Program Term. For FY27, the rebate cap is $300,000 per customer for all SRP Business Solutions programs in aggregate. A customer may be a holder of a single account, multiple accounts in aggregate or corporate accounts. For purposes of rebate caps, a customer who is the holder of multiple accounts or corporate accounts with a single SRP customer identification number will be considered a single customer. An organization of this type can participate in multiple SRP programs, but will be subject to any applicable customer rebate caps. SRP retains the right to make final determination of customer eligibility."},null,null,null,null,null,null,null,null,null,null,null,null,null,null,null,"incremental cost. Equipment rebates under the Standard Program are capped at 100% of the customer’s invoiced cost. SRP allows customers to participate in multiple programs subject to an annual rebate cap, which is the maximum rebate amount a customer is eligible to be paid for the Program Term. For FYXX, the rebate cap is $300,000 per customer for all SRP Business Solutions programs in aggregate. A customer may be a holder of a single account, multiple accounts in aggregate or corporate accounts. For purposes of rebate caps, a customer who is the holder of multiple accounts or corporate accounts with a single SRP customer identification number will be considered a single customer. An organization of this type can participate in multiple SRP programs, but will be subject to any applicable customer rebate caps. SRP retains the right to make final determination of customer eligibility."]
[]
[]
[]
[]
[]
[]
[]
[null,null,"10.","Right to Inspect: SRP reserves the right to inspect the installed equipment for compliance with the Program requirements. Inspection may include a telephone survey, site visit, and/or the installation of temporary monitoring equipment at any time up to two years after installation for quality control. Within 14 days of the request, Customer shall allow SRP and RI reasonable access to and egress from the installation site during normal business hours, and make available at least one person familiar with the facility and measures installed.  If selected for inspection, the rebate will be withheld pending outcome of the inspection. If the equipment is found to be in compliance with Program requirements, the rebate will be paid. If the equipment is not in compliance, Customer will be notified."]
[]
[]
[]
[]
[]
[]
[null,null,"11.","Hazardous Materials: SRP, RI, and their respective agents, employees, and contractors shall not have any responsibility for the discovery, presence, handling, removal, or disposal of or exposure of persons to hazardous materials of any kind in connection with Customer's facility, including without limitation, asbestos, asbestos products, PCBs, or other toxic substances. Customer shall dispose of replaced equipment in accordance with local, state, or federal codes and regulations and cannot reinstall the equipment in another location."]
[]
[]
[]
[]
[null,null,"12.","Energy Benefits: In exchange for any approved equipment and/or service rebates for energy efficiency measures, Customer hereby sells, transfers and conveys to SRP all Environmental Attributes and Environmental Attributes Reporting Rights, as such terms are defined below, associated with the energy savings attributable to the qualifying measure(s) or its operation. “Environmental Attributes” means those aspects, claims, characteristics and benefits of avoided energy use associated with the qualifying measure(s), as well as any and all fuel, emissions, air quality, or other environmental characteristics, including, but not limited to, white and green energy tags, renewable energy credits, energy efficiency credits, carbon credits, or certificates attributable to the energy savings or avoided use associated with the qualifying measure(s). \"Environmental Attributes Reporting Rights\" means all rights to report ownership of the Environmental Attributes to any person or entity under Section 1605(b) of the Energy Policy Act of 1992, any successor or replacement statutes, or otherwise."]
[]
[]
[]
[]
[]
[]
[]
[]
[null,null,"13.","Compliance with Law: Customer, at its own expense, is responsible for meeting all requirements and complying with all local and state laws and codes concerning the Program, including without limitation, the installation and maintenance of eligible equipment. Customer shall, at its own expense, obtain and maintain licenses and permits needed to install eligible equipment. Failure to obtain and maintain necessary licenses and permits constitutes a material breach of Customer’s obligations under these Terms and Conditions."]
[]
[]
[]
[]
[null,null,"14.","Project Installations: Customer acknowledges that while the Program may provide rebates supporting the installation of qualifying equipment and related measures, energy assessments and identification of energy efficiency opportunities available at the Customer’s facility, neither SRP nor RI will install or implement such equipment or measures and the installation of and implementation of any qualifying equipment or measures will be carried out by the contractor working with Customer. Responsibility for delivery and workmanship related to any equipment or services procured by the Customer exclusively rests with the contractor or retailer selected by Customer. SRP and RI assume no responsibility for oversight of contractor services or for any claims the Customer might have against the contractor, the manufacturer, or the retailer with regard to the energy efficiency services or measures implemented under the Program."]
[]
[]
[]
[]
[]
[]
[]
[null,null,"15.","No Warranties: Customer shall independently evaluate any advice or direction given by SRP or RI related to estimates of energy savings or the cost, selection or installation of energy efficiency measures. Customer is solely responsible for the selection of equipment or measures to be installed or implemented. SRP and RI make no representations and provide no warranty or guaranty with respect to the design, manufacture, construction, safety, potential energy or cost savings, performance or effectiveness of any equipment installed, measures implemented, and/or services rendered by any person or entity in connection with the Program. SRP AND RI DISCLAIM ALL WARRANTIES, EXPRESS OR IMPLIED, TO THE MAXIMUM EXTENT PERMITTED UNDER LAW, WHETHER STATUTORY OR OTHERWISE, INCLUDING WITHOUT LIMITATION ANY WARRANTIES OF MERCHANTABILITY OR FITNESS FOR A PARTICULAR PURPOSE, USE, ENERGY SAVINGS, APPLICATION AND NON-INFRINGEMENT."]
[]
[]
[]
[]
[]
[]
[]
[]
[null,null,"16.","Customer Information: By signing below, Customer hereby authorizes and acknowledges that SRP may disclose Customer’s information relating to a Rebate Application (including, but not limited to, the entirety of its contents), and any other information related to the Customer’s participation in the Program including, but not limited to, customer contact information, account information and billing data, energy usage, and tax identification numbers, to RI and Alliance Participants, as applicable, and any other third party utilized by SRP for the purposes of processing the Customer’s application; to confirm eligibility for participation in the Program; to verify or audit program records or system installation, operation and results; to issue payment on behalf of the Program; to monitor compliance with Program requirements and terms; or as required to comply with state and/or federal law, fraud prevention, regulation, and other legal action. In those cases, SRP, RI, Alliance Participant, and authorized third parties shall comply with all legal requirements of the jurisdiction of the individual whose data would be disclosed before making such disclosure."]
[]
[]
[]
[]
[]
[]
[]
[]
[]
[null,null,"17.","Fraud: Any person who knowingly files an application containing any materially false information or who purposely or misleadingly conceals information subjects such person to criminal and civil penalties. Any and all funds determined to have been acquired on the basis of inaccurate or fraudulent information must be returned to SRP.  Any customer found to be engaged in fraudulent activity or misrepresentation of any kind will be removed from the Program. This section shall not limit other remedies that may be available for the filing of a false or fraudulent application, including, but not limited to, referral to law enforcement authorities."]
[]
[]
[]
[]
[]
[null,null,"18.","Limitation of Liability: To the fullest extent allowed by law, SRP and RI’s total liability, regardless of the number of claims, is limited to the amount of the rebate payment approved in accordance with Program requirements, and SRP, RI, and their respective governing bodies’ members, officers, employees, contractors, and agents shall not be liable to the Customer or any other individual or entity for any other obligations. Notwithstanding anything in these Terms and Conditions to the contrary, SRP, RI, and their respective governing bodies’ members, officers, employees, contractors, and agents shall not be liable hereunder for any type of damages, whether indirect, special, incidental, consequential, exemplary, reliance or punitive (even if advised of the possibility of such damages), including, without limitation, loss of use or loss of profits, regardless of the form of action whether in contract, indemnity, warranty, strict liability or tort, including, without limitation, negligence of any kind. Customer waives any claims it might have against SRP, RI, and their respective governing bodies’ members, officers, employees, contractors, and agents."]
[]
[]
[]
[]
[]
[]
[]
[]
[]
[null,null,"19.","Indemnification: Customer shall defend, protect, indemnify and hold harmless SRP, RI, and their respective governing bodies’ members, officers, employees, contractors, and agents (collectively, the “Indemnified Parties”) against all claims, losses, expenses (including, but not limited to, attorneys’ fees and expenses), damages, demands, judgments, causes of action, suits, costs and liability of every kind and character whatsoever (\"Claims\") arising out of or incident to, or related in any way to, directly or indirectly, Customer’s participation in the  Program; provided however, that Customer shall not be required to indemnify and hold harmless any Indemnified Party against claims adjudicated to have been caused by an Indemnified Party’s gross negligence or willful misconduct."]
[]
[]
[]
[]
[]
[]
[null,null,"20.","Taxable Income: Customer acknowledges that receipt of any rebate pursuant to the Program may result in taxable income to the Customer, even if Customer does not directly receive a payment, and that Customer is solely responsible for payment and reporting with respect to Customer’s taxes. Customer should consult his or her own tax advisor with respect to the tax treatment of rebates provided pursuant to the Program. Nothing in these Terms and Conditions is intended to constitute tax advice and cannot be used for the purpose of avoiding penalties under the Internal Revenue Code."]
[]
[]
[]
[]
[]
[null,null,"21.","Attorneys' Fees: If arbitration or litigation is commenced by either party to enforce or interpret any of the provisions of these Terms and Conditions, the prevailing party shall be entitled to recover reasonable costs and attorneys' fees at the arbitration, at trial, on appeal, and on any petition for review."]
[]
[]
[null,null,"22.","Disputes/Governing Law: These Terms and Conditions shall be exclusively governed by and interpreted in accordance with the laws of the state of Arizona without regard to conflicts of law principles. Any litigation between the parties shall be prosecuted only in the state or federal courts of the state of Arizona."]
[]
[]
[null,null,"23.","Program Changes: SRP reserves the right to modify, update, and amend the terms and conditions of the Program, including, but not limited to, making adjustments to incentive amounts, qualifying measures, and changing or cancelling the Program by providing notice to Customer at the Customer’s primary contact’s email address provided in Customer’s Rebate Application. Material changes will only be effective if Customer communicates its assent directly or indirectly by the acceptance of a payment or other Program benefits or by failing to terminate these Terms and Conditions within ten (10) business days of its receipt of notice of the proposed amendment, update or modification. Pre-approved applications, for which the applicant has completed all Program requirements, will be processed to completion under the terms and conditions in effect at the time of the pre-approval by SRP. Sections 10-23 will survive the termination of these Terms and Conditions and remain in full force and effect."]
[]
[]
[]
[]
[]
[]
[]
[null,null,"24.","Entire Agreement: The terms and conditions set forth herein, including, but not limited to, any and all attachments and incorporated references, constitute a complete statement of the terms and conditions applicable to the Program and supersede all prior representations or understandings, whether written or oral, with regard to such subject matter. SRP and RI shall not be bound by or be liable for any statement, representation, promise, inducement or understanding of any kind that is not set forth herein."]
[]
[]
[]
[]
[]
[null,null,"CUSTOMER ACCEPTANCE AND SIGNATURE"]
[]
[null,null,"Under penalties of perjury, I hereby certify by my signature below that:"]
[null,null,"1.","As the representative of Customer, I have the authority to bind Customer to these Terms and Conditions and sign on Customer’s behalf;"]
[]
[null,null,"2.","I have read, understand, and agree to be bound by these Terms and Conditions."]
[]
[]
[]
[]
[]
[null,null,{"$f":"IF(Project_Name=\"\",\"\",Project_Name)","v":""},null,null,null,null,null,null,null,null,null,{"$f":"IF(Project_AcctNum=\"\",\"\",Project_AcctNum)","v":""}]
[null,null,"Customer ",null,null,null,null,null,null,null,null,null,"Customer Bill Account Number"]
[]
[]
[]
[]
[null,null,"Printed Name & Title",null,null,null,null,null,null,"Customer Representative signature",null,null,null,null,null,null,"Date"]
[]
[null,null,"(Ink signature or digital signature required. Contact a program representative if you would like the form sent to you so you can sign it digitally.)"]
[]
[]
[null,null,"W-9 Tax Form Link:"]
[null,null,"This link redirects you to the webpage with the location of the W-9 form on the IRS website. The form has to be downloaded and filled as part of the application. Click here to access IRS website to download a copy of the W-9 form."]
[]
[]
[null,null,null,null,"SEND COMPLETED FORMS TO:"]
[null,null,null,null,"SRP Business Solutions Programs"]
[null,null,null,null,"3100 W Ray Road, Suite 230"]
[null,null,null,null,"Chandler, AZ 85226"]
[null,null,null,null,"Fax: (480) 345-7601"]
[null,null,null,null,"Email: savewithsrpbiz@srpnet.com"]

{"sheet":"Payment Assignment","index":3,"n_rows":55,"n_cols":20,"rows_kept":55,"cut":false,"hidden":true,"merged":[[0,1,0,18],[18,2,18,10],[18,11,18,13],[18,14,18,15],[18,16,18,17],[9,2,9,17],[10,2,15,17],[1,19,1,22],[5,2,5,17],[6,2,6,8],[6,9,7,14],[6,15,7,17],[7,2,7,8],[10,19,15,22],[16,2,16,17],[17,2,17,17],[28,3,28,17],[19,2,19,10],[19,11,19,13],[19,14,19,15],[19,16,19,17],[20,2,20,10],[20,11,20,17],[21,2,21,10],[21,11,21,17],[23,2,23,17],[25,2,25,17],[26,3,27,17],[49,4,49,15],[34,2,34,10],[34,12,34,17],[35,2,35,10],[35,12,35,17],[39,2,39,7],[39,9,39,14],[39,16,39,17],[40,2,40,7],[40,9,40,14],[40,16,40,17],[42,2,43,17],[45,2,47,17],[50,4,50,15],[51,4,51,15],[52,4,52,15],[53,4,53,15],[54,4,54,15]]}
[null,"This document is also available to sign through DocuSign. Reach out to a program representative to start the process."]
[null,{"$f":"'Customer Information'!$AY$5 & \" - \" & 'Customer Information'!$AY$6","v":"FY27.1.0 - Version 20260501"},null,null,null,null,null,null,null,null,null,null,null,null,null,null,null,null,null,"HIDE"]
[]
[null,null,{"$f":"LEFT('Customer Information'!AY5,4) & \" SRP Business Solutions\"","v":"FY27 SRP Business Solutions"},null,null,null,null,null,null,null,null,null,null,null,null,null,null,"Payment Assignment Form"]
[]
[null,null,"PROJECT INFORMATION  "]
[null,null,"Facility/Project Name & Number (if available): ",null,null,null,null,null,null,"Bill Account Number – nine digits:\n (If multiple meters at site only enter one)",null,null,null,null,null,{"$f":"IF(Project_AcctNum=\"\",\"\",Project_AcctNum)","v":""}]
[null,null,{"$f":"CONCATENATE(IF(ProjectID_DSMC=\"\",\"\",ProjectID_DSMC),\" \",IF(Project_CBSName=\"\",\"\",Project_CBSName))","v":" "}]
[]
[null,null,"PAYMENT ASSIGNMENT  (Complete only if incentive is to be assigned to someone other than participant)"]
[null,null,{"$f":"SUBSTITUTE(T11,\"XX\",MID(Version_ID,3,2),1)","v":"IN CONNECTION WITH THE FY27 SRP BUSINESS SOLUTIONS STANDARD AND CUSTOM PROGRAMS TERMS AND CONDITIONS (“TERMS AND CONDITIONS”) TO BE EXECUTED BY CUSTOMER CONTEMPORANEOUSLY HEREWITH, CUSTOMER AUTHORIZES SRP TO ISSUE THE REBATE PAYMENT TO THE THIRD PARTY NAMED BELOW AND CUSTOMER UNDERSTANDS THAT CUSTOMER WILL NOT BE RECEIVING THE REBATE PAYMENT CHECK FROM SRP. CUSTOMER ALSO UNDERSTANDS THAT ITS RELEASE OF PAYMENT TO THE THIRD PARTY DOES NOT EXEMPT CUSTOMER FROM THE REBATE REQUIREMENTS OUTLINED IN THE TERMS AND CONDITIONS AND MAY NOT AFFECT CUSTOMER’S TAX LIABILITY FOR REBATES PAID BY THE PROGRAM."},null,null,null,null,null,null,null,null,null,null,null,null,null,null,null,null,"IN CONNECTION WITH THE FYXX SRP BUSINESS SOLUTIONS STANDARD AND CUSTOM PROGRAMS TERMS AND CONDITIONS (“TERMS AND CONDITIONS”) TO BE EXECUTED BY CUSTOMER CONTEMPORANEOUSLY HEREWITH, CUSTOMER AUTHORIZES SRP TO ISSUE THE REBATE PAYMENT TO THE THIRD PARTY NAMED BELOW AND CUSTOMER UNDERSTANDS THAT CUSTOMER WILL NOT BE RECEIVING THE REBATE PAYMENT CHECK FROM SRP. CUSTOMER ALSO UNDERSTANDS THAT ITS RELEASE OF PAYMENT TO THE THIRD PARTY DOES NOT EXEMPT CUSTOMER FROM THE REBATE REQUIREMENTS OUTLINED IN THE TERMS AND CONDITIONS AND MAY NOT AFFECT CUSTOMER’S TAX LIABILITY FOR REBATES PAID BY THE PROGRAM."]
[]
[]
[]
[]
[]
[null,null,"Check should be made out to:"]
[null,null,{"$f":"IF(OR(RebateAddressedTo=\"\",RebateAddressedTo=\"Participant Address\", RebateAddressedTo=\"Installation Address\"),\"\",Payee_Name)","v":""}]
[null,null,"Mailing address:",null,null,null,null,null,null,null,null,"City:",null,null,"State:",null,"Zip:"]
[null,null,{"$f":"IF(OR(RebateAddressedTo=\"\",RebateAddressedTo=\"Participant Address\", RebateAddressedTo=\"Installation Address\"),\"\",Payee_Address1)","v":""},null,null,null,null,null,null,null,null,{"$f":"IF(OR(RebateAddressedTo=\"\",RebateAddressedTo=\"Participant Address\", RebateAddressedTo=\"Installation Address\"),\"\",Payee_Address2)","v":""},null,null,{"$f":"IF(OR(RebateAddressedTo=\"\",RebateAddressedTo=\"Participant Address\", RebateAddressedTo=\"Installation Address\"),\"\",Payee_Address3)","v":""},null,{"$f":"IF(OR(RebateAddressedTo=\"\",RebateAddressedTo=\"Participant Address\", RebateAddressedTo=\"Installation Address\"),\"\",Payee_Address4)","v":""}]
[null,null,"Contact name:",null,null,null,null,null,null,null,null,"Contact telephone:"]
[null,null,{"$f":"IF(OR(RebateAddressedTo=\"\",RebateAddressedTo=\"Participant Address\", RebateAddressedTo=\"Installation Address\"),\"\",Payee_Attn)","v":""},null,null,null,null,null,null,null,null,{"$f":"IF(OR(RebateAddressedTo=\"\",RebateAddressedTo=\"Participant Address\", RebateAddressedTo=\"Installation Address\"),\"\",Payee_Phone)","v":""}]
[]
[null,null,"CUSTOMER ACCEPTANCE AND SIGNATURE"]
[]
[null,null,"Under penalties of perjury, I hereby certify by my signature below that:"]
[null,null,"1.","As the representative of Customer, I have the authority to bind Customer to the terms provided for herein and sign on Customer’s behalf;"]
[]
[null,null,"2.","I have read, understand, and agree to be bound by the terms provided for herein."]
[]
[]
[]
[]
[]
[null,null,{"$f":"IF(Project_Name=\"\",\"\",Project_Name)","v":""},null,null,null,null,null,null,null,null,null,{"$f":"IF(Project_AcctNum=\"\",\"\",Project_AcctNum)","v":""}]
[null,null,"Customer: ",null,null,null,null,null,null,null,null,null,"Customer Bill Account Number"]
[]
[]
[]
[]
[null,null,"Printed Name & Title",null,null,null,null,null,null,"Customer Representative signature",null,null,null,null,null,null,"Date"]
[]
[null,null,"(Ink signature or digital signature required. Contact a program representative if you would like the form sent to you so you can sign it digitally.)"]
[]
[]
[null,null,"Tax Information: Customers receiving the benefit of Business Solutions incentives, in an amount of $600 or more per calendar year, whether paid directly to the customer or assigned by the customer to a third party, will be issued a Form 1099 unless the customer is a corporation or otherwise exempt under the IRS regulations."]
[]
[]
[]
[null,null,null,null,"SEND COMPLETED FORMS TO:"]
[null,null,null,null,"SRP Business Solutions Programs"]
[null,null,null,null,"3100 W Ray Road, Suite 230"]
[null,null,null,null,"Chandler, AZ 85226"]
[null,null,null,null,"Fax: (480) 345-7601"]
[null,null,null,null,"Email: savewithsrpbiz@srpnet.com"]

{"sheet":"Assessment Information","index":4,"n_rows":34,"n_cols":13,"rows_kept":34,"cut":false,"hidden":true,"merged":[[21,2,21,7],[22,2,22,7],[23,4,23,5],[23,6,23,7],[24,4,24,5],[24,6,24,7],[17,3,17,4],[17,5,17,7],[18,3,18,4],[18,5,18,7],[19,3,19,4],[19,5,19,7],[0,10,0,12],[4,2,4,7],[5,2,5,3],[5,4,5,7],[6,2,6,3],[6,4,6,7],[7,2,7,5],[7,6,7,7],[8,2,8,5],[8,6,8,7],[9,2,9,5],[9,6,9,7],[11,3,11,7],[12,3,12,7],[13,3,13,7],[16,3,16,4],[16,5,16,7],[14,3,14,7],[69,4,69,5],[69,6,69,7],[33,6,33,7],[31,6,31,7],[32,6,32,7],[31,4,31,5],[32,4,32,5],[27,6,27,7],[25,6,25,7],[26,6,26,7],[27,4,27,5],[33,4,33,5],[30,6,30,7],[28,6,28,7],[29,6,29,7],[25,4,25,5],[26,4,26,5],[28,4,28,5],[29,4,29,5],[30,4,30,5]]}
[null,{"$f":"'Customer Information'!$AY$5 & \" - \" & 'Customer Information'!$AY$6","v":"FY27.1.0 - Version 20260501"},null,null,null,null,null,null,null,null,"HIDE"]
[]
[null,null,{"$f":"'Customer Information'!$AB$3","v":"FY27 SRP Business Solutions Custom Program"},null,null,null,null,{"$f":"'Customer Information'!$AC$5","v":"Rebate Application"}]
[]
[null,null,"Assessment Information",null,null,null,null,null,null,null,"Complete?",{"$f":"IF(COUNTIFS(L7:L10,\"No Info\")<4,IF(OR(AND(AssessmentType=\"Compressed Air\",COUNTIFS(L7:L10,\"Completed\")=4),COUNTIFS(L7:L10,\"Completed\")=2),\"Completed\",\"MI: \" & INDIRECT(\"K\" & MATCH(\"Missing Information\", L7:L10,0) + 6)),\"No Info\")","v":"No Info"}]
[null,null,"Please Select Assessment Type:",null,"-- Select Assessment Type --"]
[null,null,"Requested QSP? (Optional)",null,null,null,null,null,null,null,"Assessment Information",{"$f":"IF(OR(AND(AssessmentType<>\"\",AssessmentType<>'CI Table'!$E$7),COUNTA($G$8:$H$10)>0),IF(AND(AssessmentType<>\"\",AssessmentType<>'CI Table'!$E$7,COUNTA($G$8:$H$10)=3),\"Completed\",\"Missing Information\"),\"No Info\")","v":"No Info"}]
[null,null,"What economic criteria does your business require to approve funds for a capital expense project (e.g. simple payback, minimum ROI)?",null,null,null,null,null,null,null,"Assessment Worksheet",{"$f":"IF(OR(L7<>\"No Info\",COUNTIFS($L$21:$L$71,TRUE)>0),IF(COUNTIFS($L$21:$L$71,TRUE)=COUNTIFS($M$21:$M$71,TRUE),\"Completed\",\"Missing Information\"),\"No Info\")","v":"No Info"}]
[null,null,"What level of funding is available to implement energy-efficiency projects that meet established economic criteria?",null,null,null,null,null,null,null,"Assessment Measures",{"$f":"IF(OR(L7<>\"No Info\",COUNTIFS($L$13:$L$14,TRUE)>0),IF(AND(COUNTIFS($L$13:$L$14,TRUE)>0,COUNTIFS($L$13:$L$14,TRUE)=COUNTIFS($M$13:$M$14,TRUE)),\"Completed\",\"Missing Information\"),\"No Info\")","v":"No Info"}]
[null,null,"What is the current schedule to implement projects that meet established economic criteria once identified (e.g. 1 month, 1 year)?",null,null,null,null,null,null,null,"Compressed Air Systems",{"$f":"IF(OR(AssessmentType=\"Compressed Air\",COUNTIFS($L$16:$L$18,TRUE)>0),IF(AND(COUNTIFS($L$16:$L$18,TRUE)>0,COUNTIFS($L$16:$L$18,TRUE)=COUNTIFS($M$16:$M$18,TRUE)),\"Completed\",\"Missing Information\"),\"No Info\")","v":"No Info"}]
[]
[null,null,"EEM","EEM Description",null,null,null,null,null,null,null,"Line Started?","Completed?"]
[null,1,{"$f":"\"EEM #\"&B13","v":"EEM #1"},null,null,null,null,null,null,null,null,{"$f":"D13<>\"\"","v":false},{"$f":"D13<>\"\"","v":false}]
[null,{"$f":"B13+1","v":2},{"$f":"\"EEM #\"&B14","v":"EEM #2"}]
[null,{"$f":"B14+1","v":3},{"$f":"\"EEM #\"&B15","v":"EEM #3"},null,null,null,null,null,null,null,null,true,true]
[]
[null,null,"Compressed Air System","Storage Capacity (Gallons)",null,"Compressors on this System",null,null,null,null,null,"Line Started?","Completed?"]
[null,1,"System #1",null,null,null,null,null,null,null,null,false,false]
[null,2,"System #2",null,null,null,null,null,null,null,null,false,false]
[null,3,"System #3",null,null,null,null,null,null,null,null,false,false]
[null,null,null,null,null,null,null,null,null,null,"-- Select Assessment Type --",null,10]
[null,null,{"$f":"AssessmentType","v":"-- Select Assessment Type --"},null,null,null,null,null,null,null,null,"Line Started?","Completed?"]
[null,0,null,null,null,null,null,null,null,null,null,{"$f":"OR(D25<>\"\",E25<>\"\",G25<>\"\")","v":false},{"$f":"AND(D25<>\"\",E25<>\"\",G25<>\"\")","v":false}]
[null,0,null,null,null,null,null,null,null,null,null,{"$f":"OR(D26<>\"\",E26<>\"\",G26<>\"\")","v":false},{"$f":"AND(D26<>\"\",E26<>\"\",G26<>\"\")","v":false}]
[null,0,null,null,null,null,null,null,null,null,null,false,false]
[null,0,null,null,null,null,null,null,null,null,null,false,false]
[null,0,null,null,null,null,null,null,null,null,null,false,false]
[null,0,null,null,null,null,null,null,null,null,null,false,false]
[null,0,null,null,null,null,null,null,null,null,null,false,false]
[null,0,null,null,null,null,null,null,null,null,null,false,false]
[null,0,null,null,null,null,null,null,null,null,null,false,false]
[null,0,null,null,null,null,null,null,null,null,null,false,false]
[null,0]
[null,0]

{"sheet":"Assessment Tables","index":5,"n_rows":217,"n_cols":28,"rows_kept":217,"cut":false,"hidden":true,"merged":[[166,3,166,5],[176,6,176,7],[167,3,167,5],[168,3,168,5],[169,3,169,5],[170,3,170,5],[171,3,171,5],[172,3,172,5],[173,3,173,5],[174,3,174,5],[175,3,175,5],[176,3,176,5],[171,6,171,7],[172,6,172,7],[173,6,173,7],[174,6,174,7],[175,6,175,7],[110,19,110,20],[110,21,110,22],[111,19,111,20],[111,21,111,22],[112,19,112,20],[112,21,112,22],[113,19,113,20],[113,21,113,22],[101,19,101,20],[101,21,101,22],[102,19,102,20],[102,21,102,22],[107,19,107,20],[107,21,107,22],[108,19,108,20],[108,21,108,22],[109,19,109,20],[109,21,109,22],[103,19,103,20],[103,21,103,22],[104,19,104,20],[104,21,104,22],[105,19,105,20],[105,21,105,22],[98,17,98,22],[99,19,99,20],[99,21,99,22],[100,19,100,20],[100,21,100,22],[90,19,90,20],[90,21,90,22],[91,19,91,20],[91,21,91,22],[92,19,92,20],[92,21,92,22],[93,19,93,20],[93,21,93,22],[94,19,94,20],[94,21,94,22],[87,19,87,20],[87,21,87,22],[88,19,88,20],[88,21,88,22],[89,19,89,20],[89,21,89,22],[95,19,95,20],[95,21,95,22],[97,17,97,22],[78,17,78,22],[79,17,79,22],[80,19,80,20],[80,21,80,22],[81,19,81,20],[81,21,81,22],[85,19,85,20],[85,21,85,22],[86,19,86,20],[86,21,86,22],[62,18,62,20],[62,21,62,22],[63,18,63,20],[63,21,63,22],[64,18,64,20],[64,21,64,22],[65,18,65,20],[65,21,65,22],[66,18,66,20],[66,21,66,22],[51,19,51,20],[51,21,51,22],[52,19,52,20],[52,21,52,22],[57,19,57,20],[57,21,57,22],[59,17,59,22],[60,17,60,22],[61,18,61,20],[61,21,61,22],[30,19,30,20],[30,21,30,22],[31,19,31,20],[31,21,31,22],[36,19,36,20],[36,21,36,22],[37,19,37,20],[37,21,37,22],[38,19,38,20],[38,21,38,22],[34,19,34,20],[34,21,34,22],[33,19,33,20],[33,21,33,22],[32,19,32,20],[32,21,32,22],[11,19,11,20],[11,21,11,22],[12,19,12,20],[12,21,12,22],[21,17,21,22],[22,17,22,22],[23,19,23,20],[23,21,23,22],[24,19,24,20],[24,21,24,22],[13,19,13,20],[13,21,13,22],[14,19,14,20],[14,21,14,22],[15,19,15,20],[15,21,15,22],[16,19,16,20],[16,21,16,22],[17,19,17,20],[17,21,17,22],[18,19,18,20],[18,21,18,22],[6,19,6,20],[6,21,6,22],[7,19,7,20],[7,21,7,22],[8,19,8,20],[8,21,8,22],[9,19,9,20],[9,21,9,22],[10,19,10,20],[10,21,10,22],[2,2,2,7],[3,2,3,7],[4,4,4,5],[4,6,4,7],[5,4,5,5],[5,6,5,7],[2,17,2,22],[3,17,3,22],[4,19,4,20],[4,21,4,22],[5,19,5,20],[5,21,5,22],[9,4,9,5],[9,6,9,7],[10,4,10,5],[10,6,10,7],[11,4,11,5],[11,6,11,7],[6,4,6,5],[6,6,6,7],[7,4,7,5],[7,6,7,7],[8,4,8,5],[8,6,8,7],[29,2,29,7],[30,2,30,7],[31,4,31,5],[31,6,31,7],[32,4,32,5],[32,6,32,7],[12,4,12,5],[12,6,12,7],[13,4,13,5],[13,6,13,7],[14,4,14,5],[14,6,14,7],[36,4,36,5],[36,6,36,7],[37,4,37,5],[37,6,37,7],[38,4,38,5],[38,6,38,7],[33,4,33,5],[33,6,33,7],[34,4,34,5],[34,6,34,7],[35,4,35,5],[35,6,35,7],[56,2,56,7],[57,2,57,7],[58,4,58,5],[58,6,58,7],[59,4,59,5],[59,6,59,7],[39,4,39,5],[39,6,39,7],[40,4,40,5],[40,6,40,7],[41,4,41,5],[41,6,41,7],[63,4,63,5],[63,6,63,7],[64,4,64,5],[64,6,64,7],[65,4,65,5],[65,6,65,7],[60,4,60,5],[60,6,60,7],[61,4,61,5],[61,6,61,7],[62,4,62,5],[62,6,62,7],[114,3,114,7],[115,3,115,7],[137,2,137,7],[93,3,93,5],[93,6,93,7],[110,2,110,7],[111,2,111,7],[112,3,112,7],[113,3,113,7],[142,4,142,5],[142,6,142,7],[143,4,143,5],[143,6,143,7],[144,4,144,5],[144,6,144,7],[138,2,138,7],[139,4,139,5],[139,6,139,7],[140,4,140,5],[140,6,140,7],[141,4,141,5],[141,6,141,7],[148,4,148,5],[148,6,148,7],[149,4,149,5],[149,6,149,7],[191,2,191,7],[192,2,192,7],[145,4,145,5],[145,6,145,7],[146,4,146,5],[146,6,146,7],[147,4,147,5],[147,6,147,7],[164,2,164,7],[165,2,165,7],[166,6,166,7],[167,6,167,7],[168,6,168,7],[169,6,169,7],[170,6,170,7],[177,3,177,5],[177,6,177,7],[178,3,178,5],[178,6,178,7],[179,3,179,5],[196,4,196,5],[196,6,196,7],[197,4,197,5],[197,6,197,7],[198,4,198,5],[198,6,198,7],[193,4,193,5],[193,6,193,7],[194,4,194,5],[194,6,194,7],[195,4,195,5],[195,6,195,7],[202,4,202,5],[202,6,202,7],[203,4,203,5],[203,6,203,7],[199,4,199,5],[199,6,199,7],[200,4,200,5],[200,6,200,7],[201,4,201,5],[201,6,201,7],[25,19,25,20],[25,21,25,22],[26,19,26,20],[26,21,26,22],[27,19,27,20],[27,21,27,22],[28,19,28,20],[28,21,28,22],[29,19,29,20],[29,21,29,22],[90,3,90,5],[90,6,90,7],[91,3,91,5],[91,6,91,7],[92,3,92,5],[92,6,92,7],[87,3,87,5],[87,6,87,7],[88,3,88,5],[88,6,88,7],[89,3,89,5],[89,6,89,7],[83,2,83,7],[84,2,84,7],[85,3,85,5],[85,6,85,7],[86,3,86,5],[86,6,86,7],[66,4,66,5],[66,6,66,7],[82,21,82,22],[83,21,83,22],[84,21,84,22],[82,19,82,20],[83,19,83,20],[84,19,84,20],[67,4,67,5],[67,6,67,7],[68,4,68,5],[68,6,68,7],[67,18,67,20],[67,21,67,22],[68,18,68,20],[68,21,68,22],[69,18,69,20],[69,21,69,22],[106,19,106,20],[106,21,106,22],[35,19,35,20],[35,21,35,22],[43,19,43,20],[43,21,43,22],[44,19,44,20],[44,21,44,22],[45,19,45,20],[45,21,45,22],[46,19,46,20],[46,21,46,22],[47,19,47,20],[47,21,47,22],[48,19,48,20],[48,21,48,22],[49,19,49,20],[49,21,49,22],[40,17,40,22],[41,17,41,22],[42,19,42,20],[42,21,42,22],[50,19,50,20],[50,21,50,22],[184,3,184,5],[184,6,184,7],[185,3,185,5],[185,6,185,7],[186,3,186,5],[186,6,186,7],[179,6,179,7],[180,3,180,5],[180,6,180,7],[181,3,181,5],[181,6,181,7],[182,3,182,5],[182,6,182,7],[183,3,183,5],[183,6,183,7]]}
["Preliminary Assessments",null,null,null,null,null,null,null,null,null,null,null,null,null,null,"Technical Assessments"]
[]
[null,null,"-- Select Assessment Type --",null,null,null,null,null,null,null,null,null,null,null,null,1,null,"-- Select Assessment Type --"]
[1,0,null,null,null,null,null,null,null,null,null,null,10,null,null,2,0]
[2,0,null,null,null,null,null,null,null,null,null,"Line Started?","Completed?",null,null,3,0,null,null,null,null,null,null,null,null,null,"Line Started?","Completed?"]
[3,0,null,null,null,null,null,null,null,null,null,{"$f":"OR(D6<>\"\",E6<>\"\",G6<>\"\")","v":false},{"$f":"AND(D6<>\"\",E6<>\"\",G6<>\"\")","v":false},null,null,4,0,null,null,null,null,null,null,null,null,null,{"$f":"OR(S6<>\"\",T6<>\"\",V6<>\"\")","v":false},{"$f":"AND(S6<>\"\",T6<>\"\",V6<>\"\")","v":false}]
[4,0,null,null,null,null,null,null,null,null,null,{"$f":"OR(D7<>\"\",E7<>\"\",G7<>\"\")","v":false},{"$f":"AND(D7<>\"\",E7<>\"\",G7<>\"\")","v":false},null,null,5,0]
[5,0,null,null,null,null,null,null,null,null,null,false,false,null,null,6,0]
[6,0,null,null,null,null,null,null,null,null,null,false,false,null,null,7,0]
[7,0,null,null,null,null,null,null,null,null,null,false,false,null,null,8,0]
[8,0,null,null,null,null,null,null,null,null,null,false,false,null,null,9,0]
[9,0,null,null,null,null,null,null,null,null,null,false,false,null,null,10,0]
[10,0,null,null,null,null,null,null,null,null,null,false,false,null,null,11,0]
[11,0,null,null,null,null,null,null,null,null,null,false,false,null,null,12,0]
[12,0,null,null,null,null,null,null,null,null,null,false,false,null,null,13,0]
[13,null,null,null,null,null,null,null,null,null,null,null,null,null,null,14,0]
[14,null,null,null,null,null,null,null,null,null,null,null,null,null,null,15,0]
[15,null,null,null,null,null,null,null,null,null,null,null,null,null,null,16,0]
[16,null,null,null,null,null,null,null,null,null,null,null,null,null,null,17,0]
[17,null,null,null,null,null,null,null,null,null,null,null,null,null,null,18]
[18]
[19,null,null,null,null,null,null,null,null,null,null,null,null,null,null,1,null,"Pumping System"]
[20,null,null,null,null,null,null,null,null,null,null,null,null,null,null,2,0,"Complete the below section only if the measure is a pumping system improvement AND a Preliminary Assessment was not performed on the facility because SRP approved a bypass of the Preliminary Assessment. ",null,null,null,null,null,null,null,"Pumping System",null,8]
[21,null,null,null,null,null,null,null,null,null,null,null,null,null,null,3,1,"Equipment",{"$f":"\"Pump #\" &$Q24","v":"Pump #1"},{"$f":"\"Pump #\" &$Q24+1","v":"Pump #2"},{"$f":"\"Pump #\" &$Q24","v":"Pump #1"},{"$f":"\"Pump #\" &$Q24+2","v":"Pump #3"},"Pump #1",null,null,null,"Line Started?","Completed?"]
[22,null,null,null,null,null,null,null,null,null,null,null,null,null,null,4,1,"Pump Power \n(HP)",null,null,null,null,null,null,null,{"$f":"Q24*3-2","v":1},{"$f":"COUNTA(S25:S31)>0","v":false},{"$f":"COUNTA(S25:S31)=7","v":false}]
[23,null,null,null,null,null,null,null,null,null,null,null,null,null,null,5,1,"Pump Type\n (Centrifugal, Turbine, etc.)",null,null,null,null,null,null,null,{"$f":"Q24*3-1","v":2},{"$f":"COUNTA(T25:U31)>0","v":false},{"$f":"COUNTA(T25:U31)=7","v":false}]
[24,null,null,null,null,null,null,null,null,null,null,null,null,null,null,6,1,"Discharge Pressure\n(PSIG)",null,null,null,null,null,null,null,{"$f":"Q24*3","v":3},{"$f":"COUNTA(V25:W31)>0","v":false},{"$f":"COUNTA(V25:W31)=7","v":false}]
[25,null,null,null,null,null,null,null,null,null,null,null,null,null,null,7,1,"Avg. Estimated Flow\n(GPM)"]
[null,null,null,null,null,null,null,null,null,null,null,null,null,null,null,8,1,"End Use \n(Irrigation, Booster, etc.)"]
[null,null,"Pump Test",null,null,null,null,null,null,null,null,null,null,null,null,9,1,"Operating Hours "]
[1,0,"Available for operational and active pumping systems for non-HVAC applications (municipal, agricultural, or industrial), with a motor greater than or equal to 25 HP (not including backup units). Evaluates existing pump system efficiency and identifies potential energy efficiency measures for eligible pumps. Customers with eligible pumping systems can receive multiple assessments on unique systems. Only one SRP funded test is allowed per pump system in a 23 month period.",null,null,null,null,null,null,null,"Pump Test",null,10,null,null,10,1,"Quantity"]
[2,0,"Equipment","Pump Size (HP)","End Use ",null,"Annual Operating Hours",null,null,null,null,"Line Started?","Completed?",null,null,11]
[3,1,{"$f":"\"Pump #\" & B33","v":"Pump #1"},null,null,null,null,null,null,null,null,{"$f":"OR(D33<>\"\",E33<>\"\",G33<>\"\")","v":false},{"$f":"AND(D33<>\"\",E33<>\"\",G33<>\"\")","v":false},null,null,12]
[4,2,{"$f":"\"Pump #\" & B34","v":"Pump #2"},null,null,null,null,null,null,null,null,{"$f":"OR(D34<>\"\",E34<>\"\",G34<>\"\")","v":false},{"$f":"AND(D34<>\"\",E34<>\"\",G34<>\"\")","v":false},null,null,13]
[5,3,"Pump #3",null,null,null,null,null,null,null,null,false,false,null,null,14]
[6,4,"Pump #4",null,null,null,null,null,null,null,null,false,false,null,null,15]
[7,5,"Pump #5",null,null,null,null,null,null,null,null,false,false,null,null,16]
[8,6,"Pump #6",null,null,null,null,null,null,null,null,false,false,null,null,17]
[9,7,"Pump #7",null,null,null,null,null,null,null,null,false,false,null,null,18]
[10,8,"Pump #8",null,null,null,null,null,null,null,null,false,false]
[11,9,"Pump #9",null,null,null,null,null,null,null,null,false,false,null,null,1,null,"Compressed Air"]
[12,10,"Pump #10",null,null,null,null,null,null,null,null,false,false,null,null,2,0,"Complete the below section only if the measure is a compressed air system improvement AND a Preliminary Assessment was not performed on the facility because SRP approved a bypass of the Preliminary Assessment. ",null,null,null,null,null,null,null,"Compressed Air",null,11]
[13,null,null,null,null,null,null,null,null,null,null,null,null,null,null,3,1,"Equipment",{"$f":"\"Compressor #\" & Q43*3-2","v":"Compressor #1"},{"$f":"\"Compressor #\" &Q43*3-1","v":"Compressor #2"},{"$f":"\"Compressor #\" &$Q43","v":"Compressor #1"},{"$f":"\"Compressor #\" &Q43*3","v":"Compressor #3"},"Compressor #1",null,null,null,"Line Started?","Completed?"]
[14,null,null,null,null,null,null,null,null,null,null,null,null,null,null,4,1,"Manufacturer",null,null,null,null,null,null,null,{"$f":"Q43*3-2","v":1},{"$f":"COUNTA(S44:S53)>0","v":false},{"$f":"COUNTA(S44:S53)=10","v":false}]
[15,null,null,null,null,null,null,null,null,null,null,null,null,null,null,5,1,"Model Number",null,null,null,null,null,null,null,{"$f":"Q43*3-1","v":2},{"$f":"COUNTA(T44:U53)>0","v":false},{"$f":"COUNTA(T44:U53)=10","v":false}]
[16,null,null,null,null,null,null,null,null,null,null,null,null,null,null,6,1,"Compressor Age",null,null,null,null,null,null,null,{"$f":"Q43*3","v":3},{"$f":"COUNTA(V44:W53)>0","v":false},{"$f":"COUNTA(V44:W53)=10","v":false}]
[17,null,null,null,null,null,null,null,null,null,null,null,null,null,null,7,1,"Compressor Type\n(reciprocating, screw, etc.)"]
[18,null,null,null,null,null,null,null,null,null,null,null,null,null,null,8,1,"Compressor Power\n(BHP)"]
[19,null,null,null,null,null,null,null,null,null,null,null,null,null,null,9,1,"Compressor FAD\n(CFM)"]
[20,null,null,null,null,null,null,null,null,null,null,null,null,null,null,10,1,"Heat Rejection Type\n(Air or Water-cooled)"]
[21,null,null,null,null,null,null,null,null,null,null,null,null,null,null,11,1,"Discharge Pressure\n(PSIG)"]
[22,null,null,null,null,null,null,null,null,null,null,null,null,null,null,12,1,"Duty Type\n(Active or Backup)"]
[23,null,null,null,null,null,null,null,null,null,null,null,null,null,null,13,1,"Operating Hours"]
[24,null,null,null,null,null,null,null,null,null,null,null,null,null,null,14]
[25,null,null,null,null,null,null,null,null,null,null,null,null,null,null,15]
[null,null,null,null,null,null,null,null,null,null,null,null,null,null,null,16]
[null,null,"Compressed Air",null,null,null,null,null,null,null,null,null,null,null,null,17]
[1,0,"Available for operational and active compressed air system greater than or equal to 100 HP (not including backup units). Evaluates and identifies potential energy efficiency measures within eligible compressed air systems. A report is provided containing an initial evaluation of energy savings and economic feasibility criteria.",null,null,null,null,null,null,null,"Compressed Air",null,10,null,null,18]
[2,0,"Equipment","Compressor Size (HP)","Active or Backup?",null,"Annual Operating Hours",null,null,null,null,"Line Started?","Completed?"]
[3,1,{"$f":"\"Compressor #\" & B60","v":"Compressor #1"},null,null,null,null,null,null,null,{"$f":"B60","v":1},{"$f":"OR(D60<>\"\",E60<>\"\",G60<>\"\")","v":false},{"$f":"AND(D60<>\"\",E60<>\"\",G60<>\"\")","v":false},null,null,1,null,"Data Center"]
[4,2,{"$f":"\"Compressor #\" & B61","v":"Compressor #2"},null,null,null,null,null,null,null,{"$f":"B61","v":2},{"$f":"OR(D61<>\"\",E61<>\"\",G61<>\"\")","v":false},{"$f":"AND(D61<>\"\",E61<>\"\",G61<>\"\")","v":false},null,null,2,0,"Complete the below section only if the measure is a data center improvement AND a Preliminary Assessment was not performed on the facility because SRP approved a bypass of the Preliminary Assessment. ",null,null,null,null,null,null,null,"Data Center",null,9]
[5,3,"Compressor #3",null,null,null,null,null,null,null,3,false,false,null,null,3,0,"Parameter","Value",null,null,"Units",null,null,null,null,"Line Started?","Completed?"]
[6,4,"Compressor #4",null,null,null,null,null,null,null,4,false,false,null,null,4,0,"Total UPS Load",null,null,null,"kVA",null,null,null,{"$f":"Q62","v":0},{"$f":"COUNTA(S63:U70)>0","v":false},{"$f":"COUNTA(S63:U70)=8","v":false}]
[7,5,"Compressor #5",null,null,null,null,null,null,null,5,false,false,null,null,5,0,"Data Center Area",null,null,null,"Sq. Ft. "]
[8,6,"Compressor #6",null,null,null,null,null,null,null,6,false,false,null,null,6,0,"UPS Load Factor",null,null,null,"%"]
[9,7,"Compressor #7",null,null,null,null,null,null,null,7,false,false,null,null,7,0,"Cooling System Type"]
[10,8,"Compressor #8",null,null,null,null,null,null,null,8,false,false,null,null,8,0,"Cooling System Capacity",null,null,null,"Tons"]
[11,9,"Compressor #9",null,null,null,null,null,null,null,9,false,false,null,null,9,0,"Airflow Containment"]
[12,10,"Compressor #10",null,null,null,null,null,null,null,10,false,false,null,null,10,0,"Humidification"]
[13,null,null,null,null,null,null,null,null,null,null,null,null,null,null,11,0,"Economizer "]
[14,null,null,null,null,null,null,null,null,null,null,null,null,null,null,12]
[15,null,null,null,null,null,null,null,null,null,null,null,null,null,null,13]
[16,null,null,null,null,null,null,null,null,null,null,null,null,null,null,14]
[17,null,null,null,null,null,null,null,null,null,null,null,null,null,null,15]
[18,null,null,null,null,null,null,null,null,null,null,null,null,null,null,16]
[19,null,null,null,null,null,null,null,null,null,null,null,null,null,null,17]
[20,null,null,null,null,null,null,null,null,null,null,null,null,null,null,18]
[21]
[22,null,null,null,null,null,null,null,null,null,null,null,null,null,null,1,null,"Energy Efficiency Measure"]
[23,null,null,null,null,null,null,null,null,null,null,null,null,null,null,2,0,"Available for eligible Large General Service SRP Price Plans:E-61, E-63, E-65, or E-66. Evaluates and prioritize complex energy efficiency projects within a predefined scope. A report is provided containing an initial evaluation of energy savings and economic feasibility criteria.",null,null,null,null,null,null,null,"EEM",null,11]
[24,null,null,null,null,null,null,null,null,null,null,null,null,null,null,3,1,"Equipment",{"$f":"\"Measure #\"& Q81*3-2","v":"Measure #1"},{"$f":"\"Measure #\"& Q81*3-1","v":"Measure #2"},{"$f":"\"Measure #\"& $Q81","v":"Measure #1"},{"$f":"\"Measure #\"& Q81*3","v":"Measure #3"},"Measure #1",null,null,null,"Line Started?","Completed?"]
[25,null,null,null,null,null,null,null,null,null,null,null,null,null,null,4,1,"Estimated Install Date",null,null,null,null,null,null,null,{"$f":"$B81*3-2","v":-2},{"$f":"COUNTA(S82:S88)>0","v":false},{"$f":"COUNTA(S82:S88)=7","v":false}]
[null,null,null,null,null,null,null,null,null,null,null,null,null,null,null,5,1,"Est. Baseline Usage\n (kWh/yr)",null,null,null,null,null,null,null,{"$f":"$B81*3-1","v":-1},{"$f":"COUNTA(T82:U88)>0","v":false},{"$f":"COUNTA(T82:T88)=7","v":false}]
[null,null,"Data Center",null,null,null,null,null,null,null,null,null,null,null,null,6,1,"Est. Post Retrofit Usage\n (kWh/yr)",null,null,null,null,null,null,null,{"$f":"$B81*3","v":0},{"$f":"COUNTA(V82:W88)>0","v":false},{"$f":"COUNTA(V82:V88)=7","v":false}]
[1,0,"Available for data centers greater than 1,000 Sq.Ft. with dedicated cooling equipment. Evaluates and identifies potential energy efficiency measures within eligible data centers. A report is provided containing an initial evaluation of energy savings and economic feasibility criteria.",null,null,null,null,null,null,null,"Data Center",null,8,null,null,7,1,"Est. Savings\n(kWh/yr)"]
[2,1,"Parameter","Value",null,null,"Units",null,null,null,null,"Line Started?","Completed?",null,null,8,1,"Est. Operating Hours"]
[3,1,"Total UPS Load",null,null,null,"kVA",null,null,null,{"$f":"B86","v":1},{"$f":"COUNTA(D87:F94)>0","v":false},{"$f":"COUNTA(D87:F94)=8","v":false},null,null,9,1,"Est. Installation Cost"]
[4,2,"Data Center Area",null,null,null,"Sq. Ft. ",null,null,null,null,null,null,null,null,10,1,"Est. Rebate"]
[5,3,"UPS Load Factor",null,null,null,"%",null,null,null,null,null,null,null,null,11]
[6,4,"Cooling System Type",null,null,null,null,null,null,null,null,null,null,null,null,12]
[7,5,"Cooling System Capacity",null,null,null,"Tons",null,null,null,null,null,null,null,null,13]
[8,6,"Airflow Containment",null,null,null,null,null,null,null,null,null,null,null,null,14]
[9,7,"Humidification",null,null,null,null,null,null,null,null,null,null,null,null,15]
[10,8,"Economizer ",null,null,null,null,null,null,null,null,null,null,null,null,16]
[11,null,null,null,null,null,null,null,null,null,null,null,null,null,null,17]
[12,null,null,null,null,null,null,null,null,null,null,null,null,null,null,18]
[13]
[14,null,null,null,null,null,null,null,null,null,null,null,null,null,null,1,null,"-- Select Assessment Type --"]
[15,null,null,null,null,null,null,null,null,null,null,null,null,null,null,2,0,null,null,null,null,null,null,null,null,"-- Select Assessment Type --",null,11]
[16,null,null,null,null,null,null,null,null,null,null,null,null,null,null,3,0,null,null,null,null,null,null,null,null,null,"Line Started?","Completed?"]
[17,null,null,null,null,null,null,null,null,null,null,null,null,null,null,4,0,null,null,null,null,null,null,null,null,null,false,false]
[18,null,null,null,null,null,null,null,null,null,null,null,null,null,null,5,0]
[19,null,null,null,null,null,null,null,null,null,null,null,null,null,null,6,0]
[20,null,null,null,null,null,null,null,null,null,null,null,null,null,null,7,0]
[21,null,null,null,null,null,null,null,null,null,null,null,null,null,null,8,0]
[22,null,null,null,null,null,null,null,null,null,null,null,null,null,null,9,0]
[23,null,null,null,null,null,null,null,null,null,null,null,null,null,null,10,0]
[24,null,null,null,null,null,null,null,null,null,null,null,null,null,null,11,0]
[25,null,null,null,null,null,null,null,null,null,null,null,null,null,null,12,0]
[null,null,null,null,null,null,null,null,null,null,null,null,null,null,null,13,0]
[null,null,"Energy Efficiency Measure",null,null,null,null,null,null,null,null,null,null,null,null,14,0]
[1,0,"Available for eligible Large General Service SRP Price Plans:E-61, E-63, E-65, or E-66. Evaluates and prioritize complex energy efficiency projects within a predefined scope. A report is provided containing an initial evaluation of energy savings and economic feasibility criteria.",null,null,null,null,null,null,null,"EEM",null,3,null,null,15,0]
[2,0,"Measure","Measure Description",null,null,null,null,null,null,null,"Line Started?","Completed?",null,null,16,0]
[3,1,{"$f":"\"Measure #\" & B114","v":"Measure #1"},null,null,null,null,null,null,null,{"$f":"B114","v":1},{"$f":"OR(D114<>\"\")","v":false},{"$f":"AND(D114<>\"\")","v":false},null,null,17,0]
[4,2,{"$f":"\"Measure #\" & B115","v":"Measure #2"},null,null,null,null,null,null,null,{"$f":"B115","v":2},{"$f":"OR(D115<>\"\")","v":false},{"$f":"AND(D115<>\"\")","v":false},null,null,18]
[5,3,"Measure #3",null,null,null,null,null,null,null,{"$f":"B116","v":3},false,false]
[6]
[7]
[8]
[9]
[10]
[11]
[12]
[13]
[14]
[15]
[16]
[17]
[18]
[19]
[20]
[21]
[22]
[23]
[24]
[25]
[]
[null,null,"Compressed Air: Leak Assessment"]
[1,0,"Available for operational and active compressed air system greater than or equal to 25  HP (not including backup units) and less than 100 HP. Identifies compressed air leaks and their economic impacts. Customers with eligible compressed air systems can receive multiple assessments on unique systems. One SRP funded leak assessment is allowed per compressed air system in a 23 month period.",null,null,null,null,null,null,null,"Compressed Air: Leak Assessment",null,10]
[2,0,"Equipment","Compressor Power (HP)","Active or Backup?",null,"Annual Operating Hours",null,null,null,null,"Line Started?","Completed?"]
[3,1,{"$f":"\"Compressor #\" & B141","v":"Compressor #1"},null,null,null,null,null,null,null,{"$f":"B141","v":1},{"$f":"OR(D141<>\"\",E141<>\"\",G141<>\"\")","v":false},{"$f":"AND(D141<>\"\",E141<>\"\",G141<>\"\")","v":false}]
[4,2,{"$f":"\"Compressor #\" & B142","v":"Compressor #2"},null,null,null,null,null,null,null,{"$f":"B142","v":2},{"$f":"OR(D142<>\"\",E142<>\"\",G142<>\"\")","v":false},{"$f":"AND(D142<>\"\",E142<>\"\",G142<>\"\")","v":false}]
[5,3,"Compressor #3",null,null,null,null,null,null,null,3,false,false]
[6,4,"Compressor #4",null,null,null,null,null,null,null,4,false,false]
[7,5,"Compressor #5",null,null,null,null,null,null,null,5,false,false]
[8,6,"Compressor #6",null,null,null,null,null,null,null,6,false,false]
[9,7,"Compressor #7",null,null,null,null,null,null,null,7,false,false]
[10,8,"Compressor #8",null,null,null,null,null,null,null,8,false,false]
[11,9,"Compressor #9",null,null,null,null,null,null,null,9,false,false]
[12,10,"Compressor #10",null,null,null,null,null,null,null,10,false,false]
[13]
[14]
[15]
[16]
[17]
[18]
[19]
[20]
[21]
[22]
[23]
[24]
[25]
[]
[null,null,"EnergyStar (ES) Benchmark"]
[1,0,"Available for sites with a valid Energy Star Portfolio building type where facilities are at least 15,000 sq. ft. or use 300,000 kWh annually (limited to one building per customer per program year without SRP approval). Bonus rebates are awarded for the first time a facility scores 75 or greater (this can be for an initial score or for customers with demonstrated projects implemented to improve a previous score).",null,null,null,null,null,null,null,"EnergyStar (ES) Benchmark",null,20]
[2,0,"Parameter","Value",null,null,"Units",null,null,null,null,"Line Started?","Completed?"]
[3,0,null,null,null,null,null,null,null,null,null,{"$f":"OR(D168<>\"\",E168<>\"\",G168<>\"\")","v":false},{"$f":"AND(D168<>\"\",E168<>\"\",G168<>\"\")","v":false}]
[4,0,null,null,null,null,null,null,null,null,null,{"$f":"OR(D169<>\"\",E169<>\"\",G169<>\"\")","v":false},{"$f":"AND(D169<>\"\",E169<>\"\",G169<>\"\")","v":false}]
[5,0,null,null,null,null,null,null,null,null,null,false,false]
[6,0,null,null,null,null,null,null,null,null,null,false,false]
[7,0,null,null,null,null,null,null,null,null,null,false,false]
[8,0,null,null,null,null,null,null,null,null,null,false,false]
[9,0,null,null,null,null,null,null,null,null,null,false,false]
[10,0,null,null,null,null,null,null,null,null,null,false,false]
[11,0,null,null,null,null,null,null,null,null,null,false,false]
[12,0,null,null,null,null,null,null,null,null,null,false,false]
[13,null,null,null,null,null,null,null,null,null,null,false,false]
[14,null,null,null,null,null,null,null,null,null,null,false,false]
[15,null,null,null,null,null,null,null,null,null,null,false,false]
[16,null,null,null,null,null,null,null,null,null,null,false,false]
[17,null,null,null,null,null,null,null,null,null,null,false,false]
[18,null,null,null,null,null,null,null,null,null,null,false,false]
[19,null,null,null,null,null,null,null,null,null,null,false,false]
[20,null,null,null,null,null,null,null,null,null,null,false,false]
[21,null,null,null,null,null,null,null,null,null,null,false,false]
[22,null,null,null,null,null,null,null,null,null,null,false,false]
[23]
[24]
[25]
[]
[null,null,"-- Select Assessment Type --"]
[1,0,null,null,null,null,null,null,null,null,"-- Select Assessment Type --",null,10]
[2,0,null,null,null,null,null,null,null,null,null,"Line Started?","Completed?"]
[3,0,null,null,null,null,null,null,null,null,null,{"$f":"OR(D195<>\"\",E195<>\"\",G195<>\"\")","v":false},{"$f":"AND(D195<>\"\",E195<>\"\",G195<>\"\")","v":false}]
[4,0,null,null,null,null,null,null,null,null,null,{"$f":"OR(D196<>\"\",E196<>\"\",G196<>\"\")","v":false},{"$f":"AND(D196<>\"\",E196<>\"\",G196<>\"\")","v":false}]
[5,0,null,null,null,null,null,null,null,null,null,false,false]
[6,0,null,null,null,null,null,null,null,null,null,false,false]
[7,0,null,null,null,null,null,null,null,null,null,false,false]
[8,0,null,null,null,null,null,null,null,null,null,false,false]
[9,0,null,null,null,null,null,null,null,null,null,false,false]
[10,0,null,null,null,null,null,null,null,null,null,false,false]
[11,0,null,null,null,null,null,null,null,null,null,false,false]
[12,0,null,null,null,null,null,null,null,null,null,false,false]
[13]
[14]
[15]
[16]
[17]
[18]
[19]
[20]
[21]
[22]
[23]
[24]
[25]

{"sheet":"Project Information","index":6,"n_rows":65,"n_cols":14,"rows_kept":65,"cut":false,"hidden":false,"merged":[[4,2,4,8],[18,4,18,7],[28,4,28,7],[59,6,59,7],[60,6,60,7],[40,6,40,7],[49,6,49,7],[46,2,46,8],[58,4,58,7],[53,3,53,4],[50,6,50,7],[43,3,43,4],[48,4,48,7],[41,4,41,5],[42,4,42,5],[8,4,8,7],[30,6,30,7],[33,3,33,4],[11,4,11,5],[14,4,14,5],[31,4,31,5],[19,6,19,7],[23,3,23,4],[16,2,16,8],[26,2,26,8],[17,4,17,5],[0,10,1,13],[20,6,20,7],[4,10,4,11],[5,10,5,11],[6,10,6,11],[7,10,7,11],[3,10,3,11],[5,2,5,8],[9,6,9,7],[10,6,10,7],[6,2,6,8],[7,4,7,5],[9,3,9,5],[10,3,10,5],[12,4,12,5],[13,3,13,4],[39,6,39,7],[64,4,64,5],[61,4,61,5],[62,4,62,5],[59,3,59,5],[60,3,60,5],[63,3,63,4],[57,4,57,5],[54,4,54,5],[51,4,51,5],[52,4,52,5],[49,3,49,5],[50,3,50,5],[56,2,56,8],[47,4,47,5],[44,4,44,5],[39,3,39,5],[40,3,40,5],[30,3,30,5],[29,3,29,5],[19,3,19,5],[27,4,27,5],[24,4,24,5],[21,4,21,5],[22,4,22,5],[20,3,20,5],[32,4,32,5],[38,4,38,7],[36,2,36,8],[29,6,29,7],[37,4,37,5],[34,4,34,5]]}
[null,{"$f":"'Customer Information'!$AY$5 & \" - \" & 'Customer Information'!$AY$6","v":"FY27.1.0 - Version 20260501"},null,null,null,null,null,null,null,null,"HIDE"]
[]
[null,null,{"$f":"'Customer Information'!$AB$3","v":"FY27 SRP Business Solutions Custom Program"},null,null,null,null,null,{"$f":"'Customer Information'!$AC$5","v":"Rebate Application"}]
[null,null,null,null,null,null,null,null,null,null,"Complete?",null,{"$f":"IF(COUNTIFS($M$5:$M$10,\"No Info\")=6,\"MI: Project Information\",IF(COUNTIFS($M$5:$M$10,\"Missing Information\")=0,\"Complete\",\"MI: \" & INDIRECT(\"K\" & MATCH(\"Missing Information\",$M$5:$M$10,0)+4)))","v":"MI: Project Information"},"Rebate"]
[null,null,"Custom Rebate Worksheet",null,null,null,null,null,null,null,"EEM 1",null,{"$f":"IF(AND($E$8<>\"\",$H$8<>\"\",$E$9<>\"\",$D$11<>\"\",$G$11<>\"\",$E$12>0,$H$12>0,$E$13>0,$H$13>0,$H$14>0,$E$15>0),\"Complete\",IF(OR($E$8<>\"\",$H$8<>\"\",$E$9<>\"\",$D$11<>\"\",$G$11<>\"\",$E$12<>\"\",$H$12<>\"\",$E$13<>\"\",$H$13<>\"\",$H$14<>\"\",$E$15<>\"\"),\"Missing Information\",\"No Info\"))","v":"No Info"},{"$f":"IFERROR(IF(M5=\"No Info\",\"\",ROUND(MIN(300000,EEM1_kWh*Ref!$F$15+EEM1_kW*Ref!$F$16,EEM1_IncrCost*0.75),2)),\"Missing Data\")","v":""}]
[null,null,{"$f":"IF('Customer Information'!K10=\"Rebate Application - Preliminary\",\"Please complete the fields below for each proposed measure. Highlighted fields are required in order for the application to be considered 'Complete'.\",\"Please complete the fields below for each proposed measure. Highlighted fields are required in order for the application to be considered 'Complete'. Update the Project Information section if there has been a reduction in the scope of work.\")","v":"Please complete the fields below for each proposed measure. Highlighted fields are required in order for the application to be considered 'Complete'. Update the Project Information section if there has been a reduction in the scope of work."},null,null,null,null,null,null,null,"EEM 2",false,{"$f":"IF(AND($E$18<>\"\",$H$18<>\"\",$E$19<>\"\",$D$21<>\"\",$G$21<>\"\",$E$22<>\"\",$H$22<>\"\",$E$23<>\"\",$H$23<>\"\",$H$24<>\"\",$E$25<>\"\"),\"Complete\",IF(OR($E$18<>\"\",$H$18<>\"\",$E$19<>\"\",$D$21<>\"\",$G$21<>\"\",$E$22<>\"\",$H$22<>\"\",$E$23<>\"\",$H$23<>\"\",$H$24<>\"\",$E$25<>\"\"),\"Missing Information\",\"No Info\"))","v":"No Info"},{"$f":"IFERROR(IF(M6=\"No Info\",\"\",ROUND(IF(SUM($N$5:N5)>300000,0,MIN(300000-SUM($N$5:N5),EEM2_kWh*Ref!$F$15+EEM2_kW*Ref!$F$16,EEM2_IncrCost*0.75)),2)),\"Missing Data\")","v":""}]
[null,null,"Measure 1",null,null,null,null,null,null,null,"EEM 3",null,{"$f":"IF(AND($E$28<>\"\",$H$28<>\"\",$E$29<>\"\",$D$31<>\"\",$G$31<>\"\",$E$32<>\"\",$H$32<>\"\",$E$33<>\"\",$H$33<>\"\",$H$34<>\"\",$E$35<>\"\"),\"Complete\",IF(OR($E$28<>\"\",$H$28<>\"\",$E$29<>\"\",$D$31<>\"\",$G$31<>\"\",$E$32<>\"\",$H$32<>\"\",$E$33<>\"\",$H$33<>\"\",$H$34<>\"\",$E$35<>\"\"),\"Missing Information\",\"No Info\"))","v":"No Info"},{"$f":"IFERROR(IF(M7=\"No Info\",\"\",ROUND(IF(SUM($N$5:N6)>300000,0,MIN(300000-SUM($N$5:N6),EEM3_kWh*Ref!$F$15+EEM3_kW*Ref!$F$16,EEM3_IncrCost*0.75)),2)),\"Missing Data\")","v":""}]
[null,null,null,"Project Type",null,null,"Estimated Install Date",null,null,null,"EEM 4",null,{"$f":"IF(AND($E$38<>\"\",$H$38<>\"\",$E$39<>\"\",$D$41<>\"\",$G$41<>\"\",$E$42<>\"\",$H$42<>\"\",$E$43<>\"\",$H$43<>\"\",$H$44<>\"\",$E$45<>\"\"),\"Complete\",IF(OR($E$38<>\"\",$H$38<>\"\",$E$39<>\"\",$D$41<>\"\",$G$41<>\"\",$E$42<>\"\",$H$42<>\"\",$E$43<>\"\",$H$43<>\"\",$H$44<>\"\",$E$45<>\"\"),\"Missing Information\",\"No Info\"))","v":"No Info"},{"$f":"IFERROR(IF(M8=\"No Info\",\"\",ROUND(IF(SUM($N$5:N7)>300000,0,MIN(300000-SUM($N$5:N7),EEM4_kWh*Ref!$F$15+EEM4_kW*Ref!$F$16,EEM4_IncrCost*0.75)),2)),\"Missing Data\")","v":""}]
[null,null,null,"EEM Description",null,null,null,null,null,null,"EEM 5",null,{"$f":"IF(AND($E$48<>\"\",$H$48<>\"\",$E$49<>\"\",$D$51<>\"\",$G$51<>\"\",$E$52<>\"\",$H$52<>\"\",$E$53<>\"\",$H$53<>\"\",$H$54<>\"\",$E$55<>\"\"),\"Complete\",IF(OR($E$48<>\"\",$H$48<>\"\",$E$49<>\"\",$D$51<>\"\",$G$51<>\"\",$E$52<>\"\",$H$52<>\"\",$E$53<>\"\",$H$53<>\"\",$H$54<>\"\",$E$55<>\"\"),\"Missing Information\",\"No Info\"))","v":"No Info"},{"$f":"IFERROR(IF(M9=\"No Info\",\"\",ROUND(IF(SUM($N$5:N8)>300000,0,MIN(300000-SUM($N$5:N8),EEM5_kWh*Ref!$F$15+EEM5_kW*Ref!$F$16,EEM5_IncrCost*0.75)),2)),\"Missing Data\")","v":""}]
[null,null,null,{"$f":"IF(ISNUMBER(SEARCH(\"New Construction\",ProjectType,1)),\"Code Minimum Conditions\",\"Baseline Conditions\")","v":"Baseline Conditions"},null,null,"Proposed Conditions",null,null,null,"EEM 6",null,{"$f":"IF(AND($E$58<>\"\",$H$58<>\"\",$E$59<>\"\",$D$61<>\"\",$G$61<>\"\",$E$62<>\"\",$H$62<>\"\",$E$63<>\"\",$H$63<>\"\",$H$64<>\"\",$E$65<>\"\"),\"Complete\",IF(OR($E$58<>\"\",$H$58<>\"\",$E$59<>\"\",$D$61<>\"\",$G$61<>\"\",$E$62<>\"\",$H$62<>\"\",$E$63<>\"\",$H$63<>\"\",$H$64<>\"\",$E$65<>\"\"),\"Missing Information\",\"No Info\"))","v":"No Info"},{"$f":"IFERROR(IF(M10=\"No Info\",\"\",ROUND(IF(SUM($N$5:N9)>300000,0,MIN(300000-SUM($N$5:N9),EEM6_kWh*Ref!$F$15+EEM6_kW*Ref!$F$16,EEM6_IncrCost*0.75)),2)),\"Missing Data\")","v":""}]
[]
[null,null,null,"Baseline Usage (kWh/yr)",null,null,"Proposed Usage (kWh/yr)"]
[null,null,null,"Installation Cost",null,null,"Annual Energy Savings"]
[null,null,null,"Is Incremental Cost Equal to Installation Cost?",null,null,"Peak Demand Savings",null,null,null,null,{"$f":"F14=\"X\"","v":false}]
[null,null,null,"Incremental Cost",{"$f":"IF(COUNTIF(L14,\"TRUE\")=1,E13,\"\")","v":""},null,"Estimated Rebate",{"$f":"$N$5","v":""}]
[]
[null,null,"Measure 2"]
[null,null,null,"Project Type",null,null,"Estimated Install Date"]
[null,null,null,"EEM Description"]
[null,null,null,{"$f":"IF(ISNUMBER(SEARCH(\"New Construction\",ProjectType,1)),\"Code Minimum Conditions\",\"Baseline Conditions\")","v":"Baseline Conditions"},null,null,"Proposed Conditions"]
[]
[null,null,null,"Baseline Usage (kWh/yr)",null,null,"Proposed Usage (kWh/yr)"]
[null,null,null,"Installation Cost",null,null,"Annual Energy Savings"]
[null,null,null,"Is Incremental Cost Equal to Installation Cost?",null,null,"Peak Demand Savings",null,null,null,null,{"$f":"F24=\"X\"","v":false}]
[null,null,null,"Incremental Cost",{"$f":"IF(COUNTIF(L24,\"TRUE\")=1,E23,\"\")","v":""},null,"Estimated Rebate",{"$f":"$N$6","v":""}]
[]
[null,null,"Measure 3"]
[null,null,null,"Project Type",null,null,"Estimated Install Date"]
[null,null,null,"EEM Description"]
[null,null,null,{"$f":"IF(ISNUMBER(SEARCH(\"New Construction\",ProjectType,1)),\"Code Minimum Conditions\",\"Baseline Conditions\")","v":"Baseline Conditions"},null,null,"Proposed Conditions"]
[]
[null,null,null,"Baseline Usage (kWh/yr)",null,null,"Proposed Usage (kWh/yr)"]
[null,null,null,"Installation Cost",null,null,"Annual Energy Savings"]
[null,null,null,"Is Incremental Cost Equal to Installation Cost?",null,null,"Peak Demand Savings",null,null,null,null,{"$f":"F34=\"X\"","v":false}]
[null,null,null,"Incremental Cost",{"$f":"IF(COUNTIF(L34,\"TRUE\")=1,E33,\"\")","v":""},null,"Estimated Rebate",{"$f":"$N$7","v":""}]
[]
[null,null,"Measure 4"]
[null,null,null,"Project Type",null,null,"Estimated Install Date"]
[null,null,null,"EEM Description"]
[null,null,null,{"$f":"IF(ISNUMBER(SEARCH(\"New Construction\",ProjectType,1)),\"Code Minimum Conditions\",\"Baseline Conditions\")","v":"Baseline Conditions"},null,null,"Proposed Conditions"]
[]
[null,null,null,"Baseline Usage (kWh/yr)",null,null,"Proposed Usage (kWh/yr)"]
[null,null,null,"Installation Cost",null,null,"Annual Energy Savings"]
[null,null,null,"Is Incremental Cost Equal to Installation Cost?",null,null,"Peak Demand Savings",null,null,null,null,{"$f":"F44=\"X\"","v":false}]
[null,null,null,"Incremental Cost",{"$f":"IF(COUNTIF(L44,\"TRUE\")=1,E43,\"\")","v":""},null,"Estimated Rebate",{"$f":"$N$8","v":""}]
[]
[null,null,"Measure 5"]
[null,null,null,"Project Type",null,null,"Estimated Install Date"]
[null,null,null,"EEM Description"]
[null,null,null,{"$f":"IF(ISNUMBER(SEARCH(\"New Construction\",ProjectType,1)),\"Code Minimum Conditions\",\"Baseline Conditions\")","v":"Baseline Conditions"},null,null,"Proposed Conditions"]
[]
[null,null,null,"Baseline Usage (kWh/yr)",null,null,"Proposed Usage (kWh/yr)"]
[null,null,null,"Installation Cost",null,null,"Annual Energy Savings"]
[null,null,null,"Is Incremental Cost Equal to Installation Cost?",null,null,"Peak Demand Savings",null,null,null,null,{"$f":"F54=\"X\"","v":false}]
[null,null,null,"Incremental Cost",{"$f":"IF(COUNTIF(L54,\"TRUE\")=1,E53,\"\")","v":""},null,"Estimated Rebate",{"$f":"$N$9","v":""}]
[]
[null,null,"Measure 6"]
[null,null,null,"Project Type",null,null,"Estimated Install Date"]
[null,null,null,"EEM Description"]
[null,null,null,{"$f":"IF(ISNUMBER(SEARCH(\"New Construction\",ProjectType,1)),\"Code Minimum Conditions\",\"Baseline Conditions\")","v":"Baseline Conditions"},null,null,"Proposed Conditions"]
[]
[null,null,null,"Baseline Usage (kWh/yr)",null,null,"Proposed Usage (kWh/yr)"]
[null,null,null,"Installation Cost",null,null,"Annual Energy Savings"]
[null,null,null,"Is Incremental Cost Equal to Installation Cost?",null,null,"Peak Demand Savings",null,null,null,null,{"$f":"F64=\"X\"","v":false}]
[null,null,null,"Incremental Cost",{"$f":"IF(COUNTIF(L64,\"TRUE\")=1,E63,\"\")","v":""},null,"Estimated Rebate",{"$f":"$N$10","v":""}]

{"sheet":"Project Summary","index":7,"n_rows":8,"n_cols":14,"rows_kept":8,"cut":false,"hidden":true,"merged":[]}
[0,1,2,3,4,5,6,7,8,9,10,11,12,13]
["EEM","Line Item","EEM_Description","Project_Type","Inst_Date","BL_Conditions","P_Conditions","BL_Energy","P_Energy","kWhSavings","kWSavings","InstallCost","IncrCost","CustIncentive"]
["EEM1",{"$f":"IF(OR(ProjectSummary[[#This Row],[EEM_Description]]<>\"\",ProjectSummary[[#This Row],[Project_Type]]<>\"\",ProjectSummary[[#This Row],[Inst_Date]]<>\"\",ProjectSummary[[#This Row],[BL_Conditions]]<>\"\",ProjectSummary[[#This Row],[P_Conditions]]<>\"\",ProjectSummary[[#This Row],[BL_Energy]]<>\"\",ProjectSummary[[#This Row],[P_Energy]]<>\"\",ProjectSummary[[#This Row],[kWhSavings]]<>\"\",ProjectSummary[[#This Row],[kWSavings]]<>\"\",ProjectSummary[[#This Row],[InstallCost]]<>\"\",ProjectSummary[[#This Row],[IncrCost]]<>\"\",ProjectSummary[[#This Row],[CustIncentive]]<>\"\"),MAX($B$2:$B2)+1,\"\")","v":""},{"$f":"IF(INDIRECT(\"'Project Information'!E\" & 9  +  (SUBSTITUTE($A3,\"EEM\",\"\") - 1)*10)<>\"\",INDIRECT(\"'Project Information'!E\" & 9  +  (SUBSTITUTE($A3,\"EEM\",\"\") - 1)*10),\"\")","v":""},{"$f":"IF(INDIRECT(\"'Project Information'!E\" & 8  +  (SUBSTITUTE($A3,\"EEM\",\"\") - 1)*10)<>\"\",INDIRECT(\"'Project Information'!E\" & 8  +  (SUBSTITUTE($A3,\"EEM\",\"\") - 1)*10),\"\")","v":""},{"$f":"IF(INDIRECT(\"'Project Information'!H\" & 8  +  (SUBSTITUTE($A3,\"EEM\",\"\") - 1)*10)<>\"\",INDIRECT(\"'Project Information'!H\" & 8  +  (SUBSTITUTE($A3,\"EEM\",\"\") - 1)*10),\"\")","v":""},{"$f":"IF(INDIRECT(\"'Project Information'!D\" & 11  +  (SUBSTITUTE($A3,\"EEM\",\"\") - 1)*10)<>\"\",INDIRECT(\"'Project Information'!D\" & 11  +  (SUBSTITUTE($A3,\"EEM\",\"\") - 1)*10),\"\")","v":""},{"$f":"IF(INDIRECT(\"'Project Information'!F\" & 11  +  (SUBSTITUTE($A3,\"EEM\",\"\") - 1)*10)<>\"\",INDIRECT(\"'Project Information'!F\" & 11  +  (SUBSTITUTE($A3,\"EEM\",\"\") - 1)*10),\"\")","v":""},{"$f":"IF(INDIRECT(\"'Project Information'!E\" & 12  +  (SUBSTITUTE($A3,\"EEM\",\"\") - 1)*10)<>\"\",INDIRECT(\"'Project Information'!E\" & 12  +  (SUBSTITUTE($A3,\"EEM\",\"\") - 1)*10),\"\")","v":""},{"$f":"IF(INDIRECT(\"'Project Information'!H\" & 12  +  (SUBSTITUTE($A3,\"EEM\",\"\") - 1)*10)<>\"\",INDIRECT(\"'Project Information'!H\" & 12  +  (SUBSTITUTE($A3,\"EEM\",\"\") - 1)*10),\"\")","v":""},{"$f":"IF(INDIRECT(\"'Project Information'!H\" & 13  +  (SUBSTITUTE($A3,\"EEM\",\"\") - 1)*10)<>\"\",INDIRECT(\"'Project Information'!H\" & 13  +  (SUBSTITUTE($A3,\"EEM\",\"\") - 1)*10),\"\")","v":""},{"$f":"IF(INDIRECT(\"'Project Information'!H\" & 14  +  (SUBSTITUTE($A3,\"EEM\",\"\") - 1)*10)<>\"\",INDIRECT(\"'Project Information'!H\" & 14  +  (SUBSTITUTE($A3,\"EEM\",\"\") - 1)*10),\"\")","v":""},{"$f":"IF(INDIRECT(\"'Project Information'!E\" & 13  +  (SUBSTITUTE($A3,\"EEM\",\"\") - 1)*10)<>\"\",INDIRECT(\"'Project Information'!E\" & 13  +  (SUBSTITUTE($A3,\"EEM\",\"\") - 1)*10),\"\")","v":""},{"$f":"IF(INDIRECT(\"'Project Information'!E\" & 15  +  (SUBSTITUTE($A3,\"EEM\",\"\") - 1)*10)<>\"\",INDIRECT(\"'Project Information'!E\" & 15  +  (SUBSTITUTE($A3,\"EEM\",\"\") - 1)*10),\"\")","v":""},{"$f":"IF(INDIRECT(\"'Project Information'!H\" & 15  +  (SUBSTITUTE($A3,\"EEM\",\"\") - 1)*10)>0,INDIRECT(\"'Project Information'!H\" & 15  +  (SUBSTITUTE($A3,\"EEM\",\"\") - 1)*10),\"\")","v":""}]
["EEM2",{"$f":"IF(OR(ProjectSummary[[#This Row],[EEM_Description]]<>\"\",ProjectSummary[[#This Row],[Project_Type]]<>\"\",ProjectSummary[[#This Row],[Inst_Date]]<>\"\",ProjectSummary[[#This Row],[BL_Conditions]]<>\"\",ProjectSummary[[#This Row],[P_Conditions]]<>\"\",ProjectSummary[[#This Row],[BL_Energy]]<>\"\",ProjectSummary[[#This Row],[P_Energy]]<>\"\",ProjectSummary[[#This Row],[kWhSavings]]<>\"\",ProjectSummary[[#This Row],[kWSavings]]<>\"\",ProjectSummary[[#This Row],[InstallCost]]<>\"\",ProjectSummary[[#This Row],[IncrCost]]<>\"\",ProjectSummary[[#This Row],[CustIncentive]]<>\"\"),MAX($B$2:$B3)+1,\"\")","v":""},"","","","","","","","","","","",""]
["EEM3",{"$f":"IF(OR(ProjectSummary[[#This Row],[EEM_Description]]<>\"\",ProjectSummary[[#This Row],[Project_Type]]<>\"\",ProjectSummary[[#This Row],[Inst_Date]]<>\"\",ProjectSummary[[#This Row],[BL_Conditions]]<>\"\",ProjectSummary[[#This Row],[P_Conditions]]<>\"\",ProjectSummary[[#This Row],[BL_Energy]]<>\"\",ProjectSummary[[#This Row],[P_Energy]]<>\"\",ProjectSummary[[#This Row],[kWhSavings]]<>\"\",ProjectSummary[[#This Row],[kWSavings]]<>\"\",ProjectSummary[[#This Row],[InstallCost]]<>\"\",ProjectSummary[[#This Row],[IncrCost]]<>\"\",ProjectSummary[[#This Row],[CustIncentive]]<>\"\"),MAX($B$2:$B4)+1,\"\")","v":""},"","","","","","","","","","","",""]
["EEM4",{"$f":"IF(OR(ProjectSummary[[#This Row],[EEM_Description]]<>\"\",ProjectSummary[[#This Row],[Project_Type]]<>\"\",ProjectSummary[[#This Row],[Inst_Date]]<>\"\",ProjectSummary[[#This Row],[BL_Conditions]]<>\"\",ProjectSummary[[#This Row],[P_Conditions]]<>\"\",ProjectSummary[[#This Row],[BL_Energy]]<>\"\",ProjectSummary[[#This Row],[P_Energy]]<>\"\",ProjectSummary[[#This Row],[kWhSavings]]<>\"\",ProjectSummary[[#This Row],[kWSavings]]<>\"\",ProjectSummary[[#This Row],[InstallCost]]<>\"\",ProjectSummary[[#This Row],[IncrCost]]<>\"\",ProjectSummary[[#This Row],[CustIncentive]]<>\"\"),MAX($B$2:$B5)+1,\"\")","v":""},"","","","","","","","","","","",""]
["EEM5",{"$f":"IF(OR(ProjectSummary[[#This Row],[EEM_Description]]<>\"\",ProjectSummary[[#This Row],[Project_Type]]<>\"\",ProjectSummary[[#This Row],[Inst_Date]]<>\"\",ProjectSummary[[#This Row],[BL_Conditions]]<>\"\",ProjectSummary[[#This Row],[P_Conditions]]<>\"\",ProjectSummary[[#This Row],[BL_Energy]]<>\"\",ProjectSummary[[#This Row],[P_Energy]]<>\"\",ProjectSummary[[#This Row],[kWhSavings]]<>\"\",ProjectSummary[[#This Row],[kWSavings]]<>\"\",ProjectSummary[[#This Row],[InstallCost]]<>\"\",ProjectSummary[[#This Row],[IncrCost]]<>\"\",ProjectSummary[[#This Row],[CustIncentive]]<>\"\"),MAX($B$2:$B6)+1,\"\")","v":""},"","","","","","","","","","","",""]
["EEM6",{"$f":"IF(OR(ProjectSummary[[#This Row],[EEM_Description]]<>\"\",ProjectSummary[[#This Row],[Project_Type]]<>\"\",ProjectSummary[[#This Row],[Inst_Date]]<>\"\",ProjectSummary[[#This Row],[BL_Conditions]]<>\"\",ProjectSummary[[#This Row],[P_Conditions]]<>\"\",ProjectSummary[[#This Row],[BL_Energy]]<>\"\",ProjectSummary[[#This Row],[P_Energy]]<>\"\",ProjectSummary[[#This Row],[kWhSavings]]<>\"\",ProjectSummary[[#This Row],[kWSavings]]<>\"\",ProjectSummary[[#This Row],[InstallCost]]<>\"\",ProjectSummary[[#This Row],[IncrCost]]<>\"\",ProjectSummary[[#This Row],[CustIncentive]]<>\"\"),MAX($B$2:$B7)+1,\"\")","v":""},"","","","","","","","","","","",""]

{"sheet":"Data Form (EEM 1)","index":8,"n_rows":235,"n_cols":16,"rows_kept":235,"cut":false,"hidden":true,"merged":[[81,9,81,11],[77,9,77,11],[1,2,1,4],[2,2,3,4],[32,9,32,11],[40,9,40,11],[17,9,17,11],[21,9,21,11],[1,6,1,15],[5,2,5,4],[4,2,4,4],[3,13,3,14],[96,9,96,11],[101,9,101,11],[113,10,113,11],[114,10,114,11],[120,10,120,11],[127,10,127,11],[128,10,128,11],[108,9,108,11],[115,9,115,11],[122,9,122,11],[121,10,121,11],[131,9,131,11],[132,10,132,11],[133,10,133,11],[134,10,134,11],[135,10,135,11],[141,10,141,11],[142,9,142,11],[143,10,143,11],[136,10,136,11],[137,10,137,11],[138,10,138,11],[139,10,139,11],[140,10,140,11],[201,9,202,11],[162,9,163,9],[162,10,163,11],[156,9,157,9],[156,10,157,11],[158,9,159,9],[158,10,159,11],[160,9,161,9],[160,10,161,11],[151,10,151,11],[153,9,153,11],[154,10,154,11],[155,10,155,11],[146,9,147,9],[146,10,147,11],[149,10,149,11]]}
[1,null,{"$f":"'Customer Information'!$AY$5 & \" - \" & 'Customer Information'!$AY$6","v":"FY27.1.0 - Version 20260501"}]
[null,"HIDE",{"$f":"CONCATENATE(\"Data Collection Form (EEM #1: \",IF('Project Information'!$M$5<>\"No Info\",'Project Information'!E9,\"No Info\"),\")\")","v":"Data Collection Form (EEM #1: No Info)"},null,null,"HIDE","HIDE"]
[null,null,"Instructions: Please select the project type from the drop down menu below and provide the information for the associated parameters. ",null,null,null,null,"Print Area"]
[null,null,null,null,null,null,null,{"$f":"MATCH(MAX($B:$B),$B:$B,0)","v":40},null,null,null,null,null,"Complete?",null,{"$f":"IF(AND(EEM1_DCF_ProjectType<>\"-- Select --\",EEM1_DCF_ProjectType<>\"\",COUNTIFS($F:$F,FALSE)=0),\"Complete\",IF(OR(EEM1_DCF_ProjectType=\"-- Select --\",EEM1_DCF_ProjectType=\"\",COUNTIFS($F:$F,FALSE)=0),\"No Info\",\"Missing Information\"))","v":"No Info"}]
[null,null,"Choose Project Type:",null,null,null,null,"ListDCF",null,"Cool Roof"]
[null,null,"-- Select --",null,null,null,null,"-- Select --",1,"Building Information:",null,null,{"$f":"NOT(ISBLANK(K6))","v":false}]
[null,null,"Parameters","Inputs","Units",null,null,"Custom: Other",2,"Roof Area:",null,"Sq. Ft.",{"$f":"NOT(ISBLANK(K7))","v":false}]
[null,1,null,null,null,null,null,{"$f":"$J$5","v":"Cool Roof"},3,"Roof Material:",null,null,false]
[null,2,null,null,null,null,null,{"$f":"$J$27","v":"Custom EMS"},4,"Roof Pitch:",null,null,false]
[null,3,null,null,null,null,null,{"$f":"$J$50","v":"Air Compressor (VSD)"},5,"Percent Conditioned :",null,"%",false]
[null,4,null,null,null,null,null,{"$f":"$J$67","v":"High Efficiency Walls"},6,"Cooling Equipment Type:",null,null,false]
[null,5,null,null,null,null,null,{"$f":"$J$87","v":"High Efficiency Windows"},7,"Heating Equipment Type:",null,null,false]
[null,6,null,null,null,null,null,{"$f":"$J$131","v":"Central Plant Optimization"},8,"Occupied Cooling Set Point:",null,"deg F",false]
[null,7,null,null,null,null,null,null,9,"Unoccupied Cooling Set Point:",null,"deg F",false]
[null,8,null,null,null,null,null,null,10,"Occupied Heating Set Point:",null,"deg F",false]
[null,9,null,null,null,null,null,null,11,"Unoccupied Heating Set Point:",null,"deg F",false]
[null,10,null,null,null,null,null,null,12,"Approximate\nAge of HVAC Equipment:",null,null,false]
[null,11,null,null,null,null,null,null,13,"Baseline Conditions"]
[null,12,null,null,null,null,null,null,14,"Baseline R-Value (Existing Roof):",null,"R-Value",false]
[null,13,null,null,null,null,null,null,15,"Solar Reflectance of Existing Roof :",null,"0 - 1.0 ",false]
[null,14,null,null,null,null,null,null,16,"Infrared Emittance of Existing Roof :",null,"0 - 1.0 ",false]
[null,15,null,null,null,null,null,null,17,"Proposed Conditions"]
[null,16,null,null,null,null,null,null,18,"R-Value of the Proposed Roof:",null,"R-Value",false]
[null,17,null,null,null,null,null,null,19,"Solar Reflectance of Proposed Roof:",null,"0 - 1.0 ",false]
[null,18,null,null,null,null,null,null,20,"Infrared Emittance of Proposed Roof :",null,"0 - 1.0 ",false]
[null,19,null,null,null,null,null,null,null,"End"]
[null,20,null,null,null,null,null,null,null,"Custom EMS"]
[null,21,null,null,null,null,null,null,1,"Space/Zone Description:",null,null,{"$f":"NOT(ISBLANK(K28))","v":false}]
[null,22,null,null,null,null,null,null,2,"Conditioned Area:",null,"Sq. Ft.",false]
[null,23,null,null,null,null,null,null,3,"Cooling Equipment Type:",null,null,false]
[null,24,null,null,null,null,null,null,4,"Heating Equipment Type:",null,null,false]
[null,25,null,null,null,null,null,null,5,"Approximate Age:",null,null,false]
[null,26,null,null,null,null,null,null,6,"Baseline Conditions"]
[null,27,null,null,null,null,null,null,7," Occupied Cooling Set Point:",null,"deg F",{"$f":"NOT(ISBLANK(K34))","v":false}]
[null,28,null,null,null,null,null,null,8," Unoccupied Cooling Set Point:",null,"deg F",false]
[null,29,null,null,null,null,null,null,9," Occupied Heating Set Point:",null,"deg F",false]
[null,30,null,null,null,null,null,null,10," Unoccupied Heating Set Point:",null,"deg F",false]
[null,31,null,null,null,null,null,null,11," Occupancy Schedule:",null,"(Ex. M-F 8am to 5pm, etc.)",false]
[null,32,null,null,null,null,null,null,12," Economizer operation:",null,"Yes or No",false]
[null,33,null,null,null,null,null,null,13," Demand Controlled Ventilation:",null,"Yes or No",false]
[null,null,null,null,null,null,null,null,14,"Proposed Conditions"]
[null,null,null,null,null,null,null,null,15," Occupied Cooling Set Point:",null,"deg F",{"$f":"NOT(ISBLANK(K42))","v":false}]
[null,null,null,null,null,null,null,null,16," Unoccupied Cooling Set Point:",null,"deg F",false]
[null,null,null,null,null,null,null,null,17," Occupied Heating Set Point:",null,"deg F",false]
[null,null,null,null,null,null,null,null,18," Unoccupied Heating Set Point:",null,"deg F",false]
[null,null,null,null,null,null,null,null,19," Occupancy Schedule:",null,"(Ex. M-F 8am to 5pm, etc.)",false]
[null,null,null,null,null,null,null,null,20," Economizer operation:",null,"Yes or No",false]
[null,null,null,null,null,null,null,null,21," Demand Controlled Ventilation:",null,"Yes or No",{"$f":"NOT(ISBLANK(K48))","v":false}]
[null,null,null,null,null,null,null,null,null,"End"]
[null,null,null,null,null,null,null,null,null,"Air Compressor (VSD)"]
[null,null,null,null,null,null,null,null,1,"Proposed Manufacture Make:",null,null,{"$f":"NOT(ISBLANK(K51))","v":false}]
[null,null,null,null,null,null,null,null,2,"Proposed Manufacture Model Number:",null,null,false]
[null,null,null,null,null,null,null,null,3,"Proposed Rated Power (hp):",null,"HP",false]
[null,null,null,null,null,null,null,null,4,"Proposed Rated Capacity (cfm):",null,"CFM",false]
[null,null,null,null,null,null,null,null,5,"Proposed Capacity Control:",null,null,false]
[null,null,null,null,null,null,null,null,6,"Proposed Compressor Cost:",null,null,false]
[null,null,null,null,null,null,null,null,7,"Baseline Manufacture Make:",null,null,false]
[null,null,null,null,null,null,null,null,8,"Baseline Manufacture Model Number:",null,null,false]
[null,null,null,null,null,null,null,null,9,"Baseline Capacity Control:",null,null,false]
[null,null,null,null,null,null,null,null,10,"Baseline Compressor Cost:",null,null,false]
[null,null,null,null,null,null,null,null,11,"Compressed Air Use:",null,null,false]
[null,null,null,null,null,null,null,null,12,"Operating Discharge Pressure:",null,"PSIG",false]
[null,null,null,null,null,null,null,null,13,"Est. Time Compressor is Loaded:",null,"%",false]
[null,null,null,null,null,null,null,null,14,"Est. Time Compressor is Idle:",null,"%",false]
[null,null,null,null,null,null,null,null,15,"Est. Hours Per Year Compressor is Energized:",null,"Hrs/yr",false]
[null,null,null,null,null,null,null,null,null,"End"]
[null,null,null,null,null,null,null,null,null,"High Efficiency Walls"]
[null,null,null,null,null,null,null,null,1,"Wall Exposure","Wall Area (Sq. Ft.)"]
[null,null,null,null,null,null,null,null,2,"North:",null,"Sq. Ft.",{"$f":"NOT(ISBLANK(K69))","v":false}]
[null,null,null,null,null,null,null,null,3,"West:",null,"Sq. Ft.",false]
[null,null,null,null,null,null,null,null,4,"South:",null,"Sq. Ft.",false]
[null,null,null,null,null,null,null,null,5,"East:",null,"Sq. Ft.",false]
[null,null,null,null,null,null,null,null,6,"Wall Construction:",null,null,false]
[null,null,null,null,null,null,null,null,7,"Cooling Equipment Type:",null,null,false]
[null,null,null,null,null,null,null,null,8,"Heating Equipment Type:",null,null,false]
[null,null,null,null,null,null,null,null,9,"Approximate Age of HVAC Equipment:",null,null,false]
[null,null,null,null,null,null,null,null,10,"Building Percent Air Conditioned:",null,"%",false]
[null,null,null,null,null,null,null,null,11,"Baseline Conditions"]
[null,null,null,null,null,null,null,null,12,"R-Value Of Existing Wall:",null,"R-Value",{"$f":"NOT(ISBLANK(K79))","v":false}]
[null,null,null,null,null,null,null,null,13,"Solar Reflectance of Existing Wall \n(High=0.8, Avg = 0.5, Low =0.1):",null,"0 - 1.0 ",false]
[null,null,null,null,null,null,null,null,14,"Infrared Emittance of Existing Wall \n(High=0.9, Avg = 0.75, Low =0.1):",null,"0 - 1.0 ",false]
[null,null,null,null,null,null,null,null,15,"Proposed Conditions"]
[null,null,null,null,null,null,null,null,16,"R-Value of the Proposed Wall:",null,"R-Value",{"$f":"NOT(ISBLANK(K83))","v":false}]
[null,null,null,null,null,null,null,null,17,"Solar Reflectance of Proposed Wall\n(High=0.8, Avg = 0.5, Low =0.1):",null,"0 - 1.0 ",false]
[null,null,null,null,null,null,null,null,18,"Infrared Emittance of Proposed Wall \n(High=0.9, Avg = 0.75, Low =0.1):",null,"0 - 1.0 ",false]
[null,null,null,null,null,null,null,null,null,"End"]
[null,null,null,null,null,null,null,null,null,"High Efficiency Windows"]
[null,null,null,null,null,null,null,null,1,"Window Exposure","Window Area (Sq. Ft.)"]
[null,null,null,null,null,null,null,null,2,"North:",null,"Sq. Ft.",{"$f":"NOT(ISBLANK(K89))","v":false}]
[null,null,null,null,null,null,null,null,3,"West:",null,"Sq. Ft.",false]
[null,null,null,null,null,null,null,null,4,"South:",null,"Sq. Ft.",false]
[null,null,null,null,null,null,null,null,5,"East:",null,"Sq. Ft.",false]
[null,null,null,null,null,null,null,null,6,"Building Percent Air Conditioned :",null,"%",false]
[null,null,null,null,null,null,null,null,7,"Cooling Equipment Type:",null,null,false]
[null,null,null,null,null,null,null,null,8,"Heating Equipment Type:",null,null,false]
[null,null,null,null,null,null,null,null,9,"Approximate Age of HVAC Equipment:",null,null,false]
[null,null,null,null,null,null,null,null,10,"Baseline Conditions"]
[null,null,null,null,null,null,null,null,11,"Baseline Window Type:",null,null,{"$f":"NOT(ISBLANK(K98))","v":false}]
[null,null,null,null,null,null,null,null,12,"Baseline Glazing Thickness & Color:",null,null,false]
[null,null,null,null,null,null,null,null,13,"Baseline U-Value:",null,null,false]
[null,null,null,null,null,null,null,null,14,"Baseline Solar Heat Gain Coefficient (SHGC) of Window:",null,"0 - 1.0 ",false]
[null,null,null,null,null,null,null,null,15,"Proposed Conditions"]
[null,null,null,null,null,null,null,null,16,"Proposed Window Type:",null,null,{"$f":"NOT(ISBLANK(K103))","v":false}]
[null,null,null,null,null,null,null,null,17,"Proposed Glazing Thickness & Color:",null,null,false]
[null,null,null,null,null,null,null,null,18,"U-Value of Proposed Window:",null,null,false]
[null,null,null,null,null,null,null,null,19,"Solar Heat Gain Coefficient (SHGC) of Proposed Treatment:",null,"0 - 1.0 ",false]
[null,null,null,null,null,null,null,null,null,"End"]
[null,null,null,null,null,null,null,"ListFixtureType",null,"Lighting Controls"]
[null,null,null,null,null,null,null,"T8 fluorescent",1,"Lighting Group 1"]
[null,null,null,null,null,null,null,"T5 fluorescent",2,"Fixture Locations:",null,null,{"$f":"NOT(ISBLANK(K110))","v":false}]
[null,null,null,null,null,null,null,"T12 fluorescent",3,"Fixture Type:",null,null,false]
[null,null,null,null,null,null,null,"Incandescent screw-in",4,"Quantity of fixtures:",null,null,false]
[null,null,null,null,null,null,null,"CFL screw-in",5,"Fixture Wattage:",null,"Watts",false]
[null,null,null,null,null,null,null,"CFL pin-based",6,"Baseline Lighting Operating Schedule\n(include dimming set points if applicable):",null,null,false]
[null,null,null,null,null,null,null,"Metal Halide",7,"Proposed Lighting Operating Schedule\n(include dimming set points if applicable):",null,null,false]
[null,null,null,null,null,null,null,"High Pressure Sodium",8,"Lighting Group 2"]
[null,null,null,null,null,null,null,"LED",9,"Fixture Locations:",null,null,{"$f":"NOT(ISBLANK(K117))","v":false}]
[null,null,null,null,null,null,null,"Mercury Vapor",10,"Fixture Type:",null,null,false]
[null,null,null,null,null,null,null,"Induction",11,"Quantity of fixtures:",null,null,false]
[null,null,null,null,null,null,null,null,12,"Fixture Wattage:",null,"Watts",false]
[null,null,null,null,null,null,null,null,13,"Baseline Lighting Operating Schedule\n(include dimming set points if applicable):",null,null,false]
[null,null,null,null,null,null,null,null,14,"Proposed Lighting Operating Schedule\n(include dimming set points if applicable):",null,null,false]
[null,null,null,null,null,null,null,null,15,"Lighting Group 3"]
[null,null,null,null,null,null,null,null,16,"Fixture Locations:",null,null,{"$f":"NOT(ISBLANK(K124))","v":false}]
[null,null,null,null,null,null,null,null,17,"Fixture Type:",null,null,false]
[null,null,null,null,null,null,null,null,18,"Quantity of fixtures:",null,null,false]
[null,null,null,null,null,null,null,null,19,"Fixture Wattage:",null,"Watts",false]
[null,null,null,null,null,null,null,null,20,"Baseline Lighting Operating Schedule\n(include dimming set points if applicable):",null,null,false]
[null,null,null,null,null,null,null,null,21,"Proposed Lighting Operating Schedule\n(include dimming set points if applicable):",null,null,false]
[null,null,null,null,null,null,null,null,null,"End"]
[null,null,null,null,null,null,null,null,null,"Central Plant Optimization"]
[null,null,null,null,null,null,null,null,1,"Central Plant Equipment"]
[null,null,null,null,null,null,null,null,2,"Quantity and Capacity of all Chillers:",null,null,{"$f":"NOT(ISBLANK(K133))","v":false}]
[null,null,null,null,null,null,null,null,3,"Chiller Type:",null,null,false]
[null,null,null,null,null,null,null,null,4,"Heat Rejection Type: ",null,null,false]
[null,null,null,null,null,null,null,null,5,"Chilled Water Distribution: ",null,null,false]
[null,null,null,null,null,null,null,null,6,"Primary CHW Pump Size and Qty:",null,null,false]
[null,null,null,null,null,null,null,null,7,"Secondary CHW Pump Size and Qty:\n(if applicable)",null,null,false]
[null,null,null,null,null,null,null,null,8,"Cooling Tower Fan Size and Qty:",null,null,false]
[null,null,null,null,null,null,null,null,9,"Cooling Tower Fan VFD:",null,null,false]
[null,null,null,null,null,null,null,null,10,"Flat Plate Heat Exchanger? :",null,null,false]
[null,null,null,null,null,null,null,null,11,"Configuration of Flat Plate:",null,null,false]
[null,null,null,null,null,null,null,null,12,"Existing Central Plant Operations & Set Points"]
[null,null,null,null,null,null,null,null,13,"Central Plant Operating Schedule:\n(ex. Mon-Sat 7am-10pm)",null,null,{"$f":"NOT(ISBLANK(K144))","v":false}]
[null,null,null,null,null,null,null,null,14,"Peak Summer Cooling Load:",null,"Tons",false]
[null,null,null,null,null,null,null,null,15,"Winter Outside Air Cooling Limit:",null,"deg F",false]
[null,null,null,null,null,null,null,null,16,"Please describe the current Chiller Sequencing:",null,null,false]
[null,null,null,null,null,null,null,null,17,null,null,null,false]
[null,null,null,null,null,null,null,null,18,"Chilled Water (CHW) set point:",null,"deg F",false]
[null,null,null,null,null,null,null,null,19,"If CHW Reset, please describe strategy:",null,null,false]
[null,null,null,null,null,null,null,null,20,"Condenser Water (CW) Set Point:",null,"deg F",false]
[null,null,null,null,null,null,null,null,21,"If CW Reset, please describe strategy:",null,null,false]
[null,null,null,null,null,null,null,null,22,"Flat Plate Enable Set Point:",null,"deg F",false]
[null,null,null,null,null,null,null,null,23,"Proposed Central Plant Operations & Set Points"]
[null,null,null,null,null,null,null,null,24,"Describe the Proposed CHW Reset Strategy (if any):",null,null,{"$f":"NOT(ISBLANK(K155))","v":false}]
[null,null,null,null,null,null,null,null,25,"Describe the Proposed CW Reset Strategy (if any):",null,null,false]
[null,null,null,null,null,null,null,null,26,"Please describe all Proposed changes to the chiller sequencing:",null,null,false]
[null,null,null,null,null,null,null,null,27,null,null,null,false]
[null,null,null,null,null,null,null,null,28,"Please describe all Proposed changes to the CHW pumping distribution system:",null,null,false]
[null,null,null,null,null,null,null,null,29,null,null,null,false]
[null,null,null,null,null,null,null,null,30,"Please describe all Proposed changes to the cooling tower operation:",null,null,false]
[null,null,null,null,null,null,null,null,31,null,null,null,false]
[null,null,null,null,null,null,null,null,32,"Please describe any other changes to central plant sequence of operations that are part of the project:",null,null,false]
[null,null,null,null,null,null,null,null,33,null,null,null,false]
[null,null,null,null,null,null,null,null,null,"End"]
[null,null,null,null,null,null,null,null,null,"-- Select --"]
[null,null,null,null,null,null,null,null,1]
[null,null,null,null,null,null,null,null,2]
[null,null,null,null,null,null,null,null,3]
[null,null,null,null,null,null,null,null,4]
[null,null,null,null,null,null,null,null,5]
[null,null,null,null,null,null,null,null,6]
[null,null,null,null,null,null,null,null,7]
[null,null,null,null,null,null,null,null,8]
[null,null,null,null,null,null,null,null,9]
[null,null,null,null,null,null,null,null,10]
[null,null,null,null,null,null,null,null,11]
[null,null,null,null,null,null,null,null,12]
[null,null,null,null,null,null,null,null,13]
[null,null,null,null,null,null,null,null,14]
[null,null,null,null,null,null,null,null,15]
[null,null,null,null,null,null,null,null,16]
[null,null,null,null,null,null,null,null,17]
[null,null,null,null,null,null,null,null,18]
[null,null,null,null,null,null,null,null,19]
[null,null,null,null,null,null,null,null,20]
[null,null,null,null,null,null,null,null,21]
[null,null,null,null,null,null,null,null,22]
[null,null,null,null,null,null,null,null,23]
[null,null,null,null,null,null,null,null,24]
[null,null,null,null,null,null,null,null,25]
[null,null,null,null,null,null,null,null,26]
[null,null,null,null,null,null,null,null,27]
[null,null,null,null,null,null,null,null,28]
[null,null,null,null,null,null,null,null,29]
[null,null,null,null,null,null,null,null,30]
[null,null,null,null,null,null,null,null,31]
[null,null,null,null,null,null,null,null,32]
[null,null,null,null,null,null,null,null,33]
[null,null,null,null,null,null,null,null,null,"End"]
[null,null,null,null,null,null,null,null,null,"Custom: Other"]
[null,null,null,null,null,null,null,null,1,"Please fill in the custom parameters, inputs, and units that are relevant to the measure(s) you are applying for. Separate measures by supplying the measure type before the parameters.",null,null,{"$f":"IF(COUNTA(J204:L234)=0,FALSE,TRUE)","v":false}]
[null,null,null,null,null,null,null,null,2]
[null,null,null,null,null,null,null,null,3,null,null,null,{"$f":"IF(NOT(ISBLANK(J204)),NOT(OR(ISBLANK(K204),ISBLANK(L204))),TRUE)","v":true}]
[null,null,null,null,null,null,null,null,4,null,null,null,{"$f":"IF(NOT(ISBLANK(J205)),NOT(OR(ISBLANK(K205),ISBLANK(L205))),TRUE)","v":true}]
[null,null,null,null,null,null,null,null,5,null,null,null,true]
[null,null,null,null,null,null,null,null,6,null,null,null,true]
[null,null,null,null,null,null,null,null,7,null,null,null,true]
[null,null,null,null,null,null,null,null,8,null,null,null,true]
[null,null,null,null,null,null,null,null,9,null,null,null,true]
[null,null,null,null,null,null,null,null,10,null,null,null,true]
[null,null,null,null,null,null,null,null,11,null,null,null,true]
[null,null,null,null,null,null,null,null,12,null,null,null,true]
[null,null,null,null,null,null,null,null,13,null,null,null,true]
[null,null,null,null,null,null,null,null,14,null,null,null,true]
[null,null,null,null,null,null,null,null,15,null,null,null,true]
[null,null,null,null,null,null,null,null,16,null,null,null,true]
[null,null,null,null,null,null,null,null,17,null,null,null,true]
[null,null,null,null,null,null,null,null,18,null,null,null,true]
[null,null,null,null,null,null,null,null,19,null,null,null,true]
[null,null,null,null,null,null,null,null,20,null,null,null,true]
[null,null,null,null,null,null,null,null,21,null,null,null,true]
[null,null,null,null,null,null,null,null,22,null,null,null,true]
[null,null,null,null,null,null,null,null,23,null,null,null,true]
[null,null,null,null,null,null,null,null,24,null,null,null,true]
[null,null,null,null,null,null,null,null,25,null,null,null,true]
[null,null,null,null,null,null,null,null,26,null,null,null,true]
[null,null,null,null,null,null,null,null,27,null,null,null,true]
[null,null,null,null,null,null,null,null,28,null,null,null,true]
[null,null,null,null,null,null,null,null,29,null,null,null,true]
[null,null,null,null,null,null,null,null,30,null,null,null,true]
[null,null,null,null,null,null,null,null,31,null,null,null,true]
[null,null,null,null,null,null,null,null,32,null,null,null,true]
[null,null,null,null,null,null,null,null,33,null,null,null,true]
[null,null,null,null,null,null,null,null,null,"End"]

{"sheet":"Data Form (EEM 2)","index":9,"n_rows":235,"n_cols":16,"rows_kept":235,"cut":false,"hidden":true,"merged":[[160,9,161,9],[160,10,161,11],[162,9,163,9],[162,10,163,11],[201,9,202,11],[154,10,154,11],[155,10,155,11],[156,9,157,9],[156,10,157,11],[158,9,159,9],[158,10,159,11],[153,9,153,11],[137,10,137,11],[138,10,138,11],[139,10,139,11],[140,10,140,11],[141,10,141,11],[142,9,142,11],[143,10,143,11],[146,9,147,9],[146,10,147,11],[149,10,149,11],[151,10,151,11],[136,10,136,11],[115,9,115,11],[120,10,120,11],[121,10,121,11],[122,9,122,11],[127,10,127,11],[128,10,128,11],[131,9,131,11],[132,10,132,11],[133,10,133,11],[134,10,134,11],[135,10,135,11],[114,10,114,11],[5,2,5,4],[17,9,17,11],[21,9,21,11],[32,9,32,11],[40,9,40,11],[77,9,77,11],[81,9,81,11],[96,9,96,11],[101,9,101,11],[108,9,108,11],[113,10,113,11],[1,2,1,4],[1,6,1,15],[2,2,3,4],[3,13,3,14],[4,2,4,4]]}
[2,null,{"$f":"'Customer Information'!$AY$5 & \" - \" & 'Customer Information'!$AY$6","v":"FY27.1.0 - Version 20260501"}]
[null,"HIDE",{"$f":"CONCATENATE(\"Data Collection Form (EEM #2: \",IF('Project Information'!$M$6<>\"No Info\",'Project Information'!E19,\"No Info\"),\")\")","v":"Data Collection Form (EEM #2: No Info)"},null,null,"HIDE","HIDE"]
[null,null,"Instructions: Please select the project type from the drop down menu below and provide the information for the associated parameters. ",null,null,null,null,"Print Area"]
[null,null,null,null,null,null,null,{"$f":"MATCH(MAX($B:$B),$B:$B,0)","v":40},null,null,null,null,null,"Complete?",null,{"$f":"IF(AND(EEM2_DCF_ProjectType<>\"-- Select --\",EEM2_DCF_ProjectType<>\"\",COUNTIFS($F:$F,FALSE)=0),\"Complete\",IF(OR(EEM2_DCF_ProjectType=\"-- Select --\",EEM2_DCF_ProjectType=\"\",COUNTIFS($F:$F,FALSE)=0),\"No Info\",\"Missing Information\"))","v":"No Info"}]
[null,null,"Choose Project Type:",null,null,null,null,"ListDCF",null,"Cool Roof"]
[null,null,"-- Select --",null,null,null,null,"-- Select --",1,"Building Information:",null,null,{"$f":"NOT(ISBLANK(K6))","v":false}]
[null,null,"Parameters","Inputs","Units",null,null,"Custom: Other",2,"Roof Area:",null,"Sq. Ft.",{"$f":"NOT(ISBLANK(K7))","v":false}]
[null,1,null,null,null,null,null,{"$f":"$J$5","v":"Cool Roof"},3,"Roof Material:",null,null,false]
[null,2,null,null,null,null,null,{"$f":"$J$27","v":"Custom EMS"},4,"Roof Pitch:",null,null,false]
[null,3,null,null,null,null,null,{"$f":"$J$50","v":"Air Compressor (VSD)"},5,"Percent Conditioned :",null,"%",false]
[null,4,null,null,null,null,null,{"$f":"$J$67","v":"High Efficiency Walls"},6,"Cooling Equipment Type:",null,null,false]
[null,5,null,null,null,null,null,{"$f":"$J$87","v":"High Efficiency Windows"},7,"Heating Equipment Type:",null,null,false]
[null,6,null,null,null,null,null,{"$f":"$J$131","v":"Central Plant Optimization"},8,"Occupied Cooling Set Point:",null,"deg F",false]
[null,7,null,null,null,null,null,null,9,"Unoccupied Cooling Set Point:",null,"deg F",false]
[null,8,null,null,null,null,null,null,10,"Occupied Heating Set Point:",null,"deg F",false]
[null,9,null,null,null,null,null,null,11,"Unoccupied Heating Set Point:",null,"deg F",false]
[null,10,null,null,null,null,null,null,12,"Approximate\nAge of HVAC Equipment:",null,null,false]
[null,11,null,null,null,null,null,null,13,"Baseline Conditions"]
[null,12,null,null,null,null,null,null,14,"Baseline R-Value (Existing Roof):",null,"R-Value",false]
[null,13,null,null,null,null,null,null,15,"Solar Reflectance of Existing Roof :",null,"0 - 1.0 ",false]
[null,14,null,null,null,null,null,null,16,"Infrared Emittance of Existing Roof :",null,"0 - 1.0 ",false]
[null,15,null,null,null,null,null,null,17,"Proposed Conditions"]
[null,16,null,null,null,null,null,null,18,"R-Value of the Proposed Roof:",null,"R-Value",false]
[null,17,null,null,null,null,null,null,19,"Solar Reflectance of Proposed Roof:",null,"0 - 1.0 ",false]
[null,18,null,null,null,null,null,null,20,"Infrared Emittance of Proposed Roof :",null,"0 - 1.0 ",false]
[null,19,null,null,null,null,null,null,null,"End"]
[null,20,null,null,null,null,null,null,null,"Custom EMS"]
[null,21,null,null,null,null,null,null,1,"Space/Zone Description:",null,null,{"$f":"NOT(ISBLANK(K28))","v":false}]
[null,22,null,null,null,null,null,null,2,"Conditioned Area:",null,"Sq. Ft.",false]
[null,23,null,null,null,null,null,null,3,"Cooling Equipment Type:",null,null,false]
[null,24,null,null,null,null,null,null,4,"Heating Equipment Type:",null,null,false]
[null,25,null,null,null,null,null,null,5,"Approximate Age:",null,null,false]
[null,26,null,null,null,null,null,null,6,"Baseline Conditions"]
[null,27,null,null,null,null,null,null,7," Occupied Cooling Set Point:",null,"deg F",{"$f":"NOT(ISBLANK(K34))","v":false}]
[null,28,null,null,null,null,null,null,8," Unoccupied Cooling Set Point:",null,"deg F",false]
[null,29,null,null,null,null,null,null,9," Occupied Heating Set Point:",null,"deg F",false]
[null,30,null,null,null,null,null,null,10," Unoccupied Heating Set Point:",null,"deg F",false]
[null,31,null,null,null,null,null,null,11," Occupancy Schedule:",null,"(Ex. M-F 8am to 5pm, etc.)",false]
[null,32,null,null,null,null,null,null,12," Economizer operation:",null,"Yes or No",false]
[null,33,null,null,null,null,null,null,13," Demand Controlled Ventilation:",null,"Yes or No",false]
[null,null,null,null,null,null,null,null,14,"Proposed Conditions"]
[null,null,null,null,null,null,null,null,15," Occupied Cooling Set Point:",null,"deg F",{"$f":"NOT(ISBLANK(K42))","v":false}]
[null,null,null,null,null,null,null,null,16," Unoccupied Cooling Set Point:",null,"deg F",false]
[null,null,null,null,null,null,null,null,17," Occupied Heating Set Point:",null,"deg F",false]
[null,null,null,null,null,null,null,null,18," Unoccupied Heating Set Point:",null,"deg F",false]
[null,null,null,null,null,null,null,null,19," Occupancy Schedule:",null,"(Ex. M-F 8am to 5pm, etc.)",false]
[null,null,null,null,null,null,null,null,20," Economizer operation:",null,"Yes or No",false]
[null,null,null,null,null,null,null,null,21," Demand Controlled Ventilation:",null,"Yes or No",{"$f":"NOT(ISBLANK(K48))","v":false}]
[null,null,null,null,null,null,null,null,null,"End"]
[null,null,null,null,null,null,null,null,null,"Air Compressor (VSD)"]
[null,null,null,null,null,null,null,null,1,"Proposed Manufacture Make:",null,null,{"$f":"NOT(ISBLANK(K51))","v":false}]
[null,null,null,null,null,null,null,null,2,"Proposed Manufacture Model Number:",null,null,false]
[null,null,null,null,null,null,null,null,3,"Proposed Rated Power (hp):",null,"HP",false]
[null,null,null,null,null,null,null,null,4,"Proposed Rated Capacity (cfm):",null,"CFM",false]
[null,null,null,null,null,null,null,null,5,"Proposed Capacity Control:",null,null,false]
[null,null,null,null,null,null,null,null,6,"Proposed Compressor Cost:",null,null,false]
[null,null,null,null,null,null,null,null,7,"Baseline Manufacture Make:",null,null,false]
[null,null,null,null,null,null,null,null,8,"Baseline Manufacture Model Number:",null,null,false]
[null,null,null,null,null,null,null,null,9,"Baseline Capacity Control:",null,null,false]
[null,null,null,null,null,null,null,null,10,"Baseline Compressor Cost:",null,null,false]
[null,null,null,null,null,null,null,null,11,"Compressed Air Use:",null,null,false]
[null,null,null,null,null,null,null,null,12,"Operating Discharge Pressure:",null,"PSIG",false]
[null,null,null,null,null,null,null,null,13,"Est. Time Compressor is Loaded:",null,"%",false]
[null,null,null,null,null,null,null,null,14,"Est. Time Compressor is Idle:",null,"%",false]
[null,null,null,null,null,null,null,null,15,"Est. Hours Per Year Compressor is Energized:",null,"Hrs/yr",false]
[null,null,null,null,null,null,null,null,null,"End"]
[null,null,null,null,null,null,null,null,null,"High Efficiency Walls"]
[null,null,null,null,null,null,null,null,1,"Wall Exposure","Wall Area (Sq. Ft.)"]
[null,null,null,null,null,null,null,null,2,"North:",null,"Sq. Ft.",{"$f":"NOT(ISBLANK(K69))","v":false}]
[null,null,null,null,null,null,null,null,3,"West:",null,"Sq. Ft.",false]
[null,null,null,null,null,null,null,null,4,"South:",null,"Sq. Ft.",false]
[null,null,null,null,null,null,null,null,5,"East:",null,"Sq. Ft.",false]
[null,null,null,null,null,null,null,null,6,"Wall Construction:",null,null,false]
[null,null,null,null,null,null,null,null,7,"Cooling Equipment Type:",null,null,false]
[null,null,null,null,null,null,null,null,8,"Heating Equipment Type:",null,null,false]
[null,null,null,null,null,null,null,null,9,"Approximate Age of HVAC Equipment:",null,null,false]
[null,null,null,null,null,null,null,null,10,"Building Percent Air Conditioned:",null,"%",false]
[null,null,null,null,null,null,null,null,11,"Baseline Conditions"]
[null,null,null,null,null,null,null,null,12,"R-Value Of Existing Wall:",null,"R-Value",{"$f":"NOT(ISBLANK(K79))","v":false}]
[null,null,null,null,null,null,null,null,13,"Solar Reflectance of Existing Wall \n(High=0.8, Avg = 0.5, Low =0.1):",null,"0 - 1.0 ",false]
[null,null,null,null,null,null,null,null,14,"Infrared Emittance of Existing Wall \n(High=0.9, Avg = 0.75, Low =0.1):",null,"0 - 1.0 ",false]
[null,null,null,null,null,null,null,null,15,"Proposed Conditions"]
[null,null,null,null,null,null,null,null,16,"R-Value of the Proposed Wall:",null,"R-Value",{"$f":"NOT(ISBLANK(K83))","v":false}]
[null,null,null,null,null,null,null,null,17,"Solar Reflectance of Proposed Wall\n(High=0.8, Avg = 0.5, Low =0.1):",null,"0 - 1.0 ",false]
[null,null,null,null,null,null,null,null,18,"Infrared Emittance of Proposed Wall \n(High=0.9, Avg = 0.75, Low =0.1):",null,"0 - 1.0 ",false]
[null,null,null,null,null,null,null,null,null,"End"]
[null,null,null,null,null,null,null,null,null,"High Efficiency Windows"]
[null,null,null,null,null,null,null,null,1,"Window Exposure","Window Area (Sq. Ft.)"]
[null,null,null,null,null,null,null,null,2,"North:",null,"Sq. Ft.",{"$f":"NOT(ISBLANK(K89))","v":false}]
[null,null,null,null,null,null,null,null,3,"West:",null,"Sq. Ft.",false]
[null,null,null,null,null,null,null,null,4,"South:",null,"Sq. Ft.",false]
[null,null,null,null,null,null,null,null,5,"East:",null,"Sq. Ft.",false]
[null,null,null,null,null,null,null,null,6,"Building Percent Air Conditioned :",null,"%",false]
[null,null,null,null,null,null,null,null,7,"Cooling Equipment Type:",null,null,false]
[null,null,null,null,null,null,null,null,8,"Heating Equipment Type:",null,null,false]
[null,null,null,null,null,null,null,null,9,"Approximate Age of HVAC Equipment:",null,null,false]
[null,null,null,null,null,null,null,null,10,"Baseline Conditions"]
[null,null,null,null,null,null,null,null,11,"Baseline Window Type:",null,null,{"$f":"NOT(ISBLANK(K98))","v":false}]
[null,null,null,null,null,null,null,null,12,"Baseline Glazing Thickness & Color:",null,null,false]
[null,null,null,null,null,null,null,null,13,"Baseline U-Value:",null,null,false]
[null,null,null,null,null,null,null,null,14,"Baseline Solar Heat Gain Coefficient (SHGC) of Window:",null,"0 - 1.0 ",false]
[null,null,null,null,null,null,null,null,15,"Proposed Conditions"]
[null,null,null,null,null,null,null,null,16,"Proposed Window Type:",null,null,{"$f":"NOT(ISBLANK(K103))","v":false}]
[null,null,null,null,null,null,null,null,17,"Proposed Glazing Thickness & Color:",null,null,false]
[null,null,null,null,null,null,null,null,18,"U-Value of Proposed Window:",null,null,false]
[null,null,null,null,null,null,null,null,19,"Solar Heat Gain Coefficient (SHGC) of Proposed Treatment:",null,"0 - 1.0 ",false]
[null,null,null,null,null,null,null,null,null,"End"]
[null,null,null,null,null,null,null,"ListFixtureType",null,"Lighting Controls"]
[null,null,null,null,null,null,null,"T8 fluorescent",1,"Lighting Group 1"]
[null,null,null,null,null,null,null,"T5 fluorescent",2,"Fixture Locations:",null,null,{"$f":"NOT(ISBLANK(K110))","v":false}]
[null,null,null,null,null,null,null,"T12 fluorescent",3,"Fixture Type:",null,null,false]
[null,null,null,null,null,null,null,"Incandescent screw-in",4,"Quantity of fixtures:",null,null,false]
[null,null,null,null,null,null,null,"CFL screw-in",5,"Fixture Wattage:",null,"Watts",false]
[null,null,null,null,null,null,null,"CFL pin-based",6,"Baseline Lighting Operating Schedule\n(include dimming set points if applicable):",null,null,false]
[null,null,null,null,null,null,null,"Metal Halide",7,"Proposed Lighting Operating Schedule\n(include dimming set points if applicable):",null,null,false]
[null,null,null,null,null,null,null,"High Pressure Sodium",8,"Lighting Group 2"]
[null,null,null,null,null,null,null,"LED",9,"Fixture Locations:",null,null,{"$f":"NOT(ISBLANK(K117))","v":false}]
[null,null,null,null,null,null,null,"Mercury Vapor",10,"Fixture Type:",null,null,false]
[null,null,null,null,null,null,null,"Induction",11,"Quantity of fixtures:",null,null,false]
[null,null,null,null,null,null,null,null,12,"Fixture Wattage:",null,"Watts",false]
[null,null,null,null,null,null,null,null,13,"Baseline Lighting Operating Schedule\n(include dimming set points if applicable):",null,null,false]
[null,null,null,null,null,null,null,null,14,"Proposed Lighting Operating Schedule\n(include dimming set points if applicable):",null,null,false]
[null,null,null,null,null,null,null,null,15,"Lighting Group 3"]
[null,null,null,null,null,null,null,null,16,"Fixture Locations:",null,null,{"$f":"NOT(ISBLANK(K124))","v":false}]
[null,null,null,null,null,null,null,null,17,"Fixture Type:",null,null,false]
[null,null,null,null,null,null,null,null,18,"Quantity of fixtures:",null,null,false]
[null,null,null,null,null,null,null,null,19,"Fixture Wattage:",null,"Watts",false]
[null,null,null,null,null,null,null,null,20,"Baseline Lighting Operating Schedule\n(include dimming set points if applicable):",null,null,false]
[null,null,null,null,null,null,null,null,21,"Proposed Lighting Operating Schedule\n(include dimming set points if applicable):",null,null,false]
[null,null,null,null,null,null,null,null,null,"End"]
[null,null,null,null,null,null,null,null,null,"Central Plant Optimization"]
[null,null,null,null,null,null,null,null,1,"Central Plant Equipment"]
[null,null,null,null,null,null,null,null,2,"Quantity and Capacity of all Chillers:",null,null,{"$f":"NOT(ISBLANK(K133))","v":false}]
[null,null,null,null,null,null,null,null,3,"Chiller Type:",null,null,false]
[null,null,null,null,null,null,null,null,4,"Heat Rejection Type: ",null,null,false]
[null,null,null,null,null,null,null,null,5,"Chilled Water Distribution: ",null,null,false]
[null,null,null,null,null,null,null,null,6,"Primary CHW Pump Size and Qty:",null,null,false]
[null,null,null,null,null,null,null,null,7,"Secondary CHW Pump Size and Qty:\n(if applicable)",null,null,false]
[null,null,null,null,null,null,null,null,8,"Cooling Tower Fan Size and Qty:",null,null,false]
[null,null,null,null,null,null,null,null,9,"Cooling Tower Fan VFD:",null,null,false]
[null,null,null,null,null,null,null,null,10,"Flat Plate Heat Exchanger? :",null,null,false]
[null,null,null,null,null,null,null,null,11,"Configuration of Flat Plate:",null,null,false]
[null,null,null,null,null,null,null,null,12,"Existing Central Plant Operations & Set Points"]
[null,null,null,null,null,null,null,null,13,"Central Plant Operating Schedule:\n(ex. Mon-Sat 7am-10pm)",null,null,{"$f":"NOT(ISBLANK(K144))","v":false}]
[null,null,null,null,null,null,null,null,14,"Peak Summer Cooling Load:",null,"Tons",false]
[null,null,null,null,null,null,null,null,15,"Winter Outside Air Cooling Limit:",null,"deg F",false]
[null,null,null,null,null,null,null,null,16,"Please describe the current Chiller Sequencing:",null,null,false]
[null,null,null,null,null,null,null,null,17,null,null,null,false]
[null,null,null,null,null,null,null,null,18,"Chilled Water (CHW) set point:",null,"deg F",false]
[null,null,null,null,null,null,null,null,19,"If CHW Reset, please describe strategy:",null,null,false]
[null,null,null,null,null,null,null,null,20,"Condenser Water (CW) Set Point:",null,"deg F",false]
[null,null,null,null,null,null,null,null,21,"If CW Reset, please describe strategy:",null,null,false]
[null,null,null,null,null,null,null,null,22,"Flat Plate Enable Set Point:",null,"deg F",false]
[null,null,null,null,null,null,null,null,23,"Proposed Central Plant Operations & Set Points"]
[null,null,null,null,null,null,null,null,24,"Describe the Proposed CHW Reset Strategy (if any):",null,null,{"$f":"NOT(ISBLANK(K155))","v":false}]
[null,null,null,null,null,null,null,null,25,"Describe the Proposed CW Reset Strategy (if any):",null,null,false]
[null,null,null,null,null,null,null,null,26,"Please describe all Proposed changes to the chiller sequencing:",null,null,false]
[null,null,null,null,null,null,null,null,27,null,null,null,false]
[null,null,null,null,null,null,null,null,28,"Please describe all Proposed changes to the CHW pumping distribution system:",null,null,false]
[null,null,null,null,null,null,null,null,29,null,null,null,false]
[null,null,null,null,null,null,null,null,30,"Please describe all Proposed changes to the cooling tower operation:",null,null,false]
[null,null,null,null,null,null,null,null,31,null,null,null,false]
[null,null,null,null,null,null,null,null,32,"Please describe any other changes to central plant sequence of operations that are part of the project:",null,null,false]
[null,null,null,null,null,null,null,null,33,null,null,null,false]
[null,null,null,null,null,null,null,null,null,"End"]
[null,null,null,null,null,null,null,null,null,"-- Select --"]
[null,null,null,null,null,null,null,null,1]
[null,null,null,null,null,null,null,null,2]
[null,null,null,null,null,null,null,null,3]
[null,null,null,null,null,null,null,null,4]
[null,null,null,null,null,null,null,null,5]
[null,null,null,null,null,null,null,null,6]
[null,null,null,null,null,null,null,null,7]
[null,null,null,null,null,null,null,null,8]
[null,null,null,null,null,null,null,null,9]
[null,null,null,null,null,null,null,null,10]
[null,null,null,null,null,null,null,null,11]
[null,null,null,null,null,null,null,null,12]
[null,null,null,null,null,null,null,null,13]
[null,null,null,null,null,null,null,null,14]
[null,null,null,null,null,null,null,null,15]
[null,null,null,null,null,null,null,null,16]
[null,null,null,null,null,null,null,null,17]
[null,null,null,null,null,null,null,null,18]
[null,null,null,null,null,null,null,null,19]
[null,null,null,null,null,null,null,null,20]
[null,null,null,null,null,null,null,null,21]
[null,null,null,null,null,null,null,null,22]
[null,null,null,null,null,null,null,null,23]
[null,null,null,null,null,null,null,null,24]
[null,null,null,null,null,null,null,null,25]
[null,null,null,null,null,null,null,null,26]
[null,null,null,null,null,null,null,null,27]
[null,null,null,null,null,null,null,null,28]
[null,null,null,null,null,null,null,null,29]
[null,null,null,null,null,null,null,null,30]
[null,null,null,null,null,null,null,null,31]
[null,null,null,null,null,null,null,null,32]
[null,null,null,null,null,null,null,null,33]
[null,null,null,null,null,null,null,null,null,"End"]
[null,null,null,null,null,null,null,null,null,"Custom: Other"]
[null,null,null,null,null,null,null,null,1,"Please fill in the custom parameters, inputs, and units that are relevant to the measure(s) you are applying for. Separate measures by supplying the measure type before the parameters.",null,null,{"$f":"IF(COUNTA(J204:L234)=0,FALSE,TRUE)","v":false}]
[null,null,null,null,null,null,null,null,2]
[null,null,null,null,null,null,null,null,3,null,null,null,{"$f":"IF(NOT(ISBLANK(J204)),NOT(OR(ISBLANK(K204),ISBLANK(L204))),TRUE)","v":true}]
[null,null,null,null,null,null,null,null,4,null,null,null,{"$f":"IF(NOT(ISBLANK(J205)),NOT(OR(ISBLANK(K205),ISBLANK(L205))),TRUE)","v":true}]
[null,null,null,null,null,null,null,null,5,null,null,null,true]
[null,null,null,null,null,null,null,null,6,null,null,null,true]
[null,null,null,null,null,null,null,null,7,null,null,null,true]
[null,null,null,null,null,null,null,null,8,null,null,null,true]
[null,null,null,null,null,null,null,null,9,null,null,null,true]
[null,null,null,null,null,null,null,null,10,null,null,null,true]
[null,null,null,null,null,null,null,null,11,null,null,null,true]
[null,null,null,null,null,null,null,null,12,null,null,null,true]
[null,null,null,null,null,null,null,null,13,null,null,null,true]
[null,null,null,null,null,null,null,null,14,null,null,null,true]
[null,null,null,null,null,null,null,null,15,null,null,null,true]
[null,null,null,null,null,null,null,null,16,null,null,null,true]
[null,null,null,null,null,null,null,null,17,null,null,null,true]
[null,null,null,null,null,null,null,null,18,null,null,null,true]
[null,null,null,null,null,null,null,null,19,null,null,null,true]
[null,null,null,null,null,null,null,null,20,null,null,null,true]
[null,null,null,null,null,null,null,null,21,null,null,null,true]
[null,null,null,null,null,null,null,null,22,null,null,null,true]
[null,null,null,null,null,null,null,null,23,null,null,null,true]
[null,null,null,null,null,null,null,null,24,null,null,null,true]
[null,null,null,null,null,null,null,null,25,null,null,null,true]
[null,null,null,null,null,null,null,null,26,null,null,null,true]
[null,null,null,null,null,null,null,null,27,null,null,null,true]
[null,null,null,null,null,null,null,null,28,null,null,null,true]
[null,null,null,null,null,null,null,null,29,null,null,null,true]
[null,null,null,null,null,null,null,null,30,null,null,null,true]
[null,null,null,null,null,null,null,null,31,null,null,null,true]
[null,null,null,null,null,null,null,null,32,null,null,null,true]
[null,null,null,null,null,null,null,null,33,null,null,null,true]
[null,null,null,null,null,null,null,null,null,"End"]

{"sheet":"Data Form (EEM 3)","index":10,"n_rows":235,"n_cols":16,"rows_kept":235,"cut":false,"hidden":true,"merged":[[160,9,161,9],[160,10,161,11],[162,9,163,9],[162,10,163,11],[201,9,202,11],[154,10,154,11],[155,10,155,11],[156,9,157,9],[156,10,157,11],[158,9,159,9],[158,10,159,11],[153,9,153,11],[137,10,137,11],[138,10,138,11],[139,10,139,11],[140,10,140,11],[141,10,141,11],[142,9,142,11],[143,10,143,11],[146,9,147,9],[146,10,147,11],[149,10,149,11],[151,10,151,11],[136,10,136,11],[115,9,115,11],[120,10,120,11],[121,10,121,11],[122,9,122,11],[127,10,127,11],[128,10,128,11],[131,9,131,11],[132,10,132,11],[133,10,133,11],[134,10,134,11],[135,10,135,11],[114,10,114,11],[5,2,5,4],[17,9,17,11],[21,9,21,11],[32,9,32,11],[40,9,40,11],[77,9,77,11],[81,9,81,11],[96,9,96,11],[101,9,101,11],[108,9,108,11],[113,10,113,11],[1,2,1,4],[1,6,1,15],[2,2,3,4],[3,13,3,14],[4,2,4,4]]}
[3,null,{"$f":"'Customer Information'!$AY$5 & \" - \" & 'Customer Information'!$AY$6","v":"FY27.1.0 - Version 20260501"}]
[null,"HIDE",{"$f":"CONCATENATE(\"Data Collection Form (EEM #3: \",IF('Project Information'!$M$7<>\"No Info\",'Project Information'!$E$29,\"No Info\"),\")\")","v":"Data Collection Form (EEM #3: No Info)"},null,null,"HIDE","HIDE"]
[null,null,"Instructions: Please select the project type from the drop down menu below and provide the information for the associated parameters. ",null,null,null,null,"Print Area"]
[null,null,null,null,null,null,null,{"$f":"MATCH(MAX($B:$B),$B:$B,0)","v":40},null,null,null,null,null,"Complete?",null,{"$f":"IF(AND(EEM3_DCF_ProjectType<>\"-- Select --\",EEM3_DCF_ProjectType<>\"\",COUNTIFS($F:$F,FALSE)=0),\"Complete\",IF(OR(EEM3_DCF_ProjectType=\"-- Select --\",EEM3_DCF_ProjectType=\"\",COUNTIFS($F:$F,FALSE)=0),\"No Info\",\"Missing Information\"))","v":"No Info"}]
[null,null,"Choose Project Type:",null,null,null,null,"ListDCF",null,"Cool Roof"]
[null,null,"-- Select --",null,null,null,null,"-- Select --",1,"Building Information:",null,null,{"$f":"NOT(ISBLANK(K6))","v":false}]
[null,null,"Parameters","Inputs","Units",null,null,"Custom: Other",2,"Roof Area:",null,"Sq. Ft.",{"$f":"NOT(ISBLANK(K7))","v":false}]
[null,1,null,null,null,null,null,{"$f":"$J$5","v":"Cool Roof"},3,"Roof Material:",null,null,false]
[null,2,null,null,null,null,null,{"$f":"$J$27","v":"Custom EMS"},4,"Roof Pitch:",null,null,false]
[null,3,null,null,null,null,null,{"$f":"$J$50","v":"Air Compressor (VSD)"},5,"Percent Conditioned :",null,"%",false]
[null,4,null,null,null,null,null,{"$f":"$J$67","v":"High Efficiency Walls"},6,"Cooling Equipment Type:",null,null,false]
[null,5,null,null,null,null,null,{"$f":"$J$87","v":"High Efficiency Windows"},7,"Heating Equipment Type:",null,null,false]
[null,6,null,null,null,null,null,{"$f":"$J$131","v":"Central Plant Optimization"},8,"Occupied Cooling Set Point:",null,"deg F",false]
[null,7,null,null,null,null,null,null,9,"Unoccupied Cooling Set Point:",null,"deg F",false]
[null,8,null,null,null,null,null,null,10,"Occupied Heating Set Point:",null,"deg F",false]
[null,9,null,null,null,null,null,null,11,"Unoccupied Heating Set Point:",null,"deg F",false]
[null,10,null,null,null,null,null,null,12,"Approximate\nAge of HVAC Equipment:",null,null,false]
[null,11,null,null,null,null,null,null,13,"Baseline Conditions"]
[null,12,null,null,null,null,null,null,14,"Baseline R-Value (Existing Roof):",null,"R-Value",false]
[null,13,null,null,null,null,null,null,15,"Solar Reflectance of Existing Roof :",null,"0 - 1.0 ",false]
[null,14,null,null,null,null,null,null,16,"Infrared Emittance of Existing Roof :",null,"0 - 1.0 ",false]
[null,15,null,null,null,null,null,null,17,"Proposed Conditions"]
[null,16,null,null,null,null,null,null,18,"R-Value of the Proposed Roof:",null,"R-Value",false]
[null,17,null,null,null,null,null,null,19,"Solar Reflectance of Proposed Roof:",null,"0 - 1.0 ",false]
[null,18,null,null,null,null,null,null,20,"Infrared Emittance of Proposed Roof :",null,"0 - 1.0 ",false]
[null,19,null,null,null,null,null,null,null,"End"]
[null,20,null,null,null,null,null,null,null,"Custom EMS"]
[null,21,null,null,null,null,null,null,1,"Space/Zone Description:",null,null,{"$f":"NOT(ISBLANK(K28))","v":false}]
[null,22,null,null,null,null,null,null,2,"Conditioned Area:",null,"Sq. Ft.",false]
[null,23,null,null,null,null,null,null,3,"Cooling Equipment Type:",null,null,false]
[null,24,null,null,null,null,null,null,4,"Heating Equipment Type:",null,null,false]
[null,25,null,null,null,null,null,null,5,"Approximate Age:",null,null,false]
[null,26,null,null,null,null,null,null,6,"Baseline Conditions"]
[null,27,null,null,null,null,null,null,7," Occupied Cooling Set Point:",null,"deg F",{"$f":"NOT(ISBLANK(K34))","v":false}]
[null,28,null,null,null,null,null,null,8," Unoccupied Cooling Set Point:",null,"deg F",false]
[null,29,null,null,null,null,null,null,9," Occupied Heating Set Point:",null,"deg F",false]
[null,30,null,null,null,null,null,null,10," Unoccupied Heating Set Point:",null,"deg F",false]
[null,31,null,null,null,null,null,null,11," Occupancy Schedule:",null,"(Ex. M-F 8am to 5pm, etc.)",false]
[null,32,null,null,null,null,null,null,12," Economizer operation:",null,"Yes or No",false]
[null,33,null,null,null,null,null,null,13," Demand Controlled Ventilation:",null,"Yes or No",false]
[null,null,null,null,null,null,null,null,14,"Proposed Conditions"]
[null,null,null,null,null,null,null,null,15," Occupied Cooling Set Point:",null,"deg F",{"$f":"NOT(ISBLANK(K42))","v":false}]
[null,null,null,null,null,null,null,null,16," Unoccupied Cooling Set Point:",null,"deg F",false]
[null,null,null,null,null,null,null,null,17," Occupied Heating Set Point:",null,"deg F",false]
[null,null,null,null,null,null,null,null,18," Unoccupied Heating Set Point:",null,"deg F",false]
[null,null,null,null,null,null,null,null,19," Occupancy Schedule:",null,"(Ex. M-F 8am to 5pm, etc.)",false]
[null,null,null,null,null,null,null,null,20," Economizer operation:",null,"Yes or No",false]
[null,null,null,null,null,null,null,null,21," Demand Controlled Ventilation:",null,"Yes or No",{"$f":"NOT(ISBLANK(K48))","v":false}]
[null,null,null,null,null,null,null,null,null,"End"]
[null,null,null,null,null,null,null,null,null,"Air Compressor (VSD)"]
[null,null,null,null,null,null,null,null,1,"Proposed Manufacture Make:",null,null,{"$f":"NOT(ISBLANK(K51))","v":false}]
[null,null,null,null,null,null,null,null,2,"Proposed Manufacture Model Number:",null,null,false]
[null,null,null,null,null,null,null,null,3,"Proposed Rated Power (hp):",null,"HP",false]
[null,null,null,null,null,null,null,null,4,"Proposed Rated Capacity (cfm):",null,"CFM",false]
[null,null,null,null,null,null,null,null,5,"Proposed Capacity Control:",null,null,false]
[null,null,null,null,null,null,null,null,6,"Proposed Compressor Cost:",null,null,false]
[null,null,null,null,null,null,null,null,7,"Baseline Manufacture Make:",null,null,false]
[null,null,null,null,null,null,null,null,8,"Baseline Manufacture Model Number:",null,null,false]
[null,null,null,null,null,null,null,null,9,"Baseline Capacity Control:",null,null,false]
[null,null,null,null,null,null,null,null,10,"Baseline Compressor Cost:",null,null,false]
[null,null,null,null,null,null,null,null,11,"Compressed Air Use:",null,null,false]
[null,null,null,null,null,null,null,null,12,"Operating Discharge Pressure:",null,"PSIG",false]
[null,null,null,null,null,null,null,null,13,"Est. Time Compressor is Loaded:",null,"%",false]
[null,null,null,null,null,null,null,null,14,"Est. Time Compressor is Idle:",null,"%",false]
[null,null,null,null,null,null,null,null,15,"Est. Hours Per Year Compressor is Energized:",null,"Hrs/yr",false]
[null,null,null,null,null,null,null,null,null,"End"]
[null,null,null,null,null,null,null,null,null,"High Efficiency Walls"]
[null,null,null,null,null,null,null,null,1,"Wall Exposure","Wall Area (Sq. Ft.)"]
[null,null,null,null,null,null,null,null,2,"North:",null,"Sq. Ft.",{"$f":"NOT(ISBLANK(K69))","v":false}]
[null,null,null,null,null,null,null,null,3,"West:",null,"Sq. Ft.",false]
[null,null,null,null,null,null,null,null,4,"South:",null,"Sq. Ft.",false]
[null,null,null,null,null,null,null,null,5,"East:",null,"Sq. Ft.",false]
[null,null,null,null,null,null,null,null,6,"Wall Construction:",null,null,false]
[null,null,null,null,null,null,null,null,7,"Cooling Equipment Type:",null,null,false]
[null,null,null,null,null,null,null,null,8,"Heating Equipment Type:",null,null,false]
[null,null,null,null,null,null,null,null,9,"Approximate Age of HVAC Equipment:",null,null,false]
[null,null,null,null,null,null,null,null,10,"Building Percent Air Conditioned:",null,"%",false]
[null,null,null,null,null,null,null,null,11,"Baseline Conditions"]
[null,null,null,null,null,null,null,null,12,"R-Value Of Existing Wall:",null,"R-Value",{"$f":"NOT(ISBLANK(K79))","v":false}]
[null,null,null,null,null,null,null,null,13,"Solar Reflectance of Existing Wall \n(High=0.8, Avg = 0.5, Low =0.1):",null,"0 - 1.0 ",false]
[null,null,null,null,null,null,null,null,14,"Infrared Emittance of Existing Wall \n(High=0.9, Avg = 0.75, Low =0.1):",null,"0 - 1.0 ",false]
[null,null,null,null,null,null,null,null,15,"Proposed Conditions"]
[null,null,null,null,null,null,null,null,16,"R-Value of the Proposed Wall:",null,"R-Value",{"$f":"NOT(ISBLANK(K83))","v":false}]
[null,null,null,null,null,null,null,null,17,"Solar Reflectance of Proposed Wall\n(High=0.8, Avg = 0.5, Low =0.1):",null,"0 - 1.0 ",false]
[null,null,null,null,null,null,null,null,18,"Infrared Emittance of Proposed Wall \n(High=0.9, Avg = 0.75, Low =0.1):",null,"0 - 1.0 ",false]
[null,null,null,null,null,null,null,null,null,"End"]
[null,null,null,null,null,null,null,null,null,"High Efficiency Windows"]
[null,null,null,null,null,null,null,null,1,"Window Exposure","Window Area (Sq. Ft.)"]
[null,null,null,null,null,null,null,null,2,"North:",null,"Sq. Ft.",{"$f":"NOT(ISBLANK(K89))","v":false}]
[null,null,null,null,null,null,null,null,3,"West:",null,"Sq. Ft.",false]
[null,null,null,null,null,null,null,null,4,"South:",null,"Sq. Ft.",false]
[null,null,null,null,null,null,null,null,5,"East:",null,"Sq. Ft.",false]
[null,null,null,null,null,null,null,null,6,"Building Percent Air Conditioned :",null,"%",false]
[null,null,null,null,null,null,null,null,7,"Cooling Equipment Type:",null,null,false]
[null,null,null,null,null,null,null,null,8,"Heating Equipment Type:",null,null,false]
[null,null,null,null,null,null,null,null,9,"Approximate Age of HVAC Equipment:",null,null,false]
[null,null,null,null,null,null,null,null,10,"Baseline Conditions"]
[null,null,null,null,null,null,null,null,11,"Baseline Window Type:",null,null,{"$f":"NOT(ISBLANK(K98))","v":false}]
[null,null,null,null,null,null,null,null,12,"Baseline Glazing Thickness & Color:",null,null,false]
[null,null,null,null,null,null,null,null,13,"Baseline U-Value:",null,null,false]
[null,null,null,null,null,null,null,null,14,"Baseline Solar Heat Gain Coefficient (SHGC) of Window:",null,"0 - 1.0 ",false]
[null,null,null,null,null,null,null,null,15,"Proposed Conditions"]
[null,null,null,null,null,null,null,null,16,"Proposed Window Type:",null,null,{"$f":"NOT(ISBLANK(K103))","v":false}]
[null,null,null,null,null,null,null,null,17,"Proposed Glazing Thickness & Color:",null,null,false]
[null,null,null,null,null,null,null,null,18,"U-Value of Proposed Window:",null,null,false]
[null,null,null,null,null,null,null,null,19,"Solar Heat Gain Coefficient (SHGC) of Proposed Treatment:",null,"0 - 1.0 ",false]
[null,null,null,null,null,null,null,null,null,"End"]
[null,null,null,null,null,null,null,"ListFixtureType",null,"Lighting Controls"]
[null,null,null,null,null,null,null,"T8 fluorescent",1,"Lighting Group 1"]
[null,null,null,null,null,null,null,"T5 fluorescent",2,"Fixture Locations:",null,null,{"$f":"NOT(ISBLANK(K110))","v":false}]
[null,null,null,null,null,null,null,"T12 fluorescent",3,"Fixture Type:",null,null,false]
[null,null,null,null,null,null,null,"Incandescent screw-in",4,"Quantity of fixtures:",null,null,false]
[null,null,null,null,null,null,null,"CFL screw-in",5,"Fixture Wattage:",null,"Watts",false]
[null,null,null,null,null,null,null,"CFL pin-based",6,"Baseline Lighting Operating Schedule\n(include dimming set points if applicable):",null,null,false]
[null,null,null,null,null,null,null,"Metal Halide",7,"Proposed Lighting Operating Schedule\n(include dimming set points if applicable):",null,null,false]
[null,null,null,null,null,null,null,"High Pressure Sodium",8,"Lighting Group 2"]
[null,null,null,null,null,null,null,"LED",9,"Fixture Locations:",null,null,{"$f":"NOT(ISBLANK(K117))","v":false}]
[null,null,null,null,null,null,null,"Mercury Vapor",10,"Fixture Type:",null,null,false]
[null,null,null,null,null,null,null,"Induction",11,"Quantity of fixtures:",null,null,false]
[null,null,null,null,null,null,null,null,12,"Fixture Wattage:",null,"Watts",false]
[null,null,null,null,null,null,null,null,13,"Baseline Lighting Operating Schedule\n(include dimming set points if applicable):",null,null,false]
[null,null,null,null,null,null,null,null,14,"Proposed Lighting Operating Schedule\n(include dimming set points if applicable):",null,null,false]
[null,null,null,null,null,null,null,null,15,"Lighting Group 3"]
[null,null,null,null,null,null,null,null,16,"Fixture Locations:",null,null,{"$f":"NOT(ISBLANK(K124))","v":false}]
[null,null,null,null,null,null,null,null,17,"Fixture Type:",null,null,false]
[null,null,null,null,null,null,null,null,18,"Quantity of fixtures:",null,null,false]
[null,null,null,null,null,null,null,null,19,"Fixture Wattage:",null,"Watts",false]
[null,null,null,null,null,null,null,null,20,"Baseline Lighting Operating Schedule\n(include dimming set points if applicable):",null,null,false]
[null,null,null,null,null,null,null,null,21,"Proposed Lighting Operating Schedule\n(include dimming set points if applicable):",null,null,false]
[null,null,null,null,null,null,null,null,null,"End"]
[null,null,null,null,null,null,null,null,null,"Central Plant Optimization"]
[null,null,null,null,null,null,null,null,1,"Central Plant Equipment"]
[null,null,null,null,null,null,null,null,2,"Quantity and Capacity of all Chillers:",null,null,{"$f":"NOT(ISBLANK(K133))","v":false}]
[null,null,null,null,null,null,null,null,3,"Chiller Type:",null,null,false]
[null,null,null,null,null,null,null,null,4,"Heat Rejection Type: ",null,null,false]
[null,null,null,null,null,null,null,null,5,"Chilled Water Distribution: ",null,null,false]
[null,null,null,null,null,null,null,null,6,"Primary CHW Pump Size and Qty:",null,null,false]
[null,null,null,null,null,null,null,null,7,"Secondary CHW Pump Size and Qty:\n(if applicable)",null,null,false]
[null,null,null,null,null,null,null,null,8,"Cooling Tower Fan Size and Qty:",null,null,false]
[null,null,null,null,null,null,null,null,9,"Cooling Tower Fan VFD:",null,null,false]
[null,null,null,null,null,null,null,null,10,"Flat Plate Heat Exchanger? :",null,null,false]
[null,null,null,null,null,null,null,null,11,"Configuration of Flat Plate:",null,null,false]
[null,null,null,null,null,null,null,null,12,"Existing Central Plant Operations & Set Points"]
[null,null,null,null,null,null,null,null,13,"Central Plant Operating Schedule:\n(ex. Mon-Sat 7am-10pm)",null,null,{"$f":"NOT(ISBLANK(K144))","v":false}]
[null,null,null,null,null,null,null,null,14,"Peak Summer Cooling Load:",null,"Tons",false]
[null,null,null,null,null,null,null,null,15,"Winter Outside Air Cooling Limit:",null,"deg F",false]
[null,null,null,null,null,null,null,null,16,"Please describe the current Chiller Sequencing:",null,null,false]
[null,null,null,null,null,null,null,null,17,null,null,null,false]
[null,null,null,null,null,null,null,null,18,"Chilled Water (CHW) set point:",null,"deg F",false]
[null,null,null,null,null,null,null,null,19,"If CHW Reset, please describe strategy:",null,null,false]
[null,null,null,null,null,null,null,null,20,"Condenser Water (CW) Set Point:",null,"deg F",false]
[null,null,null,null,null,null,null,null,21,"If CW Reset, please describe strategy:",null,null,false]
[null,null,null,null,null,null,null,null,22,"Flat Plate Enable Set Point:",null,"deg F",false]
[null,null,null,null,null,null,null,null,23,"Proposed Central Plant Operations & Set Points"]
[null,null,null,null,null,null,null,null,24,"Describe the Proposed CHW Reset Strategy (if any):",null,null,{"$f":"NOT(ISBLANK(K155))","v":false}]
[null,null,null,null,null,null,null,null,25,"Describe the Proposed CW Reset Strategy (if any):",null,null,false]
[null,null,null,null,null,null,null,null,26,"Please describe all Proposed changes to the chiller sequencing:",null,null,false]
[null,null,null,null,null,null,null,null,27,null,null,null,false]
[null,null,null,null,null,null,null,null,28,"Please describe all Proposed changes to the CHW pumping distribution system:",null,null,false]
[null,null,null,null,null,null,null,null,29,null,null,null,false]
[null,null,null,null,null,null,null,null,30,"Please describe all Proposed changes to the cooling tower operation:",null,null,false]
[null,null,null,null,null,null,null,null,31,null,null,null,false]
[null,null,null,null,null,null,null,null,32,"Please describe any other changes to central plant sequence of operations that are part of the project:",null,null,false]
[null,null,null,null,null,null,null,null,33,null,null,null,false]
[null,null,null,null,null,null,null,null,null,"End"]
[null,null,null,null,null,null,null,null,null,"-- Select --"]
[null,null,null,null,null,null,null,null,1]
[null,null,null,null,null,null,null,null,2]
[null,null,null,null,null,null,null,null,3]
[null,null,null,null,null,null,null,null,4]
[null,null,null,null,null,null,null,null,5]
[null,null,null,null,null,null,null,null,6]
[null,null,null,null,null,null,null,null,7]
[null,null,null,null,null,null,null,null,8]
[null,null,null,null,null,null,null,null,9]
[null,null,null,null,null,null,null,null,10]
[null,null,null,null,null,null,null,null,11]
[null,null,null,null,null,null,null,null,12]
[null,null,null,null,null,null,null,null,13]
[null,null,null,null,null,null,null,null,14]
[null,null,null,null,null,null,null,null,15]
[null,null,null,null,null,null,null,null,16]
[null,null,null,null,null,null,null,null,17]
[null,null,null,null,null,null,null,null,18]
[null,null,null,null,null,null,null,null,19]
[null,null,null,null,null,null,null,null,20]
[null,null,null,null,null,null,null,null,21]
[null,null,null,null,null,null,null,null,22]
[null,null,null,null,null,null,null,null,23]
[null,null,null,null,null,null,null,null,24]
[null,null,null,null,null,null,null,null,25]
[null,null,null,null,null,null,null,null,26]
[null,null,null,null,null,null,null,null,27]
[null,null,null,null,null,null,null,null,28]
[null,null,null,null,null,null,null,null,29]
[null,null,null,null,null,null,null,null,30]
[null,null,null,null,null,null,null,null,31]
[null,null,null,null,null,null,null,null,32]
[null,null,null,null,null,null,null,null,33]
[null,null,null,null,null,null,null,null,null,"End"]
[null,null,null,null,null,null,null,null,null,"Custom: Other"]
[null,null,null,null,null,null,null,null,1,"Please fill in the custom parameters, inputs, and units that are relevant to the measure(s) you are applying for. Separate measures by supplying the measure type before the parameters.",null,null,{"$f":"IF(COUNTA(J204:L234)=0,FALSE,TRUE)","v":false}]
[null,null,null,null,null,null,null,null,2]
[null,null,null,null,null,null,null,null,3,null,null,null,{"$f":"IF(NOT(ISBLANK(J204)),NOT(OR(ISBLANK(K204),ISBLANK(L204))),TRUE)","v":true}]
[null,null,null,null,null,null,null,null,4,null,null,null,{"$f":"IF(NOT(ISBLANK(J205)),NOT(OR(ISBLANK(K205),ISBLANK(L205))),TRUE)","v":true}]
[null,null,null,null,null,null,null,null,5,null,null,null,true]
[null,null,null,null,null,null,null,null,6,null,null,null,true]
[null,null,null,null,null,null,null,null,7,null,null,null,true]
[null,null,null,null,null,null,null,null,8,null,null,null,true]
[null,null,null,null,null,null,null,null,9,null,null,null,true]
[null,null,null,null,null,null,null,null,10,null,null,null,true]
[null,null,null,null,null,null,null,null,11,null,null,null,true]
[null,null,null,null,null,null,null,null,12,null,null,null,true]
[null,null,null,null,null,null,null,null,13,null,null,null,true]
[null,null,null,null,null,null,null,null,14,null,null,null,true]
[null,null,null,null,null,null,null,null,15,null,null,null,true]
[null,null,null,null,null,null,null,null,16,null,null,null,true]
[null,null,null,null,null,null,null,null,17,null,null,null,true]
[null,null,null,null,null,null,null,null,18,null,null,null,true]
[null,null,null,null,null,null,null,null,19,null,null,null,true]
[null,null,null,null,null,null,null,null,20,null,null,null,true]
[null,null,null,null,null,null,null,null,21,null,null,null,true]
[null,null,null,null,null,null,null,null,22,null,null,null,true]
[null,null,null,null,null,null,null,null,23,null,null,null,true]
[null,null,null,null,null,null,null,null,24,null,null,null,true]
[null,null,null,null,null,null,null,null,25,null,null,null,true]
[null,null,null,null,null,null,null,null,26,null,null,null,true]
[null,null,null,null,null,null,null,null,27,null,null,null,true]
[null,null,null,null,null,null,null,null,28,null,null,null,true]
[null,null,null,null,null,null,null,null,29,null,null,null,true]
[null,null,null,null,null,null,null,null,30,null,null,null,true]
[null,null,null,null,null,null,null,null,31,null,null,null,true]
[null,null,null,null,null,null,null,null,32,null,null,null,true]
[null,null,null,null,null,null,null,null,33,null,null,null,true]
[null,null,null,null,null,null,null,null,null,"End"]

{"sheet":"Data Form (EEM 4)","index":11,"n_rows":235,"n_cols":16,"rows_kept":235,"cut":false,"hidden":true,"merged":[[160,9,161,9],[160,10,161,11],[162,9,163,9],[162,10,163,11],[201,9,202,11],[154,10,154,11],[155,10,155,11],[156,9,157,9],[156,10,157,11],[158,9,159,9],[158,10,159,11],[153,9,153,11],[137,10,137,11],[138,10,138,11],[139,10,139,11],[140,10,140,11],[141,10,141,11],[142,9,142,11],[143,10,143,11],[146,9,147,9],[146,10,147,11],[149,10,149,11],[151,10,151,11],[136,10,136,11],[115,9,115,11],[120,10,120,11],[121,10,121,11],[122,9,122,11],[127,10,127,11],[128,10,128,11],[131,9,131,11],[132,10,132,11],[133,10,133,11],[134,10,134,11],[135,10,135,11],[114,10,114,11],[5,2,5,4],[17,9,17,11],[21,9,21,11],[32,9,32,11],[40,9,40,11],[77,9,77,11],[81,9,81,11],[96,9,96,11],[101,9,101,11],[108,9,108,11],[113,10,113,11],[1,2,1,4],[1,6,1,15],[2,2,3,4],[3,13,3,14],[4,2,4,4]]}
[4,null,{"$f":"'Customer Information'!$AY$5 & \" - \" & 'Customer Information'!$AY$6","v":"FY27.1.0 - Version 20260501"}]
[null,"HIDE",{"$f":"CONCATENATE(\"Data Collection Form (EEM #4: \",IF('Project Information'!$M$8<>\"No Info\",'Project Information'!$E$39,\"No Info\"),\")\")","v":"Data Collection Form (EEM #4: No Info)"},null,null,"HIDE","HIDE"]
[null,null,"Instructions: Please select the project type from the drop down menu below and provide the information for the associated parameters. ",null,null,null,null,"Print Area"]
[null,null,null,null,null,null,null,{"$f":"MATCH(MAX($B:$B),$B:$B,0)","v":40},null,null,null,null,null,"Complete?",null,{"$f":"IF(AND(EEM4_DCF_ProjectType<>\"-- Select --\",EEM4_DCF_ProjectType<>\"\",COUNTIFS($F:$F,FALSE)=0),\"Complete\",IF(OR(EEM4_DCF_ProjectType=\"-- Select --\",EEM4_DCF_ProjectType=\"\",COUNTIFS($F:$F,FALSE)=0),\"No Info\",\"Missing Information\"))","v":"No Info"}]
[null,null,"Choose Project Type:",null,null,null,null,"ListDCF",null,"Cool Roof"]
[null,null,"-- Select --",null,null,null,null,"-- Select --",1,"Building Information:",null,null,{"$f":"NOT(ISBLANK(K6))","v":false}]
[null,null,"Parameters","Inputs","Units",null,null,"Custom: Other",2,"Roof Area:",null,"Sq. Ft.",{"$f":"NOT(ISBLANK(K7))","v":false}]
[null,1,null,null,null,null,null,{"$f":"$J$5","v":"Cool Roof"},3,"Roof Material:",null,null,false]
[null,2,null,null,null,null,null,{"$f":"$J$27","v":"Custom EMS"},4,"Roof Pitch:",null,null,false]
[null,3,null,null,null,null,null,{"$f":"$J$50","v":"Air Compressor (VSD)"},5,"Percent Conditioned :",null,"%",false]
[null,4,null,null,null,null,null,{"$f":"$J$67","v":"High Efficiency Walls"},6,"Cooling Equipment Type:",null,null,false]
[null,5,null,null,null,null,null,{"$f":"$J$87","v":"High Efficiency Windows"},7,"Heating Equipment Type:",null,null,false]
[null,6,null,null,null,null,null,{"$f":"$J$131","v":"Central Plant Optimization"},8,"Occupied Cooling Set Point:",null,"deg F",false]
[null,7,null,null,null,null,null,null,9,"Unoccupied Cooling Set Point:",null,"deg F",false]
[null,8,null,null,null,null,null,null,10,"Occupied Heating Set Point:",null,"deg F",false]
[null,9,null,null,null,null,null,null,11,"Unoccupied Heating Set Point:",null,"deg F",false]
[null,10,null,null,null,null,null,null,12,"Approximate\nAge of HVAC Equipment:",null,null,false]
[null,11,null,null,null,null,null,null,13,"Baseline Conditions"]
[null,12,null,null,null,null,null,null,14,"Baseline R-Value (Existing Roof):",null,"R-Value",false]
[null,13,null,null,null,null,null,null,15,"Solar Reflectance of Existing Roof :",null,"0 - 1.0 ",false]
[null,14,null,null,null,null,null,null,16,"Infrared Emittance of Existing Roof :",null,"0 - 1.0 ",false]
[null,15,null,null,null,null,null,null,17,"Proposed Conditions"]
[null,16,null,null,null,null,null,null,18,"R-Value of the Proposed Roof:",null,"R-Value",false]
[null,17,null,null,null,null,null,null,19,"Solar Reflectance of Proposed Roof:",null,"0 - 1.0 ",false]
[null,18,null,null,null,null,null,null,20,"Infrared Emittance of Proposed Roof :",null,"0 - 1.0 ",false]
[null,19,null,null,null,null,null,null,null,"End"]
[null,20,null,null,null,null,null,null,null,"Custom EMS"]
[null,21,null,null,null,null,null,null,1,"Space/Zone Description:",null,null,{"$f":"NOT(ISBLANK(K28))","v":false}]
[null,22,null,null,null,null,null,null,2,"Conditioned Area:",null,"Sq. Ft.",false]
[null,23,null,null,null,null,null,null,3,"Cooling Equipment Type:",null,null,false]
[null,24,null,null,null,null,null,null,4,"Heating Equipment Type:",null,null,false]
[null,25,null,null,null,null,null,null,5,"Approximate Age:",null,null,false]
[null,26,null,null,null,null,null,null,6,"Baseline Conditions"]
[null,27,null,null,null,null,null,null,7," Occupied Cooling Set Point:",null,"deg F",{"$f":"NOT(ISBLANK(K34))","v":false}]
[null,28,null,null,null,null,null,null,8," Unoccupied Cooling Set Point:",null,"deg F",false]
[null,29,null,null,null,null,null,null,9," Occupied Heating Set Point:",null,"deg F",false]
[null,30,null,null,null,null,null,null,10," Unoccupied Heating Set Point:",null,"deg F",false]
[null,31,null,null,null,null,null,null,11," Occupancy Schedule:",null,"(Ex. M-F 8am to 5pm, etc.)",false]
[null,32,null,null,null,null,null,null,12," Economizer operation:",null,"Yes or No",false]
[null,33,null,null,null,null,null,null,13," Demand Controlled Ventilation:",null,"Yes or No",false]
[null,null,null,null,null,null,null,null,14,"Proposed Conditions"]
[null,null,null,null,null,null,null,null,15," Occupied Cooling Set Point:",null,"deg F",{"$f":"NOT(ISBLANK(K42))","v":false}]
[null,null,null,null,null,null,null,null,16," Unoccupied Cooling Set Point:",null,"deg F",false]
[null,null,null,null,null,null,null,null,17," Occupied Heating Set Point:",null,"deg F",false]
[null,null,null,null,null,null,null,null,18," Unoccupied Heating Set Point:",null,"deg F",false]
[null,null,null,null,null,null,null,null,19," Occupancy Schedule:",null,"(Ex. M-F 8am to 5pm, etc.)",false]
[null,null,null,null,null,null,null,null,20," Economizer operation:",null,"Yes or No",false]
[null,null,null,null,null,null,null,null,21," Demand Controlled Ventilation:",null,"Yes or No",{"$f":"NOT(ISBLANK(K48))","v":false}]
[null,null,null,null,null,null,null,null,null,"End"]
[null,null,null,null,null,null,null,null,null,"Air Compressor (VSD)"]
[null,null,null,null,null,null,null,null,1,"Proposed Manufacture Make:",null,null,{"$f":"NOT(ISBLANK(K51))","v":false}]
[null,null,null,null,null,null,null,null,2,"Proposed Manufacture Model Number:",null,null,false]
[null,null,null,null,null,null,null,null,3,"Proposed Rated Power (hp):",null,"HP",false]
[null,null,null,null,null,null,null,null,4,"Proposed Rated Capacity (cfm):",null,"CFM",false]
[null,null,null,null,null,null,null,null,5,"Proposed Capacity Control:",null,null,false]
[null,null,null,null,null,null,null,null,6,"Proposed Compressor Cost:",null,null,false]
[null,null,null,null,null,null,null,null,7,"Baseline Manufacture Make:",null,null,false]
[null,null,null,null,null,null,null,null,8,"Baseline Manufacture Model Number:",null,null,false]
[null,null,null,null,null,null,null,null,9,"Baseline Capacity Control:",null,null,false]
[null,null,null,null,null,null,null,null,10,"Baseline Compressor Cost:",null,null,false]
[null,null,null,null,null,null,null,null,11,"Compressed Air Use:",null,null,false]
[null,null,null,null,null,null,null,null,12,"Operating Discharge Pressure:",null,"PSIG",false]
[null,null,null,null,null,null,null,null,13,"Est. Time Compressor is Loaded:",null,"%",false]
[null,null,null,null,null,null,null,null,14,"Est. Time Compressor is Idle:",null,"%",false]
[null,null,null,null,null,null,null,null,15,"Est. Hours Per Year Compressor is Energized:",null,"Hrs/yr",false]
[null,null,null,null,null,null,null,null,null,"End"]
[null,null,null,null,null,null,null,null,null,"High Efficiency Walls"]
[null,null,null,null,null,null,null,null,1,"Wall Exposure","Wall Area (Sq. Ft.)"]
[null,null,null,null,null,null,null,null,2,"North:",null,"Sq. Ft.",{"$f":"NOT(ISBLANK(K69))","v":false}]
[null,null,null,null,null,null,null,null,3,"West:",null,"Sq. Ft.",false]
[null,null,null,null,null,null,null,null,4,"South:",null,"Sq. Ft.",false]
[null,null,null,null,null,null,null,null,5,"East:",null,"Sq. Ft.",false]
[null,null,null,null,null,null,null,null,6,"Wall Construction:",null,null,false]
[null,null,null,null,null,null,null,null,7,"Cooling Equipment Type:",null,null,false]
[null,null,null,null,null,null,null,null,8,"Heating Equipment Type:",null,null,false]
[null,null,null,null,null,null,null,null,9,"Approximate Age of HVAC Equipment:",null,null,false]
[null,null,null,null,null,null,null,null,10,"Building Percent Air Conditioned:",null,"%",false]
[null,null,null,null,null,null,null,null,11,"Baseline Conditions"]
[null,null,null,null,null,null,null,null,12,"R-Value Of Existing Wall:",null,"R-Value",{"$f":"NOT(ISBLANK(K79))","v":false}]
[null,null,null,null,null,null,null,null,13,"Solar Reflectance of Existing Wall \n(High=0.8, Avg = 0.5, Low =0.1):",null,"0 - 1.0 ",false]
[null,null,null,null,null,null,null,null,14,"Infrared Emittance of Existing Wall \n(High=0.9, Avg = 0.75, Low =0.1):",null,"0 - 1.0 ",false]
[null,null,null,null,null,null,null,null,15,"Proposed Conditions"]
[null,null,null,null,null,null,null,null,16,"R-Value of the Proposed Wall:",null,"R-Value",{"$f":"NOT(ISBLANK(K83))","v":false}]
[null,null,null,null,null,null,null,null,17,"Solar Reflectance of Proposed Wall\n(High=0.8, Avg = 0.5, Low =0.1):",null,"0 - 1.0 ",false]
[null,null,null,null,null,null,null,null,18,"Infrared Emittance of Proposed Wall \n(High=0.9, Avg = 0.75, Low =0.1):",null,"0 - 1.0 ",false]
[null,null,null,null,null,null,null,null,null,"End"]
[null,null,null,null,null,null,null,null,null,"High Efficiency Windows"]
[null,null,null,null,null,null,null,null,1,"Window Exposure","Window Area (Sq. Ft.)"]
[null,null,null,null,null,null,null,null,2,"North:",null,"Sq. Ft.",{"$f":"NOT(ISBLANK(K89))","v":false}]
[null,null,null,null,null,null,null,null,3,"West:",null,"Sq. Ft.",false]
[null,null,null,null,null,null,null,null,4,"South:",null,"Sq. Ft.",false]
[null,null,null,null,null,null,null,null,5,"East:",null,"Sq. Ft.",false]
[null,null,null,null,null,null,null,null,6,"Building Percent Air Conditioned :",null,"%",false]
[null,null,null,null,null,null,null,null,7,"Cooling Equipment Type:",null,null,false]
[null,null,null,null,null,null,null,null,8,"Heating Equipment Type:",null,null,false]
[null,null,null,null,null,null,null,null,9,"Approximate Age of HVAC Equipment:",null,null,false]
[null,null,null,null,null,null,null,null,10,"Baseline Conditions"]
[null,null,null,null,null,null,null,null,11,"Baseline Window Type:",null,null,{"$f":"NOT(ISBLANK(K98))","v":false}]
[null,null,null,null,null,null,null,null,12,"Baseline Glazing Thickness & Color:",null,null,false]
[null,null,null,null,null,null,null,null,13,"Baseline U-Value:",null,null,false]
[null,null,null,null,null,null,null,null,14,"Baseline Solar Heat Gain Coefficient (SHGC) of Window:",null,"0 - 1.0 ",false]
[null,null,null,null,null,null,null,null,15,"Proposed Conditions"]
[null,null,null,null,null,null,null,null,16,"Proposed Window Type:",null,null,{"$f":"NOT(ISBLANK(K103))","v":false}]
[null,null,null,null,null,null,null,null,17,"Proposed Glazing Thickness & Color:",null,null,false]
[null,null,null,null,null,null,null,null,18,"U-Value of Proposed Window:",null,null,false]
[null,null,null,null,null,null,null,null,19,"Solar Heat Gain Coefficient (SHGC) of Proposed Treatment:",null,"0 - 1.0 ",false]
[null,null,null,null,null,null,null,null,null,"End"]
[null,null,null,null,null,null,null,"ListFixtureType",null,"Lighting Controls"]
[null,null,null,null,null,null,null,"T8 fluorescent",1,"Lighting Group 1"]
[null,null,null,null,null,null,null,"T5 fluorescent",2,"Fixture Locations:",null,null,{"$f":"NOT(ISBLANK(K110))","v":false}]
[null,null,null,null,null,null,null,"T12 fluorescent",3,"Fixture Type:",null,null,false]
[null,null,null,null,null,null,null,"Incandescent screw-in",4,"Quantity of fixtures:",null,null,false]
[null,null,null,null,null,null,null,"CFL screw-in",5,"Fixture Wattage:",null,"Watts",false]
[null,null,null,null,null,null,null,"CFL pin-based",6,"Baseline Lighting Operating Schedule\n(include dimming set points if applicable):",null,null,false]
[null,null,null,null,null,null,null,"Metal Halide",7,"Proposed Lighting Operating Schedule\n(include dimming set points if applicable):",null,null,false]
[null,null,null,null,null,null,null,"High Pressure Sodium",8,"Lighting Group 2"]
[null,null,null,null,null,null,null,"LED",9,"Fixture Locations:",null,null,{"$f":"NOT(ISBLANK(K117))","v":false}]
[null,null,null,null,null,null,null,"Mercury Vapor",10,"Fixture Type:",null,null,false]
[null,null,null,null,null,null,null,"Induction",11,"Quantity of fixtures:",null,null,false]
[null,null,null,null,null,null,null,null,12,"Fixture Wattage:",null,"Watts",false]
[null,null,null,null,null,null,null,null,13,"Baseline Lighting Operating Schedule\n(include dimming set points if applicable):",null,null,false]
[null,null,null,null,null,null,null,null,14,"Proposed Lighting Operating Schedule\n(include dimming set points if applicable):",null,null,false]
[null,null,null,null,null,null,null,null,15,"Lighting Group 3"]
[null,null,null,null,null,null,null,null,16,"Fixture Locations:",null,null,{"$f":"NOT(ISBLANK(K124))","v":false}]
[null,null,null,null,null,null,null,null,17,"Fixture Type:",null,null,false]
[null,null,null,null,null,null,null,null,18,"Quantity of fixtures:",null,null,false]
[null,null,null,null,null,null,null,null,19,"Fixture Wattage:",null,"Watts",false]
[null,null,null,null,null,null,null,null,20,"Baseline Lighting Operating Schedule\n(include dimming set points if applicable):",null,null,false]
[null,null,null,null,null,null,null,null,21,"Proposed Lighting Operating Schedule\n(include dimming set points if applicable):",null,null,false]
[null,null,null,null,null,null,null,null,null,"End"]
[null,null,null,null,null,null,null,null,null,"Central Plant Optimization"]
[null,null,null,null,null,null,null,null,1,"Central Plant Equipment"]
[null,null,null,null,null,null,null,null,2,"Quantity and Capacity of all Chillers:",null,null,{"$f":"NOT(ISBLANK(K133))","v":false}]
[null,null,null,null,null,null,null,null,3,"Chiller Type:",null,null,false]
[null,null,null,null,null,null,null,null,4,"Heat Rejection Type: ",null,null,false]
[null,null,null,null,null,null,null,null,5,"Chilled Water Distribution: ",null,null,false]
[null,null,null,null,null,null,null,null,6,"Primary CHW Pump Size and Qty:",null,null,false]
[null,null,null,null,null,null,null,null,7,"Secondary CHW Pump Size and Qty:\n(if applicable)",null,null,false]
[null,null,null,null,null,null,null,null,8,"Cooling Tower Fan Size and Qty:",null,null,false]
[null,null,null,null,null,null,null,null,9,"Cooling Tower Fan VFD:",null,null,false]
[null,null,null,null,null,null,null,null,10,"Flat Plate Heat Exchanger? :",null,null,false]
[null,null,null,null,null,null,null,null,11,"Configuration of Flat Plate:",null,null,false]
[null,null,null,null,null,null,null,null,12,"Existing Central Plant Operations & Set Points"]
[null,null,null,null,null,null,null,null,13,"Central Plant Operating Schedule:\n(ex. Mon-Sat 7am-10pm)",null,null,{"$f":"NOT(ISBLANK(K144))","v":false}]
[null,null,null,null,null,null,null,null,14,"Peak Summer Cooling Load:",null,"Tons",false]
[null,null,null,null,null,null,null,null,15,"Winter Outside Air Cooling Limit:",null,"deg F",false]
[null,null,null,null,null,null,null,null,16,"Please describe the current Chiller Sequencing:",null,null,false]
[null,null,null,null,null,null,null,null,17,null,null,null,false]
[null,null,null,null,null,null,null,null,18,"Chilled Water (CHW) set point:",null,"deg F",false]
[null,null,null,null,null,null,null,null,19,"If CHW Reset, please describe strategy:",null,null,false]
[null,null,null,null,null,null,null,null,20,"Condenser Water (CW) Set Point:",null,"deg F",false]
[null,null,null,null,null,null,null,null,21,"If CW Reset, please describe strategy:",null,null,false]
[null,null,null,null,null,null,null,null,22,"Flat Plate Enable Set Point:",null,"deg F",false]
[null,null,null,null,null,null,null,null,23,"Proposed Central Plant Operations & Set Points"]
[null,null,null,null,null,null,null,null,24,"Describe the Proposed CHW Reset Strategy (if any):",null,null,{"$f":"NOT(ISBLANK(K155))","v":false}]
[null,null,null,null,null,null,null,null,25,"Describe the Proposed CW Reset Strategy (if any):",null,null,false]
[null,null,null,null,null,null,null,null,26,"Please describe all Proposed changes to the chiller sequencing:",null,null,false]
[null,null,null,null,null,null,null,null,27,null,null,null,false]
[null,null,null,null,null,null,null,null,28,"Please describe all Proposed changes to the CHW pumping distribution system:",null,null,false]
[null,null,null,null,null,null,null,null,29,null,null,null,false]
[null,null,null,null,null,null,null,null,30,"Please describe all Proposed changes to the cooling tower operation:",null,null,false]
[null,null,null,null,null,null,null,null,31,null,null,null,false]
[null,null,null,null,null,null,null,null,32,"Please describe any other changes to central plant sequence of operations that are part of the project:",null,null,false]
[null,null,null,null,null,null,null,null,33,null,null,null,false]
[null,null,null,null,null,null,null,null,null,"End"]
[null,null,null,null,null,null,null,null,null,"-- Select --"]
[null,null,null,null,null,null,null,null,1]
[null,null,null,null,null,null,null,null,2]
[null,null,null,null,null,null,null,null,3]
[null,null,null,null,null,null,null,null,4]
[null,null,null,null,null,null,null,null,5]
[null,null,null,null,null,null,null,null,6]
[null,null,null,null,null,null,null,null,7]
[null,null,null,null,null,null,null,null,8]
[null,null,null,null,null,null,null,null,9]
[null,null,null,null,null,null,null,null,10]
[null,null,null,null,null,null,null,null,11]
[null,null,null,null,null,null,null,null,12]
[null,null,null,null,null,null,null,null,13]
[null,null,null,null,null,null,null,null,14]
[null,null,null,null,null,null,null,null,15]
[null,null,null,null,null,null,null,null,16]
[null,null,null,null,null,null,null,null,17]
[null,null,null,null,null,null,null,null,18]
[null,null,null,null,null,null,null,null,19]
[null,null,null,null,null,null,null,null,20]
[null,null,null,null,null,null,null,null,21]
[null,null,null,null,null,null,null,null,22]
[null,null,null,null,null,null,null,null,23]
[null,null,null,null,null,null,null,null,24]
[null,null,null,null,null,null,null,null,25]
[null,null,null,null,null,null,null,null,26]
[null,null,null,null,null,null,null,null,27]
[null,null,null,null,null,null,null,null,28]
[null,null,null,null,null,null,null,null,29]
[null,null,null,null,null,null,null,null,30]
[null,null,null,null,null,null,null,null,31]
[null,null,null,null,null,null,null,null,32]
[null,null,null,null,null,null,null,null,33]
[null,null,null,null,null,null,null,null,null,"End"]
[null,null,null,null,null,null,null,null,null,"Custom: Other"]
[null,null,null,null,null,null,null,null,1,"Please fill in the custom parameters, inputs, and units that are relevant to the measure(s) you are applying for. Separate measures by supplying the measure type before the parameters.",null,null,{"$f":"IF(COUNTA(J204:L234)=0,FALSE,TRUE)","v":false}]
[null,null,null,null,null,null,null,null,2]
[null,null,null,null,null,null,null,null,3,null,null,null,{"$f":"IF(NOT(ISBLANK(J204)),NOT(OR(ISBLANK(K204),ISBLANK(L204))),TRUE)","v":true}]
[null,null,null,null,null,null,null,null,4,null,null,null,{"$f":"IF(NOT(ISBLANK(J205)),NOT(OR(ISBLANK(K205),ISBLANK(L205))),TRUE)","v":true}]
[null,null,null,null,null,null,null,null,5,null,null,null,true]
[null,null,null,null,null,null,null,null,6,null,null,null,true]
[null,null,null,null,null,null,null,null,7,null,null,null,true]
[null,null,null,null,null,null,null,null,8,null,null,null,true]
[null,null,null,null,null,null,null,null,9,null,null,null,true]
[null,null,null,null,null,null,null,null,10,null,null,null,true]
[null,null,null,null,null,null,null,null,11,null,null,null,true]
[null,null,null,null,null,null,null,null,12,null,null,null,true]
[null,null,null,null,null,null,null,null,13,null,null,null,true]
[null,null,null,null,null,null,null,null,14,null,null,null,true]
[null,null,null,null,null,null,null,null,15,null,null,null,true]
[null,null,null,null,null,null,null,null,16,null,null,null,true]
[null,null,null,null,null,null,null,null,17,null,null,null,true]
[null,null,null,null,null,null,null,null,18,null,null,null,true]
[null,null,null,null,null,null,null,null,19,null,null,null,true]
[null,null,null,null,null,null,null,null,20,null,null,null,true]
[null,null,null,null,null,null,null,null,21,null,null,null,true]
[null,null,null,null,null,null,null,null,22,null,null,null,true]
[null,null,null,null,null,null,null,null,23,null,null,null,true]
[null,null,null,null,null,null,null,null,24,null,null,null,true]
[null,null,null,null,null,null,null,null,25,null,null,null,true]
[null,null,null,null,null,null,null,null,26,null,null,null,true]
[null,null,null,null,null,null,null,null,27,null,null,null,true]
[null,null,null,null,null,null,null,null,28,null,null,null,true]
[null,null,null,null,null,null,null,null,29,null,null,null,true]
[null,null,null,null,null,null,null,null,30,null,null,null,true]
[null,null,null,null,null,null,null,null,31,null,null,null,true]
[null,null,null,null,null,null,null,null,32,null,null,null,true]
[null,null,null,null,null,null,null,null,33,null,null,null,true]
[null,null,null,null,null,null,null,null,null,"End"]

{"sheet":"Data Form (EEM 5)","index":12,"n_rows":235,"n_cols":16,"rows_kept":235,"cut":false,"hidden":true,"merged":[[160,9,161,9],[160,10,161,11],[162,9,163,9],[162,10,163,11],[201,9,202,11],[154,10,154,11],[155,10,155,11],[156,9,157,9],[156,10,157,11],[158,9,159,9],[158,10,159,11],[153,9,153,11],[137,10,137,11],[138,10,138,11],[139,10,139,11],[140,10,140,11],[141,10,141,11],[142,9,142,11],[143,10,143,11],[146,9,147,9],[146,10,147,11],[149,10,149,11],[151,10,151,11],[136,10,136,11],[115,9,115,11],[120,10,120,11],[121,10,121,11],[122,9,122,11],[127,10,127,11],[128,10,128,11],[131,9,131,11],[132,10,132,11],[133,10,133,11],[134,10,134,11],[135,10,135,11],[114,10,114,11],[5,2,5,4],[17,9,17,11],[21,9,21,11],[32,9,32,11],[40,9,40,11],[77,9,77,11],[81,9,81,11],[96,9,96,11],[101,9,101,11],[108,9,108,11],[113,10,113,11],[1,2,1,4],[1,6,1,15],[2,2,3,4],[3,13,3,14],[4,2,4,4]]}
[5,null,{"$f":"'Customer Information'!$AY$5 & \" - \" & 'Customer Information'!$AY$6","v":"FY27.1.0 - Version 20260501"}]
[null,"HIDE",{"$f":"CONCATENATE(\"Data Collection Form (EEM #5: \",IF('Project Information'!$M$9<>\"No Info\",'Project Information'!$E$49,\"No Info\"),\")\")","v":"Data Collection Form (EEM #5: No Info)"},null,null,"HIDE","HIDE"]
[null,null,"Instructions: Please select the project type from the drop down menu below and provide the information for the associated parameters. ",null,null,null,null,"Print Area"]
[null,null,null,null,null,null,null,{"$f":"MATCH(MAX($B:$B),$B:$B,0)","v":40},null,null,null,null,null,"Complete?",null,{"$f":"IF(AND(EEM5_DCF_ProjectType<>\"-- Select --\",EEM5_DCF_ProjectType<>\"\",COUNTIFS($F:$F,FALSE)=0),\"Complete\",IF(OR(EEM5_DCF_ProjectType=\"-- Select --\",EEM5_DCF_ProjectType=\"\",COUNTIFS($F:$F,FALSE)=0),\"No Info\",\"Missing Information\"))","v":"No Info"}]
[null,null,"Choose Project Type:",null,null,null,null,"ListDCF",null,"Cool Roof"]
[null,null,"-- Select --",null,null,null,null,"-- Select --",1,"Building Information:",null,null,{"$f":"NOT(ISBLANK(K6))","v":false}]
[null,null,"Parameters","Inputs","Units",null,null,"Custom: Other",2,"Roof Area:",null,"Sq. Ft.",{"$f":"NOT(ISBLANK(K7))","v":false}]
[null,1,null,null,null,null,null,{"$f":"$J$5","v":"Cool Roof"},3,"Roof Material:",null,null,false]
[null,2,null,null,null,null,null,{"$f":"$J$27","v":"Custom EMS"},4,"Roof Pitch:",null,null,false]
[null,3,null,null,null,null,null,{"$f":"$J$50","v":"Air Compressor (VSD)"},5,"Percent Conditioned :",null,"%",false]
[null,4,null,null,null,null,null,{"$f":"$J$67","v":"High Efficiency Walls"},6,"Cooling Equipment Type:",null,null,false]
[null,5,null,null,null,null,null,{"$f":"$J$87","v":"High Efficiency Windows"},7,"Heating Equipment Type:",null,null,false]
[null,6,null,null,null,null,null,{"$f":"$J$131","v":"Central Plant Optimization"},8,"Occupied Cooling Set Point:",null,"deg F",false]
[null,7,null,null,null,null,null,null,9,"Unoccupied Cooling Set Point:",null,"deg F",false]
[null,8,null,null,null,null,null,null,10,"Occupied Heating Set Point:",null,"deg F",false]
[null,9,null,null,null,null,null,null,11,"Unoccupied Heating Set Point:",null,"deg F",false]
[null,10,null,null,null,null,null,null,12,"Approximate\nAge of HVAC Equipment:",null,null,false]
[null,11,null,null,null,null,null,null,13,"Baseline Conditions"]
[null,12,null,null,null,null,null,null,14,"Baseline R-Value (Existing Roof):",null,"R-Value",false]
[null,13,null,null,null,null,null,null,15,"Solar Reflectance of Existing Roof :",null,"0 - 1.0 ",false]
[null,14,null,null,null,null,null,null,16,"Infrared Emittance of Existing Roof :",null,"0 - 1.0 ",false]
[null,15,null,null,null,null,null,null,17,"Proposed Conditions"]
[null,16,null,null,null,null,null,null,18,"R-Value of the Proposed Roof:",null,"R-Value",false]
[null,17,null,null,null,null,null,null,19,"Solar Reflectance of Proposed Roof:",null,"0 - 1.0 ",false]
[null,18,null,null,null,null,null,null,20,"Infrared Emittance of Proposed Roof :",null,"0 - 1.0 ",false]
[null,19,null,null,null,null,null,null,null,"End"]
[null,20,null,null,null,null,null,null,null,"Custom EMS"]
[null,21,null,null,null,null,null,null,1,"Space/Zone Description:",null,null,{"$f":"NOT(ISBLANK(K28))","v":false}]
[null,22,null,null,null,null,null,null,2,"Conditioned Area:",null,"Sq. Ft.",false]
[null,23,null,null,null,null,null,null,3,"Cooling Equipment Type:",null,null,false]
[null,24,null,null,null,null,null,null,4,"Heating Equipment Type:",null,null,false]
[null,25,null,null,null,null,null,null,5,"Approximate Age:",null,null,false]
[null,26,null,null,null,null,null,null,6,"Baseline Conditions"]
[null,27,null,null,null,null,null,null,7," Occupied Cooling Set Point:",null,"deg F",{"$f":"NOT(ISBLANK(K34))","v":false}]
[null,28,null,null,null,null,null,null,8," Unoccupied Cooling Set Point:",null,"deg F",false]
[null,29,null,null,null,null,null,null,9," Occupied Heating Set Point:",null,"deg F",false]
[null,30,null,null,null,null,null,null,10," Unoccupied Heating Set Point:",null,"deg F",false]
[null,31,null,null,null,null,null,null,11," Occupancy Schedule:",null,"(Ex. M-F 8am to 5pm, etc.)",false]
[null,32,null,null,null,null,null,null,12," Economizer operation:",null,"Yes or No",false]
[null,33,null,null,null,null,null,null,13," Demand Controlled Ventilation:",null,"Yes or No",false]
[null,null,null,null,null,null,null,null,14,"Proposed Conditions"]
[null,null,null,null,null,null,null,null,15," Occupied Cooling Set Point:",null,"deg F",{"$f":"NOT(ISBLANK(K42))","v":false}]
[null,null,null,null,null,null,null,null,16," Unoccupied Cooling Set Point:",null,"deg F",false]
[null,null,null,null,null,null,null,null,17," Occupied Heating Set Point:",null,"deg F",false]
[null,null,null,null,null,null,null,null,18," Unoccupied Heating Set Point:",null,"deg F",false]
[null,null,null,null,null,null,null,null,19," Occupancy Schedule:",null,"(Ex. M-F 8am to 5pm, etc.)",false]
[null,null,null,null,null,null,null,null,20," Economizer operation:",null,"Yes or No",false]
[null,null,null,null,null,null,null,null,21," Demand Controlled Ventilation:",null,"Yes or No",{"$f":"NOT(ISBLANK(K48))","v":false}]
[null,null,null,null,null,null,null,null,null,"End"]
[null,null,null,null,null,null,null,null,null,"Air Compressor (VSD)"]
[null,null,null,null,null,null,null,null,1,"Proposed Manufacture Make:",null,null,{"$f":"NOT(ISBLANK(K51))","v":false}]
[null,null,null,null,null,null,null,null,2,"Proposed Manufacture Model Number:",null,null,false]
[null,null,null,null,null,null,null,null,3,"Proposed Rated Power (hp):",null,"HP",false]
[null,null,null,null,null,null,null,null,4,"Proposed Rated Capacity (cfm):",null,"CFM",false]
[null,null,null,null,null,null,null,null,5,"Proposed Capacity Control:",null,null,false]
[null,null,null,null,null,null,null,null,6,"Proposed Compressor Cost:",null,null,false]
[null,null,null,null,null,null,null,null,7,"Baseline Manufacture Make:",null,null,false]
[null,null,null,null,null,null,null,null,8,"Baseline Manufacture Model Number:",null,null,false]
[null,null,null,null,null,null,null,null,9,"Baseline Capacity Control:",null,null,false]
[null,null,null,null,null,null,null,null,10,"Baseline Compressor Cost:",null,null,false]
[null,null,null,null,null,null,null,null,11,"Compressed Air Use:",null,null,false]
[null,null,null,null,null,null,null,null,12,"Operating Discharge Pressure:",null,"PSIG",false]
[null,null,null,null,null,null,null,null,13,"Est. Time Compressor is Loaded:",null,"%",false]
[null,null,null,null,null,null,null,null,14,"Est. Time Compressor is Idle:",null,"%",false]
[null,null,null,null,null,null,null,null,15,"Est. Hours Per Year Compressor is Energized:",null,"Hrs/yr",false]
[null,null,null,null,null,null,null,null,null,"End"]
[null,null,null,null,null,null,null,null,null,"High Efficiency Walls"]
[null,null,null,null,null,null,null,null,1,"Wall Exposure","Wall Area (Sq. Ft.)"]
[null,null,null,null,null,null,null,null,2,"North:",null,"Sq. Ft.",{"$f":"NOT(ISBLANK(K69))","v":false}]
[null,null,null,null,null,null,null,null,3,"West:",null,"Sq. Ft.",false]
[null,null,null,null,null,null,null,null,4,"South:",null,"Sq. Ft.",false]
[null,null,null,null,null,null,null,null,5,"East:",null,"Sq. Ft.",false]
[null,null,null,null,null,null,null,null,6,"Wall Construction:",null,null,false]
[null,null,null,null,null,null,null,null,7,"Cooling Equipment Type:",null,null,false]
[null,null,null,null,null,null,null,null,8,"Heating Equipment Type:",null,null,false]
[null,null,null,null,null,null,null,null,9,"Approximate Age of HVAC Equipment:",null,null,false]
[null,null,null,null,null,null,null,null,10,"Building Percent Air Conditioned:",null,"%",false]
[null,null,null,null,null,null,null,null,11,"Baseline Conditions"]
[null,null,null,null,null,null,null,null,12,"R-Value Of Existing Wall:",null,"R-Value",{"$f":"NOT(ISBLANK(K79))","v":false}]
[null,null,null,null,null,null,null,null,13,"Solar Reflectance of Existing Wall \n(High=0.8, Avg = 0.5, Low =0.1):",null,"0 - 1.0 ",false]
[null,null,null,null,null,null,null,null,14,"Infrared Emittance of Existing Wall \n(High=0.9, Avg = 0.75, Low =0.1):",null,"0 - 1.0 ",false]
[null,null,null,null,null,null,null,null,15,"Proposed Conditions"]
[null,null,null,null,null,null,null,null,16,"R-Value of the Proposed Wall:",null,"R-Value",{"$f":"NOT(ISBLANK(K83))","v":false}]
[null,null,null,null,null,null,null,null,17,"Solar Reflectance of Proposed Wall\n(High=0.8, Avg = 0.5, Low =0.1):",null,"0 - 1.0 ",false]
[null,null,null,null,null,null,null,null,18,"Infrared Emittance of Proposed Wall \n(High=0.9, Avg = 0.75, Low =0.1):",null,"0 - 1.0 ",false]
[null,null,null,null,null,null,null,null,null,"End"]
[null,null,null,null,null,null,null,null,null,"High Efficiency Windows"]
[null,null,null,null,null,null,null,null,1,"Window Exposure","Window Area (Sq. Ft.)"]
[null,null,null,null,null,null,null,null,2,"North:",null,"Sq. Ft.",{"$f":"NOT(ISBLANK(K89))","v":false}]
[null,null,null,null,null,null,null,null,3,"West:",null,"Sq. Ft.",false]
[null,null,null,null,null,null,null,null,4,"South:",null,"Sq. Ft.",false]
[null,null,null,null,null,null,null,null,5,"East:",null,"Sq. Ft.",false]
[null,null,null,null,null,null,null,null,6,"Building Percent Air Conditioned :",null,"%",false]
[null,null,null,null,null,null,null,null,7,"Cooling Equipment Type:",null,null,false]
[null,null,null,null,null,null,null,null,8,"Heating Equipment Type:",null,null,false]
[null,null,null,null,null,null,null,null,9,"Approximate Age of HVAC Equipment:",null,null,false]
[null,null,null,null,null,null,null,null,10,"Baseline Conditions"]
[null,null,null,null,null,null,null,null,11,"Baseline Window Type:",null,null,{"$f":"NOT(ISBLANK(K98))","v":false}]
[null,null,null,null,null,null,null,null,12,"Baseline Glazing Thickness & Color:",null,null,false]
[null,null,null,null,null,null,null,null,13,"Baseline U-Value:",null,null,false]
[null,null,null,null,null,null,null,null,14,"Baseline Solar Heat Gain Coefficient (SHGC) of Window:",null,"0 - 1.0 ",false]
[null,null,null,null,null,null,null,null,15,"Proposed Conditions"]
[null,null,null,null,null,null,null,null,16,"Proposed Window Type:",null,null,{"$f":"NOT(ISBLANK(K103))","v":false}]
[null,null,null,null,null,null,null,null,17,"Proposed Glazing Thickness & Color:",null,null,false]
[null,null,null,null,null,null,null,null,18,"U-Value of Proposed Window:",null,null,false]
[null,null,null,null,null,null,null,null,19,"Solar Heat Gain Coefficient (SHGC) of Proposed Treatment:",null,"0 - 1.0 ",false]
[null,null,null,null,null,null,null,null,null,"End"]
[null,null,null,null,null,null,null,"ListFixtureType",null,"Lighting Controls"]
[null,null,null,null,null,null,null,"T8 fluorescent",1,"Lighting Group 1"]
[null,null,null,null,null,null,null,"T5 fluorescent",2,"Fixture Locations:",null,null,{"$f":"NOT(ISBLANK(K110))","v":false}]
[null,null,null,null,null,null,null,"T12 fluorescent",3,"Fixture Type:",null,null,false]
[null,null,null,null,null,null,null,"Incandescent screw-in",4,"Quantity of fixtures:",null,null,false]
[null,null,null,null,null,null,null,"CFL screw-in",5,"Fixture Wattage:",null,"Watts",false]
[null,null,null,null,null,null,null,"CFL pin-based",6,"Baseline Lighting Operating Schedule\n(include dimming set points if applicable):",null,null,false]
[null,null,null,null,null,null,null,"Metal Halide",7,"Proposed Lighting Operating Schedule\n(include dimming set points if applicable):",null,null,false]
[null,null,null,null,null,null,null,"High Pressure Sodium",8,"Lighting Group 2"]
[null,null,null,null,null,null,null,"LED",9,"Fixture Locations:",null,null,{"$f":"NOT(ISBLANK(K117))","v":false}]
[null,null,null,null,null,null,null,"Mercury Vapor",10,"Fixture Type:",null,null,false]
[null,null,null,null,null,null,null,"Induction",11,"Quantity of fixtures:",null,null,false]
[null,null,null,null,null,null,null,null,12,"Fixture Wattage:",null,"Watts",false]
[null,null,null,null,null,null,null,null,13,"Baseline Lighting Operating Schedule\n(include dimming set points if applicable):",null,null,false]
[null,null,null,null,null,null,null,null,14,"Proposed Lighting Operating Schedule\n(include dimming set points if applicable):",null,null,false]
[null,null,null,null,null,null,null,null,15,"Lighting Group 3"]
[null,null,null,null,null,null,null,null,16,"Fixture Locations:",null,null,{"$f":"NOT(ISBLANK(K124))","v":false}]
[null,null,null,null,null,null,null,null,17,"Fixture Type:",null,null,false]
[null,null,null,null,null,null,null,null,18,"Quantity of fixtures:",null,null,false]
[null,null,null,null,null,null,null,null,19,"Fixture Wattage:",null,"Watts",false]
[null,null,null,null,null,null,null,null,20,"Baseline Lighting Operating Schedule\n(include dimming set points if applicable):",null,null,false]
[null,null,null,null,null,null,null,null,21,"Proposed Lighting Operating Schedule\n(include dimming set points if applicable):",null,null,false]
[null,null,null,null,null,null,null,null,null,"End"]
[null,null,null,null,null,null,null,null,null,"Central Plant Optimization"]
[null,null,null,null,null,null,null,null,1,"Central Plant Equipment"]
[null,null,null,null,null,null,null,null,2,"Quantity and Capacity of all Chillers:",null,null,{"$f":"NOT(ISBLANK(K133))","v":false}]
[null,null,null,null,null,null,null,null,3,"Chiller Type:",null,null,false]
[null,null,null,null,null,null,null,null,4,"Heat Rejection Type: ",null,null,false]
[null,null,null,null,null,null,null,null,5,"Chilled Water Distribution: ",null,null,false]
[null,null,null,null,null,null,null,null,6,"Primary CHW Pump Size and Qty:",null,null,false]
[null,null,null,null,null,null,null,null,7,"Secondary CHW Pump Size and Qty:\n(if applicable)",null,null,false]
[null,null,null,null,null,null,null,null,8,"Cooling Tower Fan Size and Qty:",null,null,false]
[null,null,null,null,null,null,null,null,9,"Cooling Tower Fan VFD:",null,null,false]
[null,null,null,null,null,null,null,null,10,"Flat Plate Heat Exchanger? :",null,null,false]
[null,null,null,null,null,null,null,null,11,"Configuration of Flat Plate:",null,null,false]
[null,null,null,null,null,null,null,null,12,"Existing Central Plant Operations & Set Points"]
[null,null,null,null,null,null,null,null,13,"Central Plant Operating Schedule:\n(ex. Mon-Sat 7am-10pm)",null,null,{"$f":"NOT(ISBLANK(K144))","v":false}]
[null,null,null,null,null,null,null,null,14,"Peak Summer Cooling Load:",null,"Tons",false]
[null,null,null,null,null,null,null,null,15,"Winter Outside Air Cooling Limit:",null,"deg F",false]
[null,null,null,null,null,null,null,null,16,"Please describe the current Chiller Sequencing:",null,null,false]
[null,null,null,null,null,null,null,null,17,null,null,null,false]
[null,null,null,null,null,null,null,null,18,"Chilled Water (CHW) set point:",null,"deg F",false]
[null,null,null,null,null,null,null,null,19,"If CHW Reset, please describe strategy:",null,null,false]
[null,null,null,null,null,null,null,null,20,"Condenser Water (CW) Set Point:",null,"deg F",false]
[null,null,null,null,null,null,null,null,21,"If CW Reset, please describe strategy:",null,null,false]
[null,null,null,null,null,null,null,null,22,"Flat Plate Enable Set Point:",null,"deg F",false]
[null,null,null,null,null,null,null,null,23,"Proposed Central Plant Operations & Set Points"]
[null,null,null,null,null,null,null,null,24,"Describe the Proposed CHW Reset Strategy (if any):",null,null,{"$f":"NOT(ISBLANK(K155))","v":false}]
[null,null,null,null,null,null,null,null,25,"Describe the Proposed CW Reset Strategy (if any):",null,null,false]
[null,null,null,null,null,null,null,null,26,"Please describe all Proposed changes to the chiller sequencing:",null,null,false]
[null,null,null,null,null,null,null,null,27,null,null,null,false]
[null,null,null,null,null,null,null,null,28,"Please describe all Proposed changes to the CHW pumping distribution system:",null,null,false]
[null,null,null,null,null,null,null,null,29,null,null,null,false]
[null,null,null,null,null,null,null,null,30,"Please describe all Proposed changes to the cooling tower operation:",null,null,false]
[null,null,null,null,null,null,null,null,31,null,null,null,false]
[null,null,null,null,null,null,null,null,32,"Please describe any other changes to central plant sequence of operations that are part of the project:",null,null,false]
[null,null,null,null,null,null,null,null,33,null,null,null,false]
[null,null,null,null,null,null,null,null,null,"End"]
[null,null,null,null,null,null,null,null,null,"-- Select --"]
[null,null,null,null,null,null,null,null,1]
[null,null,null,null,null,null,null,null,2]
[null,null,null,null,null,null,null,null,3]
[null,null,null,null,null,null,null,null,4]
[null,null,null,null,null,null,null,null,5]
[null,null,null,null,null,null,null,null,6]
[null,null,null,null,null,null,null,null,7]
[null,null,null,null,null,null,null,null,8]
[null,null,null,null,null,null,null,null,9]
[null,null,null,null,null,null,null,null,10]
[null,null,null,null,null,null,null,null,11]
[null,null,null,null,null,null,null,null,12]
[null,null,null,null,null,null,null,null,13]
[null,null,null,null,null,null,null,null,14]
[null,null,null,null,null,null,null,null,15]
[null,null,null,null,null,null,null,null,16]
[null,null,null,null,null,null,null,null,17]
[null,null,null,null,null,null,null,null,18]
[null,null,null,null,null,null,null,null,19]
[null,null,null,null,null,null,null,null,20]
[null,null,null,null,null,null,null,null,21]
[null,null,null,null,null,null,null,null,22]
[null,null,null,null,null,null,null,null,23]
[null,null,null,null,null,null,null,null,24]
[null,null,null,null,null,null,null,null,25]
[null,null,null,null,null,null,null,null,26]
[null,null,null,null,null,null,null,null,27]
[null,null,null,null,null,null,null,null,28]
[null,null,null,null,null,null,null,null,29]
[null,null,null,null,null,null,null,null,30]
[null,null,null,null,null,null,null,null,31]
[null,null,null,null,null,null,null,null,32]
[null,null,null,null,null,null,null,null,33]
[null,null,null,null,null,null,null,null,null,"End"]
[null,null,null,null,null,null,null,null,null,"Custom: Other"]
[null,null,null,null,null,null,null,null,1,"Please fill in the custom parameters, inputs, and units that are relevant to the measure(s) you are applying for. Separate measures by supplying the measure type before the parameters.",null,null,{"$f":"IF(COUNTA(J204:L234)=0,FALSE,TRUE)","v":false}]
[null,null,null,null,null,null,null,null,2]
[null,null,null,null,null,null,null,null,3,null,null,null,{"$f":"IF(NOT(ISBLANK(J204)),NOT(OR(ISBLANK(K204),ISBLANK(L204))),TRUE)","v":true}]
[null,null,null,null,null,null,null,null,4,null,null,null,{"$f":"IF(NOT(ISBLANK(J205)),NOT(OR(ISBLANK(K205),ISBLANK(L205))),TRUE)","v":true}]
[null,null,null,null,null,null,null,null,5,null,null,null,true]
[null,null,null,null,null,null,null,null,6,null,null,null,true]
[null,null,null,null,null,null,null,null,7,null,null,null,true]
[null,null,null,null,null,null,null,null,8,null,null,null,true]
[null,null,null,null,null,null,null,null,9,null,null,null,true]
[null,null,null,null,null,null,null,null,10,null,null,null,true]
[null,null,null,null,null,null,null,null,11,null,null,null,true]
[null,null,null,null,null,null,null,null,12,null,null,null,true]
[null,null,null,null,null,null,null,null,13,null,null,null,true]
[null,null,null,null,null,null,null,null,14,null,null,null,true]
[null,null,null,null,null,null,null,null,15,null,null,null,true]
[null,null,null,null,null,null,null,null,16,null,null,null,true]
[null,null,null,null,null,null,null,null,17,null,null,null,true]
[null,null,null,null,null,null,null,null,18,null,null,null,true]
[null,null,null,null,null,null,null,null,19,null,null,null,true]
[null,null,null,null,null,null,null,null,20,null,null,null,true]
[null,null,null,null,null,null,null,null,21,null,null,null,true]
[null,null,null,null,null,null,null,null,22,null,null,null,true]
[null,null,null,null,null,null,null,null,23,null,null,null,true]
[null,null,null,null,null,null,null,null,24,null,null,null,true]
[null,null,null,null,null,null,null,null,25,null,null,null,true]
[null,null,null,null,null,null,null,null,26,null,null,null,true]
[null,null,null,null,null,null,null,null,27,null,null,null,true]
[null,null,null,null,null,null,null,null,28,null,null,null,true]
[null,null,null,null,null,null,null,null,29,null,null,null,true]
[null,null,null,null,null,null,null,null,30,null,null,null,true]
[null,null,null,null,null,null,null,null,31,null,null,null,true]
[null,null,null,null,null,null,null,null,32,null,null,null,true]
[null,null,null,null,null,null,null,null,33,null,null,null,true]
[null,null,null,null,null,null,null,null,null,"End"]

{"sheet":"Data Form (EEM 6)","index":13,"n_rows":235,"n_cols":16,"rows_kept":235,"cut":false,"hidden":true,"merged":[[160,9,161,9],[160,10,161,11],[162,9,163,9],[162,10,163,11],[201,9,202,11],[154,10,154,11],[155,10,155,11],[156,9,157,9],[156,10,157,11],[158,9,159,9],[158,10,159,11],[153,9,153,11],[137,10,137,11],[138,10,138,11],[139,10,139,11],[140,10,140,11],[141,10,141,11],[142,9,142,11],[143,10,143,11],[146,9,147,9],[146,10,147,11],[149,10,149,11],[151,10,151,11],[136,10,136,11],[115,9,115,11],[120,10,120,11],[121,10,121,11],[122,9,122,11],[127,10,127,11],[128,10,128,11],[131,9,131,11],[132,10,132,11],[133,10,133,11],[134,10,134,11],[135,10,135,11],[114,10,114,11],[5,2,5,4],[17,9,17,11],[21,9,21,11],[32,9,32,11],[40,9,40,11],[77,9,77,11],[81,9,81,11],[96,9,96,11],[101,9,101,11],[108,9,108,11],[113,10,113,11],[1,2,1,4],[1,6,1,15],[2,2,3,4],[3,13,3,14],[4,2,4,4]]}
[6,null,{"$f":"'Customer Information'!$AY$5 & \" - \" & 'Customer Information'!$AY$6","v":"FY27.1.0 - Version 20260501"}]
[null,"HIDE",{"$f":"CONCATENATE(\"Data Collection Form (EEM #6: \",IF('Project Information'!$M$10<>\"No Info\",'Project Information'!$E$59,\"No Info\"),\")\")","v":"Data Collection Form (EEM #6: No Info)"},null,null,"HIDE","HIDE"]
[null,null,"Instructions: Please select the project type from the drop down menu below and provide the information for the associated parameters. ",null,null,null,null,"Print Area"]
[null,null,null,null,null,null,null,{"$f":"MATCH(MAX($B:$B),$B:$B,0)","v":40},null,null,null,null,null,"Complete?",null,{"$f":"IF(AND(EEM6_DCF_ProjectType<>\"-- Select --\",EEM6_DCF_ProjectType<>\"\",COUNTIFS($F:$F,FALSE)=0),\"Complete\",IF(OR(EEM6_DCF_ProjectType=\"-- Select --\",EEM6_DCF_ProjectType=\"\",COUNTIFS($F:$F,FALSE)=0),\"No Info\",\"Missing Information\"))","v":"No Info"}]
[null,null,"Choose Project Type:",null,null,null,null,"ListDCF",null,"Cool Roof"]
[null,null,"-- Select --",null,null,null,null,"-- Select --",1,"Building Information:",null,null,{"$f":"NOT(ISBLANK(K6))","v":false}]
[null,null,"Parameters","Inputs","Units",null,null,"Custom: Other",2,"Roof Area:",null,"Sq. Ft.",{"$f":"NOT(ISBLANK(K7))","v":false}]
[null,1,null,null,null,null,null,{"$f":"$J$5","v":"Cool Roof"},3,"Roof Material:",null,null,false]
[null,2,null,null,null,null,null,{"$f":"$J$27","v":"Custom EMS"},4,"Roof Pitch:",null,null,false]
[null,3,null,null,null,null,null,{"$f":"$J$50","v":"Air Compressor (VSD)"},5,"Percent Conditioned :",null,"%",false]
[null,4,null,null,null,null,null,{"$f":"$J$67","v":"High Efficiency Walls"},6,"Cooling Equipment Type:",null,null,false]
[null,5,null,null,null,null,null,{"$f":"$J$87","v":"High Efficiency Windows"},7,"Heating Equipment Type:",null,null,false]
[null,6,null,null,null,null,null,{"$f":"$J$131","v":"Central Plant Optimization"},8,"Occupied Cooling Set Point:",null,"deg F",false]
[null,7,null,null,null,null,null,null,9,"Unoccupied Cooling Set Point:",null,"deg F",false]
[null,8,null,null,null,null,null,null,10,"Occupied Heating Set Point:",null,"deg F",false]
[null,9,null,null,null,null,null,null,11,"Unoccupied Heating Set Point:",null,"deg F",false]
[null,10,null,null,null,null,null,null,12,"Approximate\nAge of HVAC Equipment:",null,null,false]
[null,11,null,null,null,null,null,null,13,"Baseline Conditions"]
[null,12,null,null,null,null,null,null,14,"Baseline R-Value (Existing Roof):",null,"R-Value",false]
[null,13,null,null,null,null,null,null,15,"Solar Reflectance of Existing Roof :",null,"0 - 1.0 ",false]
[null,14,null,null,null,null,null,null,16,"Infrared Emittance of Existing Roof :",null,"0 - 1.0 ",false]
[null,15,null,null,null,null,null,null,17,"Proposed Conditions"]
[null,16,null,null,null,null,null,null,18,"R-Value of the Proposed Roof:",null,"R-Value",false]
[null,17,null,null,null,null,null,null,19,"Solar Reflectance of Proposed Roof:",null,"0 - 1.0 ",false]
[null,18,null,null,null,null,null,null,20,"Infrared Emittance of Proposed Roof :",null,"0 - 1.0 ",false]
[null,19,null,null,null,null,null,null,null,"End"]
[null,20,null,null,null,null,null,null,null,"Custom EMS"]
[null,21,null,null,null,null,null,null,1,"Space/Zone Description:",null,null,{"$f":"NOT(ISBLANK(K28))","v":false}]
[null,22,null,null,null,null,null,null,2,"Conditioned Area:",null,"Sq. Ft.",false]
[null,23,null,null,null,null,null,null,3,"Cooling Equipment Type:",null,null,false]
[null,24,null,null,null,null,null,null,4,"Heating Equipment Type:",null,null,false]
[null,25,null,null,null,null,null,null,5,"Approximate Age:",null,null,false]
[null,26,null,null,null,null,null,null,6,"Baseline Conditions"]
[null,27,null,null,null,null,null,null,7," Occupied Cooling Set Point:",null,"deg F",{"$f":"NOT(ISBLANK(K34))","v":false}]
[null,28,null,null,null,null,null,null,8," Unoccupied Cooling Set Point:",null,"deg F",false]
[null,29,null,null,null,null,null,null,9," Occupied Heating Set Point:",null,"deg F",false]
[null,30,null,null,null,null,null,null,10," Unoccupied Heating Set Point:",null,"deg F",false]
[null,31,null,null,null,null,null,null,11," Occupancy Schedule:",null,"(Ex. M-F 8am to 5pm, etc.)",false]
[null,32,null,null,null,null,null,null,12," Economizer operation:",null,"Yes or No",false]
[null,33,null,null,null,null,null,null,13," Demand Controlled Ventilation:",null,"Yes or No",false]
[null,null,null,null,null,null,null,null,14,"Proposed Conditions"]
[null,null,null,null,null,null,null,null,15," Occupied Cooling Set Point:",null,"deg F",{"$f":"NOT(ISBLANK(K42))","v":false}]
[null,null,null,null,null,null,null,null,16," Unoccupied Cooling Set Point:",null,"deg F",false]
[null,null,null,null,null,null,null,null,17," Occupied Heating Set Point:",null,"deg F",false]
[null,null,null,null,null,null,null,null,18," Unoccupied Heating Set Point:",null,"deg F",false]
[null,null,null,null,null,null,null,null,19," Occupancy Schedule:",null,"(Ex. M-F 8am to 5pm, etc.)",false]
[null,null,null,null,null,null,null,null,20," Economizer operation:",null,"Yes or No",false]
[null,null,null,null,null,null,null,null,21," Demand Controlled Ventilation:",null,"Yes or No",{"$f":"NOT(ISBLANK(K48))","v":false}]
[null,null,null,null,null,null,null,null,null,"End"]
[null,null,null,null,null,null,null,null,null,"Air Compressor (VSD)"]
[null,null,null,null,null,null,null,null,1,"Proposed Manufacture Make:",null,null,{"$f":"NOT(ISBLANK(K51))","v":false}]
[null,null,null,null,null,null,null,null,2,"Proposed Manufacture Model Number:",null,null,false]
[null,null,null,null,null,null,null,null,3,"Proposed Rated Power (hp):",null,"HP",false]
[null,null,null,null,null,null,null,null,4,"Proposed Rated Capacity (cfm):",null,"CFM",false]
[null,null,null,null,null,null,null,null,5,"Proposed Capacity Control:",null,null,false]
[null,null,null,null,null,null,null,null,6,"Proposed Compressor Cost:",null,null,false]
[null,null,null,null,null,null,null,null,7,"Baseline Manufacture Make:",null,null,false]
[null,null,null,null,null,null,null,null,8,"Baseline Manufacture Model Number:",null,null,false]
[null,null,null,null,null,null,null,null,9,"Baseline Capacity Control:",null,null,false]
[null,null,null,null,null,null,null,null,10,"Baseline Compressor Cost:",null,null,false]
[null,null,null,null,null,null,null,null,11,"Compressed Air Use:",null,null,false]
[null,null,null,null,null,null,null,null,12,"Operating Discharge Pressure:",null,"PSIG",false]
[null,null,null,null,null,null,null,null,13,"Est. Time Compressor is Loaded:",null,"%",false]
[null,null,null,null,null,null,null,null,14,"Est. Time Compressor is Idle:",null,"%",false]
[null,null,null,null,null,null,null,null,15,"Est. Hours Per Year Compressor is Energized:",null,"Hrs/yr",false]
[null,null,null,null,null,null,null,null,null,"End"]
[null,null,null,null,null,null,null,null,null,"High Efficiency Walls"]
[null,null,null,null,null,null,null,null,1,"Wall Exposure","Wall Area (Sq. Ft.)"]
[null,null,null,null,null,null,null,null,2,"North:",null,"Sq. Ft.",{"$f":"NOT(ISBLANK(K69))","v":false}]
[null,null,null,null,null,null,null,null,3,"West:",null,"Sq. Ft.",false]
[null,null,null,null,null,null,null,null,4,"South:",null,"Sq. Ft.",false]
[null,null,null,null,null,null,null,null,5,"East:",null,"Sq. Ft.",false]
[null,null,null,null,null,null,null,null,6,"Wall Construction:",null,null,false]
[null,null,null,null,null,null,null,null,7,"Cooling Equipment Type:",null,null,false]
[null,null,null,null,null,null,null,null,8,"Heating Equipment Type:",null,null,false]
[null,null,null,null,null,null,null,null,9,"Approximate Age of HVAC Equipment:",null,null,false]
[null,null,null,null,null,null,null,null,10,"Building Percent Air Conditioned:",null,"%",false]
[null,null,null,null,null,null,null,null,11,"Baseline Conditions"]
[null,null,null,null,null,null,null,null,12,"R-Value Of Existing Wall:",null,"R-Value",{"$f":"NOT(ISBLANK(K79))","v":false}]
[null,null,null,null,null,null,null,null,13,"Solar Reflectance of Existing Wall \n(High=0.8, Avg = 0.5, Low =0.1):",null,"0 - 1.0 ",false]
[null,null,null,null,null,null,null,null,14,"Infrared Emittance of Existing Wall \n(High=0.9, Avg = 0.75, Low =0.1):",null,"0 - 1.0 ",false]
[null,null,null,null,null,null,null,null,15,"Proposed Conditions"]
[null,null,null,null,null,null,null,null,16,"R-Value of the Proposed Wall:",null,"R-Value",{"$f":"NOT(ISBLANK(K83))","v":false}]
[null,null,null,null,null,null,null,null,17,"Solar Reflectance of Proposed Wall\n(High=0.8, Avg = 0.5, Low =0.1):",null,"0 - 1.0 ",false]
[null,null,null,null,null,null,null,null,18,"Infrared Emittance of Proposed Wall \n(High=0.9, Avg = 0.75, Low =0.1):",null,"0 - 1.0 ",false]
[null,null,null,null,null,null,null,null,null,"End"]
[null,null,null,null,null,null,null,null,null,"High Efficiency Windows"]
[null,null,null,null,null,null,null,null,1,"Window Exposure","Window Area (Sq. Ft.)"]
[null,null,null,null,null,null,null,null,2,"North:",null,"Sq. Ft.",{"$f":"NOT(ISBLANK(K89))","v":false}]
[null,null,null,null,null,null,null,null,3,"West:",null,"Sq. Ft.",false]
[null,null,null,null,null,null,null,null,4,"South:",null,"Sq. Ft.",false]
[null,null,null,null,null,null,null,null,5,"East:",null,"Sq. Ft.",false]
[null,null,null,null,null,null,null,null,6,"Building Percent Air Conditioned :",null,"%",false]
[null,null,null,null,null,null,null,null,7,"Cooling Equipment Type:",null,null,false]
[null,null,null,null,null,null,null,null,8,"Heating Equipment Type:",null,null,false]
[null,null,null,null,null,null,null,null,9,"Approximate Age of HVAC Equipment:",null,null,false]
[null,null,null,null,null,null,null,null,10,"Baseline Conditions"]
[null,null,null,null,null,null,null,null,11,"Baseline Window Type:",null,null,{"$f":"NOT(ISBLANK(K98))","v":false}]
[null,null,null,null,null,null,null,null,12,"Baseline Glazing Thickness & Color:",null,null,false]
[null,null,null,null,null,null,null,null,13,"Baseline U-Value:",null,null,false]
[null,null,null,null,null,null,null,null,14,"Baseline Solar Heat Gain Coefficient (SHGC) of Window:",null,"0 - 1.0 ",false]
[null,null,null,null,null,null,null,null,15,"Proposed Conditions"]
[null,null,null,null,null,null,null,null,16,"Proposed Window Type:",null,null,{"$f":"NOT(ISBLANK(K103))","v":false}]
[null,null,null,null,null,null,null,null,17,"Proposed Glazing Thickness & Color:",null,null,false]
[null,null,null,null,null,null,null,null,18,"U-Value of Proposed Window:",null,null,false]
[null,null,null,null,null,null,null,null,19,"Solar Heat Gain Coefficient (SHGC) of Proposed Treatment:",null,"0 - 1.0 ",false]
[null,null,null,null,null,null,null,null,null,"End"]
[null,null,null,null,null,null,null,"ListFixtureType",null,"Lighting Controls"]
[null,null,null,null,null,null,null,"T8 fluorescent",1,"Lighting Group 1"]
[null,null,null,null,null,null,null,"T5 fluorescent",2,"Fixture Locations:",null,null,{"$f":"NOT(ISBLANK(K110))","v":false}]
[null,null,null,null,null,null,null,"T12 fluorescent",3,"Fixture Type:",null,null,false]
[null,null,null,null,null,null,null,"Incandescent screw-in",4,"Quantity of fixtures:",null,null,false]
[null,null,null,null,null,null,null,"CFL screw-in",5,"Fixture Wattage:",null,"Watts",false]
[null,null,null,null,null,null,null,"CFL pin-based",6,"Baseline Lighting Operating Schedule\n(include dimming set points if applicable):",null,null,false]
[null,null,null,null,null,null,null,"Metal Halide",7,"Proposed Lighting Operating Schedule\n(include dimming set points if applicable):",null,null,false]
[null,null,null,null,null,null,null,"High Pressure Sodium",8,"Lighting Group 2"]
[null,null,null,null,null,null,null,"LED",9,"Fixture Locations:",null,null,{"$f":"NOT(ISBLANK(K117))","v":false}]
[null,null,null,null,null,null,null,"Mercury Vapor",10,"Fixture Type:",null,null,false]
[null,null,null,null,null,null,null,"Induction",11,"Quantity of fixtures:",null,null,false]
[null,null,null,null,null,null,null,null,12,"Fixture Wattage:",null,"Watts",false]
[null,null,null,null,null,null,null,null,13,"Baseline Lighting Operating Schedule\n(include dimming set points if applicable):",null,null,false]
[null,null,null,null,null,null,null,null,14,"Proposed Lighting Operating Schedule\n(include dimming set points if applicable):",null,null,false]
[null,null,null,null,null,null,null,null,15,"Lighting Group 3"]
[null,null,null,null,null,null,null,null,16,"Fixture Locations:",null,null,{"$f":"NOT(ISBLANK(K124))","v":false}]
[null,null,null,null,null,null,null,null,17,"Fixture Type:",null,null,false]
[null,null,null,null,null,null,null,null,18,"Quantity of fixtures:",null,null,false]
[null,null,null,null,null,null,null,null,19,"Fixture Wattage:",null,"Watts",false]
[null,null,null,null,null,null,null,null,20,"Baseline Lighting Operating Schedule\n(include dimming set points if applicable):",null,null,false]
[null,null,null,null,null,null,null,null,21,"Proposed Lighting Operating Schedule\n(include dimming set points if applicable):",null,null,false]
[null,null,null,null,null,null,null,null,null,"End"]
[null,null,null,null,null,null,null,null,null,"Central Plant Optimization"]
[null,null,null,null,null,null,null,null,1,"Central Plant Equipment"]
[null,null,null,null,null,null,null,null,2,"Quantity and Capacity of all Chillers:",null,null,{"$f":"NOT(ISBLANK(K133))","v":false}]
[null,null,null,null,null,null,null,null,3,"Chiller Type:",null,null,false]
[null,null,null,null,null,null,null,null,4,"Heat Rejection Type: ",null,null,false]
[null,null,null,null,null,null,null,null,5,"Chilled Water Distribution: ",null,null,false]
[null,null,null,null,null,null,null,null,6,"Primary CHW Pump Size and Qty:",null,null,false]
[null,null,null,null,null,null,null,null,7,"Secondary CHW Pump Size and Qty:\n(if applicable)",null,null,false]
[null,null,null,null,null,null,null,null,8,"Cooling Tower Fan Size and Qty:",null,null,false]
[null,null,null,null,null,null,null,null,9,"Cooling Tower Fan VFD:",null,null,false]
[null,null,null,null,null,null,null,null,10,"Flat Plate Heat Exchanger? :",null,null,false]
[null,null,null,null,null,null,null,null,11,"Configuration of Flat Plate:",null,null,false]
[null,null,null,null,null,null,null,null,12,"Existing Central Plant Operations & Set Points"]
[null,null,null,null,null,null,null,null,13,"Central Plant Operating Schedule:\n(ex. Mon-Sat 7am-10pm)",null,null,{"$f":"NOT(ISBLANK(K144))","v":false}]
[null,null,null,null,null,null,null,null,14,"Peak Summer Cooling Load:",null,"Tons",false]
[null,null,null,null,null,null,null,null,15,"Winter Outside Air Cooling Limit:",null,"deg F",false]
[null,null,null,null,null,null,null,null,16,"Please describe the current Chiller Sequencing:",null,null,false]
[null,null,null,null,null,null,null,null,17,null,null,null,false]
[null,null,null,null,null,null,null,null,18,"Chilled Water (CHW) set point:",null,"deg F",false]
[null,null,null,null,null,null,null,null,19,"If CHW Reset, please describe strategy:",null,null,false]
[null,null,null,null,null,null,null,null,20,"Condenser Water (CW) Set Point:",null,"deg F",false]
[null,null,null,null,null,null,null,null,21,"If CW Reset, please describe strategy:",null,null,false]
[null,null,null,null,null,null,null,null,22,"Flat Plate Enable Set Point:",null,"deg F",false]
[null,null,null,null,null,null,null,null,23,"Proposed Central Plant Operations & Set Points"]
[null,null,null,null,null,null,null,null,24,"Describe the Proposed CHW Reset Strategy (if any):",null,null,{"$f":"NOT(ISBLANK(K155))","v":false}]
[null,null,null,null,null,null,null,null,25,"Describe the Proposed CW Reset Strategy (if any):",null,null,false]
[null,null,null,null,null,null,null,null,26,"Please describe all Proposed changes to the chiller sequencing:",null,null,false]
[null,null,null,null,null,null,null,null,27,null,null,null,false]
[null,null,null,null,null,null,null,null,28,"Please describe all Proposed changes to the CHW pumping distribution system:",null,null,false]
[null,null,null,null,null,null,null,null,29,null,null,null,false]
[null,null,null,null,null,null,null,null,30,"Please describe all Proposed changes to the cooling tower operation:",null,null,false]
[null,null,null,null,null,null,null,null,31,null,null,null,false]
[null,null,null,null,null,null,null,null,32,"Please describe any other changes to central plant sequence of operations that are part of the project:",null,null,false]
[null,null,null,null,null,null,null,null,33,null,null,null,false]
[null,null,null,null,null,null,null,null,null,"End"]
[null,null,null,null,null,null,null,null,null,"-- Select --"]
[null,null,null,null,null,null,null,null,1]
[null,null,null,null,null,null,null,null,2]
[null,null,null,null,null,null,null,null,3]
[null,null,null,null,null,null,null,null,4]
[null,null,null,null,null,null,null,null,5]
[null,null,null,null,null,null,null,null,6]
[null,null,null,null,null,null,null,null,7]
[null,null,null,null,null,null,null,null,8]
[null,null,null,null,null,null,null,null,9]
[null,null,null,null,null,null,null,null,10]
[null,null,null,null,null,null,null,null,11]
[null,null,null,null,null,null,null,null,12]
[null,null,null,null,null,null,null,null,13]
[null,null,null,null,null,null,null,null,14]
[null,null,null,null,null,null,null,null,15]
[null,null,null,null,null,null,null,null,16]
[null,null,null,null,null,null,null,null,17]
[null,null,null,null,null,null,null,null,18]
[null,null,null,null,null,null,null,null,19]
[null,null,null,null,null,null,null,null,20]
[null,null,null,null,null,null,null,null,21]
[null,null,null,null,null,null,null,null,22]
[null,null,null,null,null,null,null,null,23]
[null,null,null,null,null,null,null,null,24]
[null,null,null,null,null,null,null,null,25]
[null,null,null,null,null,null,null,null,26]
[null,null,null,null,null,null,null,null,27]
[null,null,null,null,null,null,null,null,28]
[null,null,null,null,null,null,null,null,29]
[null,null,null,null,null,null,null,null,30]
[null,null,null,null,null,null,null,null,31]
[null,null,null,null,null,null,null,null,32]
[null,null,null,null,null,null,null,null,33]
[null,null,null,null,null,null,null,null,null,"End"]
[null,null,null,null,null,null,null,null,null,"Custom: Other"]
[null,null,null,null,null,null,null,null,1,"Please fill in the custom parameters, inputs, and units that are relevant to the measure(s) you are applying for. Separate measures by supplying the measure type before the parameters.",null,null,{"$f":"IF(COUNTA(J204:L234)=0,FALSE,TRUE)","v":false}]
[null,null,null,null,null,null,null,null,2]
[null,null,null,null,null,null,null,null,3,null,null,null,{"$f":"IF(NOT(ISBLANK(J204)),NOT(OR(ISBLANK(K204),ISBLANK(L204))),TRUE)","v":true}]
[null,null,null,null,null,null,null,null,4,null,null,null,{"$f":"IF(NOT(ISBLANK(J205)),NOT(OR(ISBLANK(K205),ISBLANK(L205))),TRUE)","v":true}]
[null,null,null,null,null,null,null,null,5,null,null,null,true]
[null,null,null,null,null,null,null,null,6,null,null,null,true]
[null,null,null,null,null,null,null,null,7,null,null,null,true]
[null,null,null,null,null,null,null,null,8,null,null,null,true]
[null,null,null,null,null,null,null,null,9,null,null,null,true]
[null,null,null,null,null,null,null,null,10,null,null,null,true]
[null,null,null,null,null,null,null,null,11,null,null,null,true]
[null,null,null,null,null,null,null,null,12,null,null,null,true]
[null,null,null,null,null,null,null,null,13,null,null,null,true]
[null,null,null,null,null,null,null,null,14,null,null,null,true]
[null,null,null,null,null,null,null,null,15,null,null,null,true]
[null,null,null,null,null,null,null,null,16,null,null,null,true]
[null,null,null,null,null,null,null,null,17,null,null,null,true]
[null,null,null,null,null,null,null,null,18,null,null,null,true]
[null,null,null,null,null,null,null,null,19,null,null,null,true]
[null,null,null,null,null,null,null,null,20,null,null,null,true]
[null,null,null,null,null,null,null,null,21,null,null,null,true]
[null,null,null,null,null,null,null,null,22,null,null,null,true]
[null,null,null,null,null,null,null,null,23,null,null,null,true]
[null,null,null,null,null,null,null,null,24,null,null,null,true]
[null,null,null,null,null,null,null,null,25,null,null,null,true]
[null,null,null,null,null,null,null,null,26,null,null,null,true]
[null,null,null,null,null,null,null,null,27,null,null,null,true]
[null,null,null,null,null,null,null,null,28,null,null,null,true]
[null,null,null,null,null,null,null,null,29,null,null,null,true]
[null,null,null,null,null,null,null,null,30,null,null,null,true]
[null,null,null,null,null,null,null,null,31,null,null,null,true]
[null,null,null,null,null,null,null,null,32,null,null,null,true]
[null,null,null,null,null,null,null,null,33,null,null,null,true]
[null,null,null,null,null,null,null,null,null,"End"]

{"sheet":"Supporting Documentation","index":14,"n_rows":25,"n_cols":8,"rows_kept":25,"cut":false,"hidden":false,"merged":[[25,1,33,4],[24,1,24,4],[23,1,23,4],[21,1,22,4],[12,5,12,6],[14,5,14,6],[15,5,15,6],[16,5,16,6],[17,5,17,6],[18,5,18,6],[19,5,19,6],[5,1,20,4],[4,5,4,6],[1,5,1,7],[6,5,6,6],[7,5,7,6],[1,1,1,4],[2,1,4,4]]}
[null,{"$f":"'Customer Information'!$AY$5 & \" - \" & 'Customer Information'!$AY$6","v":"FY27.1.0 - Version 20260501"}]
[null,"Supporting Information",null,null,null,"HIDE"]
[null,"For each energy efficiency measure listed in the Rebate Worksheet, please describe the method used to calculate energy savings (including spreadsheets and applicable data sheets that support the methodology). Include additional documents, as required, when submitting the application."]
[null,null,null,null,null,"Supporting Information"]
[null,null,null,null,null,"Complete?",null,{"$f":"IF(AND($H$7:$H$8),\"Complete\",\"MI: \"&INDIRECT(\"F\"&MATCH(FALSE,$H$7:$H$8,0)+6))","v":"MI: Supporting Information"}]
[]
[null,null,null,null,null,"Supporting Information",null,{"$f":"B6<>\"\"","v":false}]
[null,null,null,null,null,"Proposed Commissioning",null,{"$f":"B26<>\"\"","v":false}]
[]
[]
[]
[null,null,null,null,null,"Data Forms"]
[null,null,null,null,null,"Complete?",null,{"$f":"IF(COUNTIFS($H$15:$H$20,\"No Info\")=6,\"\",IF(OR(AND(COUNTIFS($H$15:$H$20,\"Complete\")>=1,COUNTIFS($H$15:$H$20,\"Missing Information\")=0)),\"Complete\",\"MI: \"&INDIRECT(\"F\"&MATCH(\"Missing Information\",$H$15:$H$20,0)+14)))","v":""}]
[]
[null,null,null,null,null,"EEM 1",null,{"$f":"INDIRECT(\"'Data Form (\" & $F15 & \")'!P4\")","v":"No Info"}]
[null,null,null,null,null,"EEM 2",null,{"$f":"INDIRECT(\"'Data Form (\" & $F16 & \")'!P4\")","v":"No Info"}]
[null,null,null,null,null,"EEM 3",null,"No Info"]
[null,null,null,null,null,"EEM 4",null,"No Info"]
[null,null,null,null,null,"EEM 5",null,"No Info"]
[null,null,null,null,null,"EEM 6",null,"No Info"]
[]
[null,"Need Help?  Check the data collection page to see if the measure you are installing has a pre-determined data collection form. If so, complete all the fields in the data collection form and it will help us to review the project. "]
[]
[null,"Proposed Commissioning"]
[null,"Please describe the Proposed Commissioning activities associated with each measure in the space provided. Please clearly explain the parameters to be measured, corresponding measuring devices, time-periods, and data interval(s) for each applicable scenario(s)*.\n\n*For retrofits, pre- and post-install scenarios will be required."]

{"sheet":"Project Report","index":15,"n_rows":59,"n_cols":21,"rows_kept":59,"cut":false,"hidden":true,"merged":[[28,3,29,12],[0,15,0,22],[8,2,8,5],[8,6,8,9],[8,10,8,13],[9,2,9,5],[9,6,9,9],[9,10,9,13],[6,2,6,5],[6,6,6,9],[6,10,6,13],[7,2,7,5],[7,6,7,9],[7,10,7,13],[2,5,2,14],[3,10,3,14],[4,13,4,14],[4,15,4,17],[10,6,10,9],[10,10,10,13],[11,2,11,5],[11,6,11,9],[11,10,11,13],[10,2,10,5],[12,2,12,5],[12,6,12,9],[12,10,12,13],[24,4,27,8],[13,2,13,5],[13,6,13,9],[13,10,13,13],[14,2,14,5],[14,6,14,9],[14,10,14,13],[16,2,16,13],[18,11,18,13],[19,4,22,8],[19,9,22,10],[19,11,19,13],[31,4,33,6],[31,7,33,8],[32,10,32,11],[32,12,32,13],[33,10,34,11],[33,12,34,13],[34,4,35,6],[34,7,35,8],[41,2,41,12],[37,4,38,6],[37,7,38,8],[37,10,37,11],[37,12,37,13],[38,10,39,11],[38,12,39,13],[39,4,40,6],[39,7,40,8],[56,3,56,13],[57,3,57,13],[58,2,58,13],[51,2,51,13],[52,2,52,13],[53,2,53,13],[55,3,55,13],[54,3,54,13],[45,2,45,13],[44,2,44,13],[43,2,43,13],[50,2,50,13],[49,3,49,13],[48,3,48,13],[47,3,47,13],[46,2,46,13]]}
[null,{"$f":"'Customer Information'!$AY$5 & \" - \" & 'Customer Information'!$AY$6","v":"FY27.1.0 - Version 20260501"},null,null,null,null,null,null,null,null,null,null,null,null,null,"HIDE"]
[]
[null,null,null,null,null,{"$f":"CONCATENATE(Instructions!$C$4,\" \",Instructions!$H$4)","v":"FY27 SRP Business Solutions Custom Program Rebate Application - Preliminary"}]
[null,null,null,null,null,null,null,null,null,null,"Measure Report"]
[null,null,null,null,null,null,null,null,null,null,null,null,null,{"$f":"\"\"","v":""}]
[]
[null,null,"Participant Information",null,null,null,"Vendor Information",null,null,null,"Project Information"]
[null,null,{"$f":"IF(Participant_Name<>\"\",Participant_Name,\"\")","v":""},null,null,null,{"$f":"IF('Customer Information'!$S$25=\"Yes\",\"Self-Installed\",IF(TA_Name<>\"\",TA_Name,\"\"))","v":""},null,null,null,{"$f":"IF(Project_CBSName<>\"\",Project_CBSName,\"\")","v":""}]
[null,null,null,null,null,null,null,null,null,null,{"$f":"IF(Project_AcctNum<>\"\",\"Account #: \" & TEXT(Project_AcctNum,\"000 000 000\"),\"\")","v":""}]
[null,null,{"$f":"IF(Participant_Address1<>\"\",Participant_Address1,\"\")","v":""},null,null,null,{"$f":"IF(TA_Address1<>\"\",TA_Address1,\"\")","v":""},null,null,null,{"$f":"IF(Project_Address1<>\"\",Project_Address1,\"\")","v":""}]
[null,null,{"$f":"IF(Participant_Address2<>\"\",Participant_Address2,\"\")&IF(Participant_Address3<>\"\",\", \"&Participant_Address3,\"\") & \" \" & IF(Participant_Address4<>\"\",Participant_Address4,\"\")","v":" "},null,null,null,{"$f":"IF(TA_Address2<>\"\",TA_Address2,\"\")&IF(TA_Address3<>\"\",\", \"&TA_Address3,\"\") & \" \" & IF(TA_Address4<>\"\",TA_Address4,\"\")","v":" "},null,null,null,{"$f":"IF(Project_Address2<>\"\",Project_Address2,\"\")&IF(Project_Address3<>\"\",\", \"&Project_Address3,\"\") & \" \" & IF(Project_Address4<>\"\",Project_Address4,\"\")","v":", AZ "}]
[]
[null,null,{"$f":"IF(Participant_Contact<>\"\",Participant_Contact,\"\")&IF(Participant_Title<>\"\",\", \"&Participant_Title,\"\")","v":""},null,null,null,{"$f":"IF(TA_Contact<>\"\",TA_Contact,\"\")&IF(TA_Title<>\"\",\", \"&TA_Title,\"\")","v":""},null,null,null,{"$f":"IF(ProjectType<>\"\",ProjectType,\"\")","v":"Rebate Application"}]
[null,null,{"$f":"IF(Participant_Email<>\"\",Participant_Email,\"\")","v":""},null,null,null,{"$f":"IF(TA_Email<>\"\",TA_Email,\"\")","v":""}]
[null,null,{"$f":"IF(Participant_Phone<>\"\",Participant_Phone,\"\")","v":""},null,null,null,{"$f":"IF(TA_Phone<>\"\",TA_Phone,\"\")","v":""},null,null,null,{"$f":"IF(Project_InstDate<>\"\",\"Installed: \"&CONCATENATE(MONTH(Project_InstDate),\"/\",DAY(Project_InstDate),\"/\",YEAR(Project_InstDate)),\"\")","v":""}]
[]
[null,null,"Project Assessment Summary",null,null,null,null,null,null,null,null,null,null,null,null,"$/kWh","$/kW"]
[]
[null,null,"Electric Cost Savingsa",null,null,null,null,null,null,null,null,"Total Project Cost",null,null,null,{"$f":"IFERROR(VLOOKUP('Customer Information'!$BC$15,'CI Table'!$A$48:$C$59,2,FALSE),ROUND(AVERAGE('CI Table'!$B$51:$B$61),4))","v":0.1105},{"$f":"IFERROR(VLOOKUP('Customer Information'!$BC$15,'CI Table'!$A$48:$C$59,3,FALSE),ROUND(AVERAGE('CI Table'!$C$51:$C$61),4))","v":9.6144999999999996},"(Default)"]
[null,null,null,null,{"$f":"IFERROR(IF($E$25=0,0,$E$32*IF($P$18<>\"\",$P$18,$P$19)+$E$35*IF($Q$18<>\"\",$Q$18,$Q$19)),0)","v":0},null,null,null,null,"Per Year",null,{"$f":"IFERROR(SUM('Project Summary'!$L$3:$L$8),0)","v":0}]
[null,null,null,null,null,null,null,null,null,null,null,null,null,null,null,"Car Emissions Calculations"]
[null,null,null,null,null,null,null,null,null,null,null,null,null,null,null,22,"MPG",null,null,{"$f":"P23/P22","v":520.13636363636363},"gal/yr (per car)"]
[null,null,null,null,null,null,null,null,null,null,null,null,null,null,null,11443,"Miles diven (Annual)",null,null,{"$f":"T22*P24","v":4.6224518636363641},"CO2/yr (Tons/yr, per car)"]
[null,null,"Total Project Rebates",null,null,null,null,null,null,null,null,null,null,null,null,{"$f":"8.887*10^-3","v":8.8870000000000008E-3},"CO2/gal (Tons/gal)",null,null,{"$f":"P25*E32","v":0},"CO2 savings"]
[null,null,null,null,{"$f":"IFERROR(SUM('Project Summary'!$N$3:$N$8)+0,0)","v":0},null,null,null,null,null,null,null,null,null,null,{"$f":"879.9/1000/2205","v":3.9904761904761908E-4},"CO2/kWh (Tons/kWh)",null,null,{"$f":"T24/T23","v":0},"Cars/yr"]
[null,null,null,null,null,null,null,null,null,null,null,null,null,null,null,3.9E-2,"CO2/Tree (Tons/Tree, 10yrs)"]
[null,null,null,null,null,null,null,null,null,null,null,null,null,null,null,{"$f":"T24/P26","v":0},"# of Trees Planted/Grow 10yrs"]
[]
[null,null,null,"Payment of rebates is subject to Customer's continued compliance with the current fiscal year's Program Terms and Conditions signed by the customer. Customer may request a copy of its signed Terms and Conditions by submitting a request to the SRP Business Solutions Program Administrators (Resource Innovations)."]
[]
[null,null,"Energy Savings",null,null,null,null,null,null,"Simple Paybacka"]
[null,null,null,null,{"$f":"IFERROR(SUM('Project Summary'!$J$3:$J$8)+0,0)","v":0},null,null,"kWh/year\nEnergy Savings"]
[null,null,null,null,null,null,null,null,null,null,{"$f":"IF(OR($E$20=0,$E$25=0,$L$20=0),0,($L$20-$E$25)/$E$20)","v":0},null,"with rebates"]
[null,null,null,null,null,null,null,null,null,null,{"$f":"IF(OR($E$20=0,$E$25=0,$L$20=0),0,($L$20)/$E$20)","v":0},null,"with out rebates"]
[null,null,null,null,{"$f":"IFERROR(SUM('Project Summary'!$K$3:$K$8)+0,0)","v":0},null,null,"kW/month\nDemand Reduction"]
[]
[null,null,"Environmental Impact",null,null,null,null,null,null,"Return on Investment (ROI)a"]
[null,null,null,null,{"$f":"IFERROR($T$25,0)","v":0},null,null,"Equivalent # of Cars\nremoved per year",null,null,{"$f":"IFERROR(IF(OR($E$20=\"\",$E$25=\"\",$L$20=\"\"),0,($E$20+$E$25)/$L$20),0)","v":0},null,"with rebates"]
[null,null,null,null,null,null,null,null,null,null,{"$f":"IFERROR(IF(OR($E$20=\"\",$E$25=\"\",$L$20=\"\"),0,($E$20)/$L$20),0)","v":0},null,"without rebates"]
[null,null,null,null,{"$f":"IF($E38=0,0,$P$27)","v":0},null,null,"Equivalent # of Trees planted & grow for 10yrs"]
[]
[null,null,"a Electric cost savings, Simple Payback, and Return on Investment (ROI) are estimates only and intended solely for SRP custom projects. Savings may be adjusted based on our engineering analytics process. Rebates paid are based upon approved as-installed equipment, operating conditions, and project costs. "]
[]
[null,null,"Project Next Steps"]
[null,null,"ü  Review this assessment report with your auditor."]
[null,null,"ü  Steps for a preliminary Rebate Application (\"RA\"):"]
[null,null,"1. Before you start your project, complete and submit the following documents to savewithsrpbiz@srpnet.com or have your contractor submit it. We may need to verify existing equipment through an inspection."]
[null,null,null,"a. A completed preliminary Rebate Application."]
[null,null,null,"b. Any necessary supporting documents."]
[null,null,null,"c. Requested preliminary commissioning data, if requested by an SRP Business Solutions representative."]
[null,null,"2. After we review your rebate application, we will provide an approval email/letter detailing the measure(s), approved reserved rebate amount, and any required commisioning requirements following the installation of the proposed energy efficiency measures."]
[null,null,"ü  Upgrade your equipment."]
[null,null,"ü  Steps for a post-installation Rebate Application (\"IN\"):"]
[null,null,"1. Submit the following documents to savewithsrpbiz@srpnet.com. A post-installation inspection may be required."]
[null,null,null,"a. A completed final Rebate Application, including any changes to the proposed measure(s)."]
[null,null,null,"b. Payment information, such as invoice(s) or a payment application."]
[null,null,null,"c. Any necessary supporting documents."]
[null,null,null,"d. Requested commissioning data, as outlined in the SRP Approval Letter's Commissioning section."]
[null,null,"2. Await an SRP Business Solutions representative for final approval of the rebate amount. After approval, allow 3-5 weeks for the incentive check to be mailed to the payee adress."]

{"sheet":"F.A.Q.","index":16,"n_rows":62,"n_cols":4,"rows_kept":62,"cut":false,"hidden":false,"merged":[[51,2,53,2],[51,3,53,3],[2,2,2,3],[20,2,32,2]]}
[null,{"$f":"'Customer Information'!$AY$5 & \" - \" & 'Customer Information'!$AY$6","v":"FY27.1.0 - Version 20260501"}]
[]
[null,null,"Frequently Asked Questions"]
[]
[null,null,"Table of Contents:"]
[null,null,"Macro Security:"]
[null,null,1,{"$f":"D20","v":"How do I enable macros if I'm getting the \"Blocked Content\" (Macros in this document have been disabled) message?"}]
[null,null,"General:"]
[null,null,1,{"$f":"D38","v":"What equipment qualifies? "}]
[null,null,2,{"$f":"D40","v":"What is the incentive structure for eligible measures? "}]
[null,null,3,{"$f":"D42","v":"Who qualifies for this program? "}]
[null,null,4,{"$f":"D44","v":"What needs to be submitted along with completing the measure information?"}]
[null,null,5,{"$f":"D46","v":"How should I apply if my building efficiency upgrade includes installations of lighting and other equipment?"}]
[null,null,6,{"$f":"D49","v":"How long will this program be available?"}]
[null,null,7,{"$f":"D51","v":"Is there a maximum or minimum rebate amount that I can receive from this program?"}]
[null,null,8,{"$f":"D55","v":"Can I submit multiple applications in a program year?"}]
[null,null,9,{"$f":"D57","v":"Where can I find out more about this program?"}]
[]
[null,null,"Macro Security:"]
[null,null,"Q:","How do I enable macros if I'm getting the \"Blocked Content\" (Macros in this document have been disabled) message?"]
[null,null,"A:","1. Navigate to File > Options > Trust Center and click on \"Trust Center Settings...\""]
[]
[]
[]
[null,null,null,"2. Go to \"Macro Settings\" and verify either \"Disable VBA macros with notification or Enable VBA macros is selected. Click \"OK,\" then close and reopen the application to check if this fixes the issue."]
[]
[]
[]
[null,null,null,"3. If the last step did not fix the issue, navigate to \"Trusted Locations\", follow the prompts to select (or create) a new trusted location (\"Add new location…\"), [optional] and select the box to allow Subfolders to also be trusted. Save the application to the new trusted location, then reopen the application to check if this fixes the issue."]
[]
[]
[]
[]
[]
[null,null,null,"4. If you continue to have issues, contact us at savewithsrpbiz@srpnet.com or reach out to your SRP representative."]
[]
[null,null,"General:"]
[null,null,"Q:","What equipment qualifies? "]
[null,null,"A:","Technologies or control strategies that do not have a prescriptive measure in the SRP Standard Business Solutions (SBS) rebate program may qualify for incentives in the Custom Business Solutions (CBS) program if they improve the energy performance of a process or piece of equipment. Speak to a program representative to determine measure eligibility."]
[null,null,"Q:","What is the incentive structure for eligible measures? "]
[null,null,"A:","Incentives are paid at $0.11 per kWh Saved. "]
[null,null,"Q:","Who qualifies for this program? "]
[null,null,"A:","The SRP Business Solutions program is available to all SRP non-residential retail electric customers in SRP’s service territory. Customers’ rate schedules can be verified by looking at a recent SRP electric bill."]
[null,null,"Q:","What needs to be submitted along with completing the measure information?"]
[null,null,"A:","In addition to the completed application, a hand- or digitally-signed Terms and Conditions, up-to-date W-9, and any supporting documents or data for custom measures is necessary to submit an application. Speak with your program representative to determine what is needed at each stage of your project."]
[null,null,"Q:","How should I apply if my building efficiency upgrade includes installations of lighting and other equipment?"]
[null,null,"A:","Customers with a project involving both custom and prescriptive (\"standard\") measures must submit separate applications for Lighting and Non-Lighting even if the installations are part of the same upgrade project. Only one copy of the Terms & Conditions and W-9 will be needed to start a project. Please note that any retrofit lighting and retrofit custom projects require pre-approval prior to purchasing,"]
[null,null,null,"ordering, and installing equipment. You can find the application online at www.savewithsrpbiz.com or by contacting the Program Administrator."]
[null,null,"Q:","How long will this program be available?"]
[null,null,"A:",{"$f":"\"Customers will be able to receive rebates from this program in its current form for equipment installed through April 30, \" & IF(MONTH(TODAY())>=5,YEAR(TODAY())+1,YEAR(TODAY())) & \", subject to rebate availability. SRP anticipates the SRP Business Solutions Custom program to be an integral part of its future resource plan moving forward.\"","v":"Customers will be able to receive rebates from this program in its current form for equipment installed through April 30, 2026, subject to rebate availability. SRP anticipates the SRP Business Solutions Custom program to be an integral part of its future resource plan moving forward."}]
[null,null,"Q:","Is there a maximum or minimum rebate amount that I can receive from this program?"]
[null,null,"A:","Customers are subject to a maximum rebate of $450,000 from May 1 through April 30 for all SRP programs, with separate program area caps of $300,000 for Energy Efficiency programs, $300,000 for Business EV programs, and $100,000 for Beneficial Electrification programs. Program- or technology-based limits may also be applicable, based on program terms and conditions. A customer is defined as all accounts under a single customer, even if these accounts are at multiple sites. There is a minimum rebate amount of $100.00 required for participation in the SRP Business Solutions Custom Program. SRP reserves the right to determine at their sole discretion the program year to which a rebate is attributed."]
[]
[]
[null,null,"Q:","Can I submit multiple applications in a program year?"]
[null,null,"A:","Customers are encouraged to maximize their energy savings by undertaking comprehensive facility-wide energy efficiency upgrade projects. However, a single customer may submit multiple applications for different projects throughout the program year. Customer rebate caps still apply."]
[null,null,"Q:","Where can I find out more about this program?"]
[null,null,"A:","Customers can learn more about the SRP Business Solutions Custom program and other SRP programs in the following ways:"]
[null,null,null,"  • Web - www.savewithsrpbiz.com"]
[null,null,null,"  • Telephone - (602) 236-3054"]
[null,null,null,"  • Fax - (480) 345-7601"]
[null,null,null,"  • Email - savewithsrpbiz@srpnet.com"]

{"sheet":"CI Table","index":17,"n_rows":62,"n_cols":6,"rows_kept":62,"cut":false,"hidden":true,"merged":[]}
[]
["ListProjectType","ListEEMType"]
["Preliminary Assessment","Retrofit"]
["Technical Assessment","New Construction"]
["Rebate Application","ListBuildingType","ASHRAE Bldg Type"]
["ListProjectStage","Assisted Living Facility","Assisted Living Facility",null,"ListPAType","ListTAType"]
["Preliminary","Automotive Facility","Automotive Facility",null,"-- Select Assessment Type --","-- Select Assessment Type --"]
["Installed","Casino","Casino",null,"EEM","Compressed Air"]
["New Construction","Convention Center/Multipurpose","Convention Center",null,"Compressed Air","Data Center"]
["ListPreparedBy","Court House","Court House",null,"Compressed Air: Leak Assessment","EEM"]
["Customer","Data Center","Data Center",null,"Data Center","Pumping System"]
["Installer/Trade Ally","Dining: Bar Lounge/Leisure","Dining: Bar Lounge/Leisure",null,"Pump Test"]
["Distributer","Dining: Cafeteria/Fast Food","Dining: Cafeteria/Fast Food",null,"EnergyStar (ES) Benchmark"]
["Other","Dining: Family","Dining: Family"]
["ListAddressedTo","Dormitory","Dormitory"]
["Installation Address","Exercise Center","Exercise Center"]
["Participant Address","Fire Station","Fire Station"]
["Trade Ally Address","Grow Facility","Grow Facility"]
["Other: Please Specify","Gymnasium","Gymnasium"]
["ListHeardAbout","Health Care - Clinic","Health Care - Clinic"]
[null,"Health Care - Hospital","Health Care - Hospital"]
["SRP Web Site","Hotel","Hotel"]
["SRP Account Manager","Library","Library"]
["Radio","Manufacturing Facility","Manufacturing Facility"]
["TV","Motel","Motel"]
["Mail","Movie Theater","Motion Picture Theater"]
["E-Mail","Multi-Family Housing","Multi-Family Housing"]
["Trade Show","Museum","Museum"]
["Newspaper / Magazine","Office","Office"]
["Bill / Bill Insert / Contact","Parking Garage","Parking Garage"]
["Internet / Online Advertising","Penitentiary","Penitentiary"]
["SRP Call","Performing Arts Theater","Performing Arts Theater"]
["SRP Representative","Police Station","Police Station"]
["SRP Electronic Newsletter","Post Office","Post Office"]
["Industry Event","Religious Building","Religious Building"]
["SRP Event","Retail, Food/Grocery","Retail, Food/Grocery"]
["Contractor / Vendor","Retail, Commodity","Retail, Commodity"]
["Colleague / Word Of Mouth","Retail, Services","Retail, Specialty"]
["Don't Know","Elementary/Middle School","Primary School"]
["Other: Please Specify","High School","Sec. School"]
["ListParticipantIs","College/University","University"]
[null,"Sports Arena","Sports Arena"]
["Account Holder","Town Hall","Town Hall"]
["Facility Owner","Transit Station","Transportation"]
["Project Manager","Warehouse, Refrigerated","Warehouse, Refrigerated"]
[null,"Warehouse, Commercial","Warehouse, Commercial"]
[null,"Warehouse, Industrial","Warehouse, Industrial"]
[null,"Workshop","Workshop"]
[]
["ListBillingRate","ListBillingkWh","ListBillingkW"]
["E-31",{"$f":"B52","v":0.11700000000000001},{"$f":"C52","v":6.99}]
["E-32",0.11700000000000001,6.99]
["E-33",{"$f":"B52","v":0.11700000000000001},{"$f":"C52","v":6.99}]
["E-34",{"$f":"B52","v":0.11700000000000001},{"$f":"C52","v":6.99}]
["E-36",0.1216,7.37]
["E-47",0.11990000000000001,5.04]
["E-48",0.1326,7.55]
["E-61",0.1008,12]
["E-63",9.7699999999999995E-2,11.84]
["E-65",8.77E-2,17]
["E-66",{"$f":"B60","v":8.77E-2},{"$f":"C60","v":17}]
["E-67",7.9699999999999993E-2,29]

{"sheet":"Ref","index":18,"n_rows":22,"n_cols":6,"rows_kept":22,"cut":false,"hidden":true,"merged":[[9,1,9,2],[20,2,20,13],[21,2,21,13],[13,1,13,2],[14,1,14,2],[10,1,10,2],[15,1,15,2],[19,2,19,13],[17,1,17,2],[13,4,13,5],[7,1,7,10],[0,1,0,2],[1,1,1,2],[4,0,4,10],[5,1,5,10],[6,1,6,10],[51,2,51,13],[29,2,29,13],[30,2,30,13],[31,2,31,13],[32,2,32,13],[33,2,33,13],[44,2,44,13],[45,2,45,13],[46,2,46,13],[47,2,47,13],[48,2,48,13],[39,2,39,13],[40,2,40,13],[41,2,41,13],[42,2,42,13],[43,2,43,13],[49,2,49,13],[50,2,50,13],[34,2,34,13],[35,2,35,13],[36,2,36,13],[37,2,37,13],[38,2,38,13],[25,2,25,13],[26,2,26,13],[27,2,27,13],[28,2,28,13],[22,2,22,13],[23,2,23,13],[24,2,24,13]]}
["Version_ID",{"$f":"INDIRECT(\"A\" & MATCH(MAX($B$21:$B$52),$B$21:$B$52,0)+20)","v":"FY27.1.0"}]
["Date_ID",{"$f":"\"Version \"&CONCATENATE(TEXT(YEAR(MAX($B$21:$B$52)),\"0000\"),TEXT(MONTH(MAX($B$21:$B$52)),\"00\"),TEXT(DAY(MAX($B$21:$B$52)),\"00\"))","v":"Version 20260501"}]
[]
[]
["Instructions:"]
["PA","The Preliminary Assessment (PA) is an optional submission for eligible customers (must have an eligible  billing rate) for compressed air, pumping systems, or data center space to evaluate potential energy efficiency improvement opportunities. Please follow the following steps to apply:"]
["TA","The Technical Assessment (TA) is an additional optional submission for eligible customers (must have an eligible  billing rate) for an additional, more detailed study of their compressed air, pumping systems, or data center space. Please follow the following steps to apply:"]
["RA","The Rebate Application (RA) is a required submission for any non-prescriptive energy efficiency improvement opportunities to fully evaluate any eligible equipment and apply for an energy efficiency incentive. Please follow the following steps to apply:"]
[]
["Authorized UL",false]
["Macros Enabled",true]
[]
[]
["AssessmentType",{"$f":"TEXT(AssessmentType,\"\")","v":"-- Select Assessment Type --"},null,null,"Rebate Structure:"]
["Assmt Tbl Paste",{"$f":"17+COUNTA('Assessment Information'!$B$13:$B$5002)","v":35},null,null,"$/kWh",0.11]
["Assmt Measure Paste",{"$f":"12+COUNTIFS('Assessment Information'!$C$13:$C$4994,\"EEM #*\")","v":15},null,null,"$/kW",0]
[]
["SameAsAbove",true]
[]
["Version ID","Date","Version Notes"]
["FY27.1.0","2026-04-10","Updated to FY27."]
["FY27.1.0","2026-05-01","Updated incentive structure to kWh-only for FY27."]